Workbook

Sheet MTK2_UAH (hidden)
A2: Державний та гарантований державою борг України за поточний рік
I4: =VALUAH -> млрд. грн
B5: 2016-12-31 | C5: 2017-01-31 | D5: 2017-02-28 | E5: 2017-03-31 | F5: 2017-04-30 | G5: 2017-05-31 | H5: 2017-06-30 | I5: 2017-07-31
A6: Загальна сума державного та гарантованого державою боргу | B6: =B$7+B$45 -> 1929.808832 | C6: 1931.105498 | D6: 1941.480573 | E6: 1951.851114 | F6: 1979.370176 | G6: 1968.039959 | H6: 1957.820677 | I6: 1971.153294
A7: Внутрішній борг | B7: =B$8+B$31 -> 689.7300058 | C7: 689.6916673 | D7: 707.4037514 | E7: 718.9176893 | F7: 711.4603812 | G7: 707.0945192 | H7: 698.6046549 | I7: 709.2018157
A8: Державний борг | B8: =B$9+B$29 -> 670.6455305 | C8: 670.6400111 | D8: 688.2966866 | E8: 699.6002593 | F8: 691.9842079 | G8: 687.5201143 | H8: 678.8832874 | I8: 689.4242723
A9: 1. Заборгованість за випущеними цінними паперами на внутрішньому ринку | B9: =SUM(B$10:B$28) -> 668.1327326 | C9: 668.1272131 | D9: 685.7838887 | E9: 697.1205245 | F9: 689.5044731 | G9: 685.0403795 | H9: 676.4366157 | I9: 686.9776006
A10: ОВДП (10 - річні) | B10: 74.832983 | C10: 74.832983 | D10: 81.319904 | E10: 81.319904 | F10: 81.319904 | G10: 81.319904 | H10: 81.319904 | I10: 81.319904
A11: ОВДП (11 - річні) | B11: 17.382981 | C11: 17.382981 | D11: 17.382981 | E11: 17.382981 | F11: 17.382981 | G11: 17.382981 | H11: 17.382981 | I11: 17.382981
A12: ОВДП (12 - місячні) | B12: 3.47757 | C12: 3.45757 | D12: 3.99197 | E12: 3.93636 | F12: 4.71486 | G12: 3.70886 | H12: 3.36279 | I12: 3.39429
A13: ОВДП (12 - річні) | B13: 28.5 | C13: 28.5 | D13: 28.5 | E13: 28.5 | F13: 28.5 | G13: 28.5 | H13: 28.5 | I13: 28.5
A14: ОВДП (13 - річні) | B14: 37.11763 | C14: 37.11763 | D14: 37.11763 | E14: 41.817631 | F14: 41.817631 | G14: 41.817631 | H14: 41.817631 | I14: 41.817631
A15: ОВДП (14 - річні) | B15: 51.25 | C15: 51.25 | D15: 56.15 | E15: 56.15 | F15: 56.15 | G15: 56.15 | H15: 56.15 | I15: 56.15
A16: ОВДП (15 - річні) | B16: 42.789838 | C16: 42.789838 | D16: 47.689838 | E16: 53.090798 | F16: 53.090798 | G16: 53.090798 | H16: 53.090798 | I16: 75.590793
A17: ОВДП (18 - місячні) | B17: 29.25796141 | C17: 29.18067935 | D17: 29.11034625 | E17: 29.02683188 | F17: 28.56994756 | G17: 28.35616889 | H17: 28.08309172 | I17: 15.32930413
A18: ОВДП (2 - річні) | B18: 64.35343953 | C18: 64.33258522 | D18: 64.48816773 | E18: 67.4175248 | F18: 66.60081855 | G18: 67.22255769 | H18: 66.78310088 | I18: 66.22423565
A19: ОВДП (3 - місячні) | B19: 0.01 | C19: 0.01 | D19: 0.01 | E19: 0 | F19: 0 | G19: 0 | H19: 0 | I19: 0
A20: ОВДП (3 - річні) | B20: 18.462385 | C20: 19.409305 | D20: 20.768255 | E20: 20.622125 | F20: 16.956588 | G20: 17.86015449 | H20: 19.29364489 | I20: 24.07202433
A21: ОВДП (4 - річні) | B21: 15.58553728 | C21: 15.57404576 | D21: 15.56358752 | E21: 15.55116928 | F21: 15.48323248 | G21: 11.235 | H21: 11.235 | I21: 11.235
A22: ОВДП (5 - річні) | B22: 151.5696514 | C22: 150.9532078 | D22: 150.8198212 | E22: 149.6248115 | F22: 147.4373245 | G22: 147.3142695 | H22: 139.9439212 | I22: 139.2994345
A23: ОВДП (6 - місячні) | B23: 0.215801 | C23: 0.01 | D23: 0.01 | E23: 0.01 | F23: 0.01 | G23: 0.645 | H23: 0.635 | I23: 0.635
A24: ОВДП (6 - річні) | B24: 24.1 | C24: 24.1 | D24: 22.85 | E24: 22.85 | F24: 22.85 | G24: 22.85 | H24: 22.85 | I24: 22.85
A25: ОВДП (7 - річні) | B25: 44.739791 | C25: 44.739791 | D25: 44.739791 | E25: 44.739791 | F25: 43.539791 | G25: 43.539791 | H25: 44.066091 | I25: 44.639341
A26: ОВДП (8 - річні) | B26: 27.416198 | C26: 27.416198 | D26: 27.416198 | E26: 27.416198 | F26: 27.416198 | G26: 26.382865 | H26: 24.258263 | I26: 21.158263
A27: ОВДП (9 - місячні) | B27: 0.196567 | C27: 0.196 | D27: 0.981 | E27: 0.79 | F27: 0.79 | G27: 0.79 | H27: 0.79 | I27: 0.505
A28: ОВДП (9 - річні) | B28: 36.874399 | C28: 36.874399 | D28: 36.874399 | E28: 36.874399 | F28: 36.874399 | G28: 36.874399 | H28: 36.874399 | I28: 36.874399
A29: 2. Заборгованість перед банківськими та іншими фінансовими установами | B29: =SUM(B$30:B$30) -> 2.512797928 | C29: 2.512797928 | D29: 2.512797928 | E29: 2.479734797 | F29: 2.479734797 | G29: 2.479734797 | H29: 2.446671666 | I29: 2.446671666
A30: Національний банк України | B30: 2.512797928 | C30: 2.512797928 | D30: 2.512797928 | E30: 2.479734797 | F30: 2.479734797 | G30: 2.479734797 | H30: 2.446671666 | I30: 2.446671666
A31: Гарантований державою борг | B31: =B$32+B$39+B$43 -> 19.08447525 | C31: 19.05165624 | D31: 19.10706476 | E31: 19.31743004 | F31: 19.47617331 | G31: 19.57440491 | H31: 19.72136754 | I31: 19.77754341
A32: 1. Заборгованість за випущеними цінними паперами на внутрішньому ринку | B32: =SUM(B$33:B$38) -> 15.9500116 | C32: 15.9500116 | D32: 15.9500116 | E32: 15.9500116 | F32: 15.9500116 | G32: 15.9500116 | H32: 15.9500116 | I32: 15.9500116
A33: Державні цінні папери | B33: 1.16e-05 | C33: 1.16e-05 | D33: 1.16e-05 | E33: 1.16e-05 | F33: 1.16e-05 | G33: 1.16e-05 | H33: 1.16e-05 | I33: 1.16e-05
A34: Облігації ДІУ (10 - річні) | B34: 1 | C34: 1 | D34: 1 | E34: 1 | F34: 1 | G34: 1 | H34: 1 | I34: 1
A35: Облігації ДІУ (5 - річні) | B35: 3 | C35: 3 | D35: 3 | E35: 3 | F35: 3 | G35: 3 | H35: 3 | I35: 3
A36: Облігації ДІУ (7 - річні) | B36: 3 | C36: 3 | D36: 3 | E36: 3 | F36: 3 | G36: 3 | H36: 3 | I36: 3
A37: Облігації НАК "Нафтогаз України" (3 - річні) | B37: 4.8 | C37: 4.8 | D37: 4.8 | E37: 4.8 | F37: 4.8 | G37: 4.8 | H37: 4.8 | I37: 4.8
A38: Облігації Укравтодору (5 - річні) | B38: 4.15 | C38: 4.15 | D38: 4.15 | E38: 4.15 | F38: 4.15 | G38: 4.15 | H38: 4.15 | I38: 4.15
A39: 2. Заборгованість перед банківськими та іншими фінансовими установами | B39: =SUM(B$40:B$42) -> 3.133508998 | C39: 3.100689992 | D39: 3.156098505 | E39: 3.366463788 | F39: 3.52520706 | G39: 3.623438659 | H39: 3.770401292 | I39: 3.826577161
A40: ВАТ "Державний експортно-імпортний банк України" | B40: 0 | C40: 0 | D40: 0.03707292115 | E40: 0.1134704461 | F40: 0.1917701267 | G40: 0.2475387402 | H40: 0.2781835844 | I40: 0.314037666
A41: ВАТ "Державний ощадний банк України" | B41: 3.021712318 | C41: 2.998100726 | D41: 3.016436318 | E41: 3.150404076 | F41: 3.236327973 | G41: 3.278790958 | H41: 3.395108747 | I41: 3.419263799
A42: ПАТ АБ "Укргазбанк" | B42: 0.1117966802 | C42: 0.1025892659 | D42: 0.1025892659 | E42: 0.1025892659 | F42: 0.09710896056 | G42: 0.09710896056 | H42: 0.09710896056 | I42: 0.09327569528
A43: 3. Заборгованість, не віднесена до інших категорій | B43: =SUM(B$44:B$44) -> 0.00095465 | C43: 0.00095465 | D43: 0.00095465 | E43: 0.00095465 | F43: 0.00095465 | G43: 0.00095465 | H43: 0.00095465 | I43: 0.00095465
A44: Інші кредитори | B44: 0.00095465 | C44: 0.00095465 | D44: 0.00095465 | E44: 0.00095465 | F44: 0.00095465 | G44: 0.00095465 | H44: 0.00095465 | I44: 0.00095465
A45: Зовнішній борг | B45: =B$46+B$69 -> 1240.078827 | C45: 1241.41383 | D45: 1234.076821 | E45: 1232.933425 | F45: 1267.909795 | G45: 1260.94544 | H45: 1259.216022 | I45: 1261.951479
A46: Державний борг | B46: =B$47+B$54+B$60+B$62+B$67 -> 980.1877545 | C46: 981.0500337 | D46: 977.6388742 | E46: 976.5272341 | F46: 980.9381688 | G46: 977.4955253 | H46: 972.1761511 | I46: 970.2660315
A47: 1. Заборгованість за позиками, одержаними від міжнародних фінансових організацій | B47: =SUM(B$48:B$53) -> 371.8465755 | C47: 373.209225 | D47: 371.1236043 | E47: 371.6659696 | F47: 385.2357053 | G47: 385.5228595 | H47: 385.3954594 | I47: 386.4058193
A48: Європейське Співтовариство | B48: 62.81395484 | C48: 63.70885235 | D48: 63.29820783 | E48: 64.01086653 | F48: 81.18268716 | G48: 82.73752479 | H48: 83.70085742 | I48: 85.41386714
A49: Європейський банк реконструкції та розвитку | B49: 16.0723087 | C49: 16.53241549 | D49: 16.22666393 | E49: 16.3992311 | F49: 16.31678422 | G49: 15.92408972 | H49: 16.31471496 | I49: 16.65096404
A50: Європейський Інвестиційний Банк | B50: 14.52237776 | C50: 14.72927509 | D50: 15.0436734 | E50: 15.21304636 | F50: 15.17441155 | G50: 15.46503689 | H50: 15.64509998 | I50: 15.96529035
A51: Міжнародний банк реконструкції та розвитку | B51: 137.4605065 | C51: 136.1181227 | D51: 135.2918085 | E51: 134.8754237 | F51: 132.1655261 | G51: 130.6943497 | H51: 129.6743161 | I51: 127.6583971
A52: Міжнародний Валютний Фонд | B52: 140.9098527 | C52: 142.0531629 | D52: 141.1960166 | E52: 141.0983105 | F52: 140.3282924 | G52: 140.6290625 | H52: 139.9857662 | I52: 140.6365641
A53: Фонд чистих технологій (МБРР) | B53: 0.06757499901 | C53: 0.06739650623 | D53: 0.06723406295 | E53: 0.06909135625 | F53: 0.06800385358 | G53: 0.07279597184 | H53: 0.07470482739 | I53: 0.08073649949
A54: 2. Заборгованість за позиками, одержаними від органів управління іноземних держав | B54: =SUM(B$55:B$59) -> 45.64750416 | C54: 46.15063435 | D54: 46.34290275 | E54: 46.19803483 | F54: 45.37042495 | G54: 45.32822021 | H54: 45.17404719 | I54: 45.5388627
A55: Канада | B55: 8.0323876 | C55: 8.246452 | D55: 8.24875 | E55: 8.0905568 | F55: 7.8172592 | G55: 7.8266768 | H55: 8.0142012 | I55: 8.2643812
A56: Німеччина | B56: 5.983279353 | C56: 6.068521905 | D56: 6.029406379 | E56: 6.097289958 | F56: 6.081805378 | G56: 6.198286123 | H56: 6.386205674 | I56: 6.516904841
A57: Росія | B57: 16.47374066 | C57: 16.43022688 | D57: 16.39062572 | E57: 16.34360282 | F57: 16.08635339 | G57: 15.96598498 | H57: 15.81222845 | I57: 15.70111146
A58: США | B58: 0.2065714027 | C58: 0.2060257645 | D58: 0.2055291883 | E58: 0.2049395478 | F58: 0.2017137852 | G58: 0.2002044333 | H58: 0.1982764134 | I58: 0.196883069
A59: Японія | B59: 14.95152515 | C59: 15.1994078 | D59: 15.46859147 | E59: 15.46164571 | F59: 15.18329319 | G59: 15.13706787 | H59: 14.76313545 | I59: 14.85958212
A60: 3. Заборгованість за позиками, одержаними від іноземних комерційних банків, інших іноземних фінансових установ | B60: =SUM(B$61:B$61) -> 0.001453225 | C60: 0.0014739288 | D60: 0.00146442838 | E60: 0.00148091602 | F60: 0.00147715511 | G60: 0.00150544607 | H60: 0.00152297433 | I60: 0.00155414331
A61: Chase Manhattan Bank Luxembourg S.A. | B61: 0.001453225 | C61: 0.0014739288 | D61: 0.00146442838 | E61: 0.00148091602 | F61: 0.00147715511 | G61: 0.00150544607 | H61: 0.00152297433 | I61: 0.00155414331
A62: 4. Заборгованість за випущеними цінними паперами на зовнішньому ринку | B62: =SUM(B$63:B$66) -> 517.8044819 | C62: 516.4367518 | D62: 515.1920036 | E62: 513.7139746 | F62: 505.6280815 | G62: 501.8446479 | H62: 497.0117554 | I62: 493.5191135
A63: ОЗДП 2013 року | B63: 81.572574 | C63: 81.357108 | D63: 81.161016 | E63: 80.928174 | F63: 79.654359 | G63: 79.058334 | H63: 78.296982 | I63: 77.746767
A64: ОЗДП 2014 року | B64: 27.190858 | C64: 27.119036 | D64: 27.053672 | E64: 26.976058 | F64: 26.551453 | G64: 26.352778 | H64: 26.098994 | I64: 25.915589
A65: ОЗДП 2015 року | B65: 381.8501919 | C65: 380.8415718 | D65: 379.9236436 | E65: 378.8336846 | F65: 372.8708165 | G65: 370.0807579 | H65: 366.5167854 | I65: 363.9411685
A66: ОЗДП 2016 року | B66: 27.190858 | C66: 27.119036 | D66: 27.053672 | E66: 26.976058 | F66: 26.551453 | G66: 26.352778 | H66: 26.098994 | I66: 25.915589
A67: 5. Заборгованість, не віднесена до інших категорій | B67: =SUM(B$68:B$68) -> 44.88773975 | C67: 45.25194859 | D67: 44.9788991 | E67: 44.94777422 | F67: 44.70247999 | G67: 44.79829223 | H67: 44.59336605 | I67: 44.80068192
A68: Міжнародний Валютний Фонд | B68: 44.88773975 | C68: 45.25194859 | D68: 44.9788991 | E68: 44.94777422 | F68: 44.70247999 | G68: 44.79829223 | H68: 44.59336605 | I68: 44.80068192
A69: Гарантований державою борг | B69: =B$70+B$76+B$78+B$86+B$87 -> 259.8910721 | C69: 260.3637965 | D69: 256.4379471 | E69: 256.406191 | F69: 286.9716257 | G69: 283.4499143 | H69: 287.0398709 | I69: 291.6854472
A70: 1. Заборгованість за позиками, одержаними від міжнародних фінансових організацій | B70: =SUM(B$71:B$75) -> 190.9827472 | C70: 192.5914912 | D70: 188.8454318 | E70: 189.1048365 | F70: 214.4627368 | G70: 211.0944886 | H70: 209.9813671 | I70: 215.4904968
A71: Європейське співтоватиство з атомної енергії | B71: 0.2958517627 | C71: 0.2978783374 | D71: 0.2964798414 | E71: 0.2415162408 | F71: 0.2084620953 | G71: 1.682101253 | H71: 1.699663846 | I71: 1.73186027
A72: Європейський банк реконструкції та розвитку | B72: 10.56222871 | C72: 10.78154354 | D72: 7.973583883 | E72: 8.297228754 | F72: 8.196551775 | G72: 3.013796512 | H72: 2.872056711 | I72: 7.518217417
A73: Європейський Інвестиційний Банк | B73: 0.99479114 | C73: 1.008963725 | D73: 1.002460305 | E73: 1.013746755 | F73: 1.01117226 | G73: 1.030538565 | H73: 1.04253737 | I73: 1.06387379
A74: Міжнародний банк реконструкції та розвитку | B74: 12.37301899 | C74: 12.39322211 | D74: 12.47739647 | E74: 12.57246159 | F74: 12.25654898 | G74: 12.16483762 | H74: 12.04768712 | I74: 11.96302462
A75: Міжнародний Валютний Фонд | B75: 166.7568566 | C75: 168.1098835 | D75: 167.0955113 | E75: 166.9798831 | F75: 192.7900017 | G75: 193.2032147 | H75: 192.3194221 | I75: 193.2135207
A76: 2. Заборгованість за позиками, одержаними від органів управління іноземних держав | B76: =SUM(B$77:B$77) -> 3.975759701 | C76: 3.304381766 | D76: 3.296417338 | E76: 3.28696028 | F76: 3.2352233 | G76: 3.211015285 | H76: 3.180092385 | I76: 2.526195982
A77: Канада | B77: 3.975759701 | C77: 3.304381766 | D77: 3.296417338 | E77: 3.28696028 | F77: 3.2352233 | G77: 3.211015285 | H77: 3.180092385 | I77: 2.526195982
A78: 3. Заборгованість за позиками, одержаними від іноземних комерційних банків, інших іноземних фінансових установ | B78: =SUM(B$79:B$85) -> 61.95552088 | C78: 61.46672412 | D78: 61.31300774 | E78: 61.03336834 | F78: 66.30890802 | G78: 66.17329837 | H78: 70.92089052 | I78: 70.69748388
A79: Citibank, N.A., Deutsche Bank AG | B79: 0 | C79: 0 | D79: 0 | E79: 0 | F79: 6.390260578 | G79: 7.099232725 | H79: 12.38488553 | I79: 12.87471518
A80: Deutsche Bank AG London | B80: 0.3881279224 | C80: 0.3990226513 | D80: 0.3964506938 | E80: 0.400914233 | F80: 0.4007000463 | G80: 0.4083743859 | H80: 0.4166446789 | I80: 0.4251716691
A81: UniCredit Bank Austria AG | B81: 0.96636853 | C81: 0.980136184 | D81: 0.973818576 | E81: 0.8616847362 | F81: 0.8594964155 | G81: 0.8759577747 | H81: 0.8861567588 | I81: 0.9042927157
A82: ВАТ "Газпромбанк" | B82: 13.595429 | C82: 13.559518 | D82: 13.526836 | E82: 13.488029 | F82: 13.2757265 | G82: 13.176389 | H82: 13.049497 | I82: 12.9577945
A83: Державний банк розвитку КНР | B83: 1.608611159 | C83: 1.60436217 | D83: 1.600495236 | E83: 1.595903591 | F83: 1.399261573 | G83: 1.388791401 | H83: 1.375416984 | I83: 1.36575154
A84: Експортно-імпортний банк Китаю | B84: 41.84925707 | C84: 41.38532889 | D84: 41.28557938 | E84: 41.16713561 | F84: 40.51916207 | G84: 40.21597172 | H84: 39.82868161 | I84: 39.21108886
A85: Експортно-імпортний банк Кореї | B85: 3.547727198 | C85: 3.538356222 | D85: 3.529827854 | E85: 3.519701168 | F85: 3.46430083 | G85: 3.008581371 | H85: 2.979607962 | I85: 2.958669415
A86: 4. Заборгованість за випущеними цінними паперами на зовнішньому ринку
A87: 5. Заборгованість, не віднесена до інших категорій | B87: =SUM(B$88:B$88) -> 2.977044347 | C87: 3.001199403 | D87: 2.983090217 | E87: 2.981025952 | F87: 2.96475755 | G87: 2.971112009 | H87: 2.957520896 | I87: 2.971270498
A88: Міжнародний Валютний Фонд | B88: 2.977044347 | C88: 3.001199403 | D88: 2.983090217 | E88: 2.981025952 | F88: 2.96475755 | G88: 2.971112009 | H88: 2.957520896 | I88: 2.971270498

Sheet MTK2_USD (hidden)
A2: Державний та гарантований державою борг України за поточний рік
I4: =VALUSD -> млрд. дол. США
B5: 2016-12-31 | C5: 2017-01-31 | D5: 2017-02-28 | E5: 2017-03-31 | F5: 2017-04-30 | G5: 2017-05-31 | H5: 2017-06-30 | I5: 2017-07-31
A6: Загальна сума державного та гарантованого державою боргу | B6: =B$7+B$45 -> 70.97270827 | C6: 71.20848608 | D6: 71.76403161 | E6: 72.35494209 | F6: 74.54846918 | G6: 74.68055014 | H6: 75.01517786 | I6: 76.06052459
A7: Внутрішній борг | B7: =B$8+B$31 -> 25.36624647 | C7: 25.43201268 | D7: 26.14816027 | E7: 26.65021292 | F7: 26.79553474 | G7: 26.83187781 | H7: 26.7674936 | I7: 27.36583821
A8: Державний борг | B8: =B$9+B$29 -> 24.66437545 | C8: 24.729493 | D8: 25.44189516 | E8: 25.93411755 | F8: 26.06200903 | G8: 26.08909445 | H8: 26.01185653 | I8: 26.60268583
A9: 1. Заборгованість за випущеними цінними паперами на внутрішньому ринку | B9: =SUM(B$10:B$28) -> 24.57196211 | C9: 24.63683492 | D9: 25.3490132 | E9: 25.84219401 | F9: 25.96861547 | G9: 25.99499679 | H9: 25.9181107 | I9: 26.50827657
A10: ОВДП (10 - річні) | B10: 2.752137612 | C10: 2.759426368 | D10: 3.005873066 | E10: 3.014521395 | F10: 3.062728959 | G10: 3.085819036 | H10: 3.115825231 | I10: 3.137875971
A11: ОВДП (11 - річні) | B11: 0.6392950528 | C11: 0.6409881605 | D11: 0.6425368431 | E11: 0.644385514 | F11: 0.6546903855 | G11: 0.6596261313 | H11: 0.6660402696 | I11: 0.6707538463
A12: ОВДП (12 - місячні) | B12: 0.1278948241 | C12: 0.1274960511 | D12: 0.1475574185 | E12: 0.1459205048 | F12: 0.1775744627 | G12: 0.1407388625 | H12: 0.128847495 | I12: 0.1309748353
A13: ОВДП (12 - річні) | B13: 1.048146403 | C13: 1.050922312 | D13: 1.05346143 | E13: 1.05649239 | F13: 1.073387584 | G13: 1.081479911 | H13: 1.091996113 | I13: 1.099724185
A14: ОВДП (13 - річні) | B14: 1.365077557 | C14: 1.368692825 | D14: 1.371999705 | E14: 1.550175752 | F14: 1.574965822 | G14: 1.586839573 | H14: 1.602269842 | I14: 1.613609129
A15: ОВДП (14 - річні) | B15: 1.884824672 | C15: 1.889816437 | D15: 2.075503835 | E15: 2.081475359 | F15: 2.114761855 | G15: 2.130705158 | H15: 2.151423921 | I15: 2.166649579
A16: ОВДП (15 - річні) | B16: 1.573684729 | C16: 1.577852472 | D16: 1.762786139 | E16: 1.968071021 | F16: 1.99954398 | G16: 2.014618649 | H16: 2.034208598 | I16: 2.916807833
A17: ОВДП (18 - місячні) | B17: 1.076022 | C17: 1.076022 | D17: 1.076022 | E17: 1.076022 | F17: 1.076022 | G17: 1.076022 | H17: 1.076022 | I17: 0.591509
A18: ОВДП (2 - річні) | B18: 2.366730742 | C18: 2.372229795 | D18: 2.38371219 | E18: 2.499161471 | F18: 2.508368131 | G18: 2.550871779 | H18: 2.558838125 | I18: 2.555382231
A19: ОВДП (3 - місячні) | B19: 0.00036777067 | C19: 0.00036874467 | D19: 0.00036963559 | E19: 0 | F19: 0 | G19: 0 | H19: 0 | I19: 0
A20: ОВДП (3 - річні) | B20: 0.6789923657 | C20: 0.7157077781 | D20: 0.7676686181 | E20: 0.7644602855 | F20: 0.6386312643 | G20: 0.6777332732 | H20: 0.7392486044 | I20: 0.9288627137
A21: ОВДП (4 - річні) | B21: 0.5731903451 | C21: 0.5742846376 | D21: 0.5752855849 | E21: 0.5764804213 | F21: 0.5831406846 | G21: 0.4263307648 | H21: 0.4304763624 | I21: 0.4335228499
A22: ОВДП (5 - річні) | B22: 5.574287189 | C22: 5.56631909 | D22: 5.574837353 | E22: 5.546578063 | F22: 5.552891003 | G22: 5.590085017 | H22: 5.362042737 | I22: 5.375121303
A23: ОВДП (6 - місячні) | B23: 0.00793652779 | C23: 0.00036874467 | D23: 0.00036963559 | E23: 0.00037069908 | F23: 0.00037662722 | G23: 0.02447559799 | H23: 0.02433043971 | I23: 0.02450262658
A24: ОВДП (6 - річні) | B24: 0.886327309 | C24: 0.8886746564 | D24: 0.8446173222 | E24: 0.8470474077 | F24: 0.8605932037 | G24: 0.8670812618 | H24: 0.875512673 | I24: 0.8817086889
A25: ОВДП (7 - річні) | B25: 1.645398281 | C25: 1.64975595 | D25: 1.653741902 | E25: 1.658499956 | F25: 1.639827056 | G25: 1.6521898 | H25: 1.688421056 | I25: 1.722489927
A26: ОВДП (8 - річні) | B26: 1.008287344 | C26: 1.01095769 | D26: 1.013400251 | E26: 1.01631595 | F26: 1.032568651 | G26: 1.001141701 | H26: 0.9294711896 | I26: 0.8164299488
A27: ОВДП (9 - місячні) | B27: 0.00722915769 | C27: 0.00722739555 | D27: 0.03626125134 | E27: 0.02928522766 | F27: 0.02975355058 | G27: 0.0299778642 | H27: 0.03026936594 | I27: 0.01948634083
A28: ОВДП (9 - річні) | B28: 1.356132234 | C28: 1.359723812 | D28: 1.363009021 | E28: 1.366930595 | F28: 1.388790248 | G28: 1.399260412 | H28: 1.41286668 | I28: 1.422865558
A29: 2. Заборгованість перед банківськими та іншими фінансовими установами | B29: =SUM(B$30:B$30) -> 0.09241333715 | C29: 0.09265808444 | D29: 0.09288195435 | E29: 0.09192354187 | F29: 0.09339356294 | G29: 0.094097662 | H29: 0.09374582278 | I29: 0.09440926333
A30: Національний банк України | B30: 0.09241333715 | C30: 0.09265808444 | D30: 0.09288195435 | E30: 0.09192354187 | F30: 0.09339356294 | G30: 0.094097662 | H30: 0.09374582278 | I30: 0.09440926333
A31: Гарантований державою борг | B31: =B$32+B$39+B$43 -> 0.7018710203 | C31: 0.7025196707 | D31: 0.7062651146 | E31: 0.7160953627 | F31: 0.7335257061 | G31: 0.742783357 | H31: 0.7556370771 | I31: 0.7631523795
A32: 1. Заборгованість за випущеними цінними паперами на внутрішньому ринку | B32: =SUM(B$33:B$38) -> 0.5865946415 | C32: 0.5881481775 | D32: 0.5895691942 | E32: 0.5912654696 | F32: 0.6007208569 | G32: 0.6052497236 | H32: 0.6111351112 | I32: 0.6154601232
A33: Державні цінні папери | B33: 4.2661e-07 | C33: 4.2774e-07 | D33: 4.2878e-07 | E33: 4.3001e-07 | F33: 4.3689e-07 | G33: 4.4018e-07 | H33: 4.4446e-07 | I33: 4.4761e-07
A34: Облігації ДІУ (10 - річні) | B34: 0.03677706676 | C34: 0.03687446707 | D34: 0.03696355896 | E34: 0.03706990844 | F34: 0.03766272226 | G34: 0.03794666354 | H34: 0.03831565309 | I34: 0.03858681352
A35: Облігації ДІУ (5 - річні) | B35: 0.1103312003 | C35: 0.1106234012 | D35: 0.1108906769 | E35: 0.1112097253 | F35: 0.1129881668 | G35: 0.1138399906 | H35: 0.1149469593 | I35: 0.1157604406
A36: Облігації ДІУ (7 - річні) | B36: 0.1103312003 | C36: 0.1106234012 | D36: 0.1108906769 | E36: 0.1112097253 | F36: 0.1129881668 | G36: 0.1138399906 | H36: 0.1149469593 | I36: 0.1157604406
A37: Облігації НАК "Нафтогаз України" (3 - річні) | B37: 0.1765299205 | C37: 0.1769974419 | D37: 0.177425083 | E37: 0.1779355605 | F37: 0.1807810669 | G37: 0.182143985 | H37: 0.1839151348 | I37: 0.1852167049
A38: Облігації Укравтодору (5 - річні) | B38: 0.1526248271 | C38: 0.1530290384 | D38: 0.1533987697 | E38: 0.15384012 | F38: 0.1563002974 | G38: 0.1574786537 | H38: 0.1590099603 | I38: 0.1601352761
A39: 2. Заборгованість перед банківськими та іншими фінансовими установами | B39: =SUM(B$40:B$42) -> 0.1152412696 | C39: 0.114336291 | D39: 0.1166606332 | E39: 0.1247945044 | F39: 0.1327688944 | G39: 0.1374974076 | H39: 0.1444653879 | I39: 0.1476554193
A40: ВАТ "Державний експортно-імпортний банк України" | B40: 0 | C40: 0 | D40: 0.0013703471 | E40: 0.00420633904 | F40: 0.00722258502 | G40: 0.00939326928 | H40: 0.01065878571 | I40: 0.01211771285
A41: ВАТ "Державний ощадний банк України" | B41: 0.1111297157 | C41: 0.1105533665 | D41: 0.1114982217 | E41: 0.1167851906 | F41: 0.1218889216 | G41: 0.1244191773 | H41: 0.1300858089 | I41: 0.1319384946
A42: ПАТ АБ "Укргазбанк" | B42: 0.00411155398 | C42: 0.0037829245 | D42: 0.00379206438 | E42: 0.00380297469 | F42: 0.00365738781 | G42: 0.00368496105 | H42: 0.00372079324 | I42: 0.00359921186
A43: 3. Заборгованість, не віднесена до інших категорій | B43: =SUM(B$44:B$44) -> 3.510923e-05 | C43: 3.520221e-05 | D43: 3.528726e-05 | E43: 3.538879e-05 | F43: 3.595472e-05 | G43: 3.622578e-05 | H43: 3.657804e-05 | I43: 3.68369e-05
A44: Інші кредитори | B44: 3.510923e-05 | C44: 3.520221e-05 | D44: 3.528726e-05 | E44: 3.538879e-05 | F44: 3.595472e-05 | G44: 3.622578e-05 | H44: 3.657804e-05 | I44: 3.68369e-05
A45: Зовнішній борг | B45: =B$46+B$69 -> 45.6064618 | C45: 45.77647341 | D45: 45.61587134 | E45: 45.70472918 | F45: 47.75293444 | G45: 47.84867233 | H45: 48.24768426 | I45: 48.69468638
A46: Державний борг | B46: =B$47+B$54+B$60+B$62+B$67 -> 36.04843049 | C46: 36.17569716 | D46: 36.13701216 | E46: 36.19977515 | F46: 36.94480181 | G46: 37.09269381 | H46: 37.24956414 | I46: 37.43947442
A47: 1. Заборгованість за позиками, одержаними від міжнародних фінансових організацій | B47: =SUM(B$48:B$53) -> 13.67542633 | C47: 13.76189128 | D47: 13.71804923 | E47: 13.77762346 | F47: 14.50902537 | G47: 14.62930624 | H47: 14.76667873 | I47: 14.91016929
A48: Європейське Співтовариство | B48: 2.310113011 | C48: 2.349229978 | D48: 2.339727037 | E48: 2.372876961 | F48: 3.057560999 | G48: 3.139613015 | H48: 3.207053016 | I48: 3.295848963
A49: Європейський банк реконструкції та розвитку | B49: 0.59109237 | C49: 0.6096240107 | D49: 0.5997952489 | E49: 0.6079179954 | F49: 0.6145345121 | G49: 0.6042660746 | H49: 0.6251089587 | I49: 0.6425076445
A50: Європейський Інвестиційний Банк | B50: 0.5340904563 | C50: 0.5431341693 | D50: 0.5560677086 | E50: 0.5639462355 | F50: 0.5715096476 | G50: 0.5868465514 | H50: 0.5994522234 | I50: 0.6160496815
A51: Міжнародний банк реконструкції та розвитку | B51: 5.055394225 | C51: 5.019283232 | D51: 5.000866739 | E51: 4.999819605 | F51: 4.977713502 | G51: 4.959414512 | H51: 4.96855611 | I51: 4.925930764
A52: Міжнародний Валютний Фонд | B52: 5.18225106 | C52: 5.238134679 | D52: 5.219107284 | E52: 5.230501452 | F52: 5.285145503 | G52: 5.336403718 | H52: 5.363646053 | I52: 5.426716873
A53: Фонд чистих технологій (МБРР) | B53: 0.00248521025 | C53: 0.00248521025 | D53: 0.00248521025 | E53: 0.00256121025 | F53: 0.00256121025 | G53: 0.00276236425 | H53: 0.00286236425 | I53: 0.00311536425
A54: 2. Заборгованість за позиками, одержаними від органів управління іноземних держав | B54: =SUM(B$55:B$59) -> 1.678781308 | C54: 1.701780047 | D54: 1.712998618 | E54: 1.712556921 | F54: 1.708773714 | G54: 1.720054721 | H54: 1.730873121 | I54: 1.757199603
A55: Канада | B55: 0.295407655 | C55: 0.3040835227 | D55: 0.304903157 | E55: 0.2999161998 | F55: 0.2944192621 | G55: 0.2969962711 | H55: 0.3070693529 | I55: 0.3188961362
A56: Німеччина | B56: 0.2200474642 | C56: 0.2237735111 | D56: 0.2228683182 | E56: 0.2260259804 | F56: 0.2290573468 | G56: 0.235204278 | H56: 0.2446916411 | I56: 0.2514665918
A57: Росія | B57: 0.60585586 | C57: 0.60585586 | D57: 0.60585586 | E57: 0.60585586 | F57: 0.60585586 | G57: 0.60585586 | H57: 0.60585586 | I57: 0.60585586
A58: США | B58: 0.00759709027 | C58: 0.00759709027 | D58: 0.00759709027 | E58: 0.00759709027 | F58: 0.00759709027 | G58: 0.00759709027 | H58: 0.00759709027 | I58: 0.00759709027
A59: Японія | B59: 0.5498732387 | C59: 0.5604700626 | D59: 0.5717741927 | E59: 0.5731617906 | F59: 0.5718441546 | G59: 0.5744012215 | H59: 0.5656591763 | I59: 0.5733839244
A60: 3. Заборгованість за позиками, одержаними від іноземних комерційних банків, інших іноземних фінансових установ | B60: =SUM(B$61:B$61) -> 5.344535e-05 | C60: 5.435034e-05 | D60: 5.413048e-05 | E60: 5.489742e-05 | F60: 5.563368e-05 | G60: 5.712666e-05 | H60: 5.835376e-05 | I60: 5.996944e-05
A61: Chase Manhattan Bank Luxembourg S.A. | B61: 5.344535e-05 | C61: 5.435034e-05 | D61: 5.413048e-05 | E61: 5.489742e-05 | F61: 5.563368e-05 | G61: 5.712666e-05 | H61: 5.835376e-05 | I61: 5.996944e-05
A62: 4. Заборгованість за випущеними цінними паперами на зовнішньому ринку | B62: =SUM(B$63:B$66) -> 19.04333 | C62: 19.04333 | D62: 19.04333 | E62: 19.04333 | F62: 19.04333 | G62: 19.04333 | H62: 19.04333 | I62: 19.04333
A63: ОЗДП 2013 року | B63: 3 | C63: 3 | D63: 3 | E63: 3 | F63: 3 | G63: 3 | H63: 3 | I63: 3
A64: ОЗДП 2014 року | B64: 1 | C64: 1 | D64: 1 | E64: 1 | F64: 1 | G64: 1 | H64: 1 | I64: 1
A65: ОЗДП 2015 року | B65: 14.04333 | C65: 14.04333 | D65: 14.04333 | E65: 14.04333 | F65: 14.04333 | G65: 14.04333 | H65: 14.04333 | I65: 14.04333
A66: ОЗДП 2016 року | B66: 1 | C66: 1 | D66: 1 | E66: 1 | F66: 1 | G66: 1 | H66: 1 | I66: 1
A67: 5. Заборгованість, не віднесена до інших категорій | B67: =SUM(B$68:B$68) -> 1.650839402 | C67: 1.668641488 | D67: 1.662580189 | E67: 1.666209875 | F67: 1.683617088 | G67: 1.699945722 | H67: 1.708623943 | I67: 1.728715559
A68: Міжнародний Валютний Фонд | B68: 1.650839402 | C68: 1.668641488 | D68: 1.662580189 | E68: 1.666209875 | F68: 1.683617088 | G68: 1.699945722 | H68: 1.708623943 | I68: 1.728715559
A69: Гарантований державою борг | B69: =B$70+B$76+B$78+B$86+B$87 -> 9.55803131 | C69: 9.600776241 | D69: 9.478859178 | E69: 9.504954024 | F69: 10.80813264 | G69: 10.75597853 | H69: 10.99812012 | I69: 11.25521196
A70: 1. Заборгованість за позиками, одержаними від міжнародних фінансових організацій | B70: =SUM(B$71:B$75) -> 7.023785243 | C70: 7.101708601 | D70: 6.980399254 | E70: 7.010098973 | F70: 8.077250493 | G70: 8.010331533 | H70: 8.045573218 | I70: 8.315091617
A71: Європейське співтоватиство з атомної енергії | B71: 0.01088056003 | C71: 0.01098410494 | D71: 0.0109589501 | E71: 0.00895298493 | F71: 0.00785125 | G71: 0.06383013029 | H71: 0.0651237303 | I71: 0.0668269693
A72: Європейський банк реконструкції та розвитку | B72: 0.3884477904 | C72: 0.3975636722 | D72: 0.294732038 | E72: 0.3075775102 | F72: 0.308704453 | G72: 0.1143635222 | H72: 0.1100447286 | I72: 0.2901040535
A73: Європейський Інвестиційний Банк | B73: 0.03658550017 | C73: 0.03720499965 | D73: 0.03705450059 | E73: 0.03757949938 | F73: 0.03808349999 | G73: 0.03910550019 | H73: 0.0399455002 | I73: 0.04105149954
A74: Міжнародний банк реконструкції та розвитку | B74: 0.4550433454 | C74: 0.4569934608 | D74: 0.4612089801 | E74: 0.46606 | F74: 0.461615 | G74: 0.461615 | H74: 0.461615 | I74: 0.461615
A75: Міжнародний Валютний Фонд | B75: 6.132828047 | C75: 6.198962364 | D75: 6.176444785 | E75: 6.189928979 | F75: 7.26099629 | G75: 7.33141738 | H75: 7.368844258 | I75: 7.455494095
A76: 2. Заборгованість за позиками, одержаними від органів управління іноземних держав | B76: =SUM(B$77:B$77) -> 0.14621678 | C76: 0.1218473166 | D76: 0.1218473166 | E76: 0.1218473166 | F76: 0.1218473166 | G76: 0.1218473166 | H76: 0.1218473166 | I76: 0.09747785328
A77: Канада | B77: 0.14621678 | C77: 0.1218473166 | D77: 0.1218473166 | E77: 0.1218473166 | F77: 0.1218473166 | G77: 0.1218473166 | H77: 0.1218473166 | I77: 0.09747785328
A78: 3. Заборгованість за позиками, одержаними від іноземних комерційних банків, інших іноземних фінансових установ | B78: =SUM(B$79:B$85) -> 2.278542328 | C78: 2.266552695 | D78: 2.266346976 | E78: 2.262501376 | F78: 2.497373986 | G78: 2.511055888 | H78: 2.717380238 | I78: 2.727990627
A79: Citibank, N.A., Deutsche Bank AG | B79: 0 | C79: 0 | D79: 0 | E79: 0 | F79: 0.2406746093 | G79: 0.2693921956 | H79: 0.4745349774 | I79: 0.4967942336
A80: Deutsche Bank AG London | B80: 0.01427420651 | C80: 0.01471374762 | D80: 0.01465422859 | E80: 0.01486185391 | F80: 0.01509145455 | G80: 0.01549644542 | H80: 0.01596401298 | I80: 0.01640601991
A81: UniCredit Bank Austria AG | B81: 0.03554019995 | C81: 0.03614199944 | D81: 0.03599580035 | E81: 0.03194257427 | F81: 0.03237097478 | G81: 0.03323967495 | H81: 0.03395367495 | I81: 0.03489377439
A82: ВАТ "Газпромбанк" | B82: 0.5 | C82: 0.5 | D82: 0.5 | E82: 0.5 | F82: 0.5 | G82: 0.5 | H82: 0.5 | I82: 0.5
A83: Державний банк розвитку КНР | B83: 0.05916 | C83: 0.05916 | D83: 0.05916 | E83: 0.05916 | F83: 0.0527 | G83: 0.0527 | H83: 0.0527 | I83: 0.0527
A84: Експортно-імпортний банк Китаю | B84: 1.539092921 | C84: 1.526061947 | D84: 1.526061947 | E84: 1.526061947 | F84: 1.526061947 | G84: 1.526061947 | H84: 1.526061947 | I84: 1.513030974
A85: Експортно-імпортний банк Кореї | B85: 0.130475 | C85: 0.130475 | D85: 0.130475 | E85: 0.130475 | F85: 0.130475 | G85: 0.114165625 | H85: 0.114165625 | I85: 0.114165625
A86: 4. Заборгованість за випущеними цінними паперами на зовнішньому ринку
A87: 5. Заборгованість, не віднесена до інших категорій | B87: =SUM(B$88:B$88) -> 0.1094869587 | C87: 0.1106676285 | D87: 0.1102656311 | E87: 0.1105063591 | F87: 0.1116608402 | G87: 0.1127437877 | H87: 0.1133193447 | I87: 0.1146518606
A88: Міжнародний Валютний Фонд | B88: 0.1094869587 | C88: 0.1106676285 | D88: 0.1102656311 | E88: 0.1105063591 | F88: 0.1116608402 | G88: 0.1127437877 | H88: 0.1133193447 | I88: 0.1146518606

Sheet DKT2
A2: ="Державний та гарантований державою борг України за станом на " & TEXT(DREPORTDATE,"dd.MM.yyyy") -> Державний та гарантований державою борг України за станом на 31.07.2017
A3: (за ознакою умовності)
D5: =VALVAL -> млрд. одиниць
B6: дол.США | C6: грн. | D6: %
A7: Загальна сума державного та гарантованого державою боргу | B7: =B$8+B$54 -> 76.06052459 | C7: 1971.153294 | D7: 1
A8: Державний борг | B8: =B$9+B$31 -> 64.04216025 | C8: 1659.690304 | D8: 0.841989
A9: Внутрішній борг | B9: =B$10+B$29 -> 26.60268583 | C9: 689.4242723 | D9: 0.349758
A10: 1. Заборгованість за випущеними цінними паперами на внутрішньому ринку | B10: =SUM(B$11:B$28) -> 26.50827657 | C10: 686.9776006 | D10: 0.348517
A11: ОВДП (10 - річні) | B11: 3.137875971 | C11: 81.319904 | D11: 0.041255
A12: ОВДП (11 - річні) | B12: 0.6707538463 | C12: 17.382981 | D12: 0.008819
A13: ОВДП (12 - місячні) | B13: 0.1309748353 | C13: 3.39429 | D13: 0.001722
A14: ОВДП (12 - річні) | B14: 1.099724185 | C14: 28.5 | D14: 0.014459
A15: ОВДП (13 - річні) | B15: 1.613609129 | C15: 41.817631 | D15: 0.021215
A16: ОВДП (14 - річні) | B16: 2.166649579 | C16: 56.15 | D16: 0.028486
A17: ОВДП (15 - річні) | B17: 2.916807833 | C17: 75.590793 | D17: 0.038349
A18: ОВДП (18 - місячні) | B18: 0.591509 | C18: 15.32930413 | D18: 0.007777
A19: ОВДП (2 - річні) | B19: 2.555382231 | C19: 66.22423565 | D19: 0.033597
A20: ОВДП (3 - річні) | B20: 0.9288627137 | C20: 24.07202433 | D20: 0.012212
A21: ОВДП (4 - річні) | B21: 0.4335228499 | C21: 11.235 | D21: 0.0057
A22: ОВДП (5 - річні) | B22: 5.375121303 | C22: 139.2994345 | D22: 0.070669
A23: ОВДП (6 - місячні) | B23: 0.02450262658 | C23: 0.635 | D23: 0.000322
A24: ОВДП (6 - річні) | B24: 0.8817086889 | C24: 22.85 | D24: 0.011592
A25: ОВДП (7 - річні) | B25: 1.722489927 | C25: 44.639341 | D25: 0.022646
A26: ОВДП (8 - річні) | B26: 0.8164299488 | C26: 21.158263 | D26: 0.010734
A27: ОВДП (9 - місячні) | B27: 0.01948634083 | C27: 0.505 | D27: 0.000256
A28: ОВДП (9 - річні) | B28: 1.422865558 | C28: 36.874399 | D28: 0.018707
A29: 2. Заборгованість перед банківськими та іншими фінансовими установами | B29: =SUM(B$30:B$30) -> 0.09440926333 | C29: 2.446671666 | D29: 0.001241
A30: Національний банк України | B30: 0.09440926333 | C30: 2.446671666 | D30: 0.001241
A31: Зовнішній борг | B31: =B$32+B$39+B$45+B$47+B$52 -> 37.43947442 | C31: 970.2660315 | D31: 0.492231
A32: 1. Заборгованість за позиками, одержаними від міжнародних фінансових організацій | B32: =SUM(B$33:B$38) -> 14.91016929 | C32: 386.4058193 | D32: 0.196029
A33: Європейське Співтовариство | B33: 3.295848963 | C33: 85.41386714 | D33: 0.043332
A34: Європейський банк реконструкції та розвитку | B34: 0.6425076445 | C34: 16.65096404 | D34: 0.008447
A35: Європейський Інвестиційний Банк | B35: 0.6160496815 | C35: 15.96529035 | D35: 0.008099
A36: Міжнародний банк реконструкції та розвитку | B36: 4.925930764 | C36: 127.6583971 | D36: 0.064763
A37: Міжнародний Валютний Фонд | B37: 5.426716873 | C37: 140.6365641 | D37: 0.071347
A38: Фонд чистих технологій (МБРР) | B38: 0.00311536425 | C38: 0.08073649949 | D38: 4.1e-05
A39: 2. Заборгованість за позиками, одержаними від органів управління іноземних держав | B39: =SUM(B$40:B$44) -> 1.757199603 | C39: 45.5388627 | D39: 0.023103
A40: Канада | B40: 0.3188961362 | C40: 8.2643812 | D40: 0.004193
A41: Німеччина | B41: 0.2514665918 | C41: 6.516904841 | D41: 0.003306
A42: Росія | B42: 0.60585586 | C42: 15.70111146 | D42: 0.007965
A43: США | B43: 0.00759709027 | C43: 0.196883069 | D43: 0.0001
A44: Японія | B44: 0.5733839244 | C44: 14.85958212 | D44: 0.007539
A45: 3. Заборгованість за позиками, одержаними від іноземних комерційних банків, інших іноземних фінансових установ | B45: =SUM(B$46:B$46) -> 5.996944e-05 | C45: 0.00155414331 | D45: 1e-06
A46: Chase Manhattan Bank Luxembourg S.A. | B46: 5.996944e-05 | C46: 0.00155414331 | D46: 1e-06
A47: 4. Заборгованість за випущеними цінними паперами на зовнішньому ринку | B47: =SUM(B$48:B$51) -> 19.04333 | C47: 493.5191135 | D47: 0.25037
A48: ОЗДП 2013 року | B48: 3 | C48: 77.746767 | D48: 0.039442
A49: ОЗДП 2014 року | B49: 1 | C49: 25.915589 | D49: 0.013147
A50: ОЗДП 2015 року | B50: 14.04333 | C50: 363.9411685 | D50: 0.184634
A51: ОЗДП 2016 року | B51: 1 | C51: 25.915589 | D51: 0.013147
A52: 5. Заборгованість, не віднесена до інших категорій | B52: =SUM(B$53:B$53) -> 1.728715559 | C52: 44.80068192 | D52: 0.022728
A53: Міжнародний Валютний Фонд | B53: 1.728715559 | C53: 44.80068192 | D53: 0.022728
A54: Гарантований державою борг | B54: =B$55+B$69 -> 12.01836434 | C54: 311.4629906 | D54: 0.158011
A55: Внутрішній борг | B55: =B$56+B$63+B$67 -> 0.7631523795 | C55: 19.77754341 | D55: 0.010032
A56: 1. Заборгованість за випущеними цінними паперами на внутрішньому ринку | B56: =SUM(B$57:B$62) -> 0.6154601232 | C56: 15.9500116 | D56: 0.008091
A57: Державні цінні папери | B57: 4.4761e-07 | C57: 1.16e-05 | D57: 0
A58: Облігації ДІУ (10 - річні) | B58: 0.03858681352 | C58: 1 | D58: 0.000507
A59: Облігації ДІУ (5 - річні) | B59: 0.1157604406 | C59: 3 | D59: 0.001522
A60: Облігації ДІУ (7 - річні) | B60: 0.1157604406 | C60: 3 | D60: 0.001522
A61: Облігації НАК "Нафтогаз України" (3 - річні) | B61: 0.1852167049 | C61: 4.8 | D61: 0.002435
A62: Облігації Укравтодору (5 - річні) | B62: 0.1601352761 | C62: 4.15 | D62: 0.002105
A63: 2. Заборгованість перед банківськими та іншими фінансовими установами | B63: =SUM(B$64:B$66) -> 0.1476554193 | C63: 3.826577161 | D63: 0.001941
A64: ВАТ "Державний експортно-імпортний банк України" | B64: 0.01211771285 | C64: 0.314037666 | D64: 0.000159
A65: ВАТ "Державний ощадний банк України" | B65: 0.1319384946 | C65: 3.419263799 | D65: 0.001735
A66: ПАТ АБ "Укргазбанк" | B66: 0.00359921186 | C66: 0.09327569528 | D66: 4.7e-05
A67: 3. Заборгованість, не віднесена до інших категорій | B67: =SUM(B$68:B$68) -> 3.68369e-05 | C67: 0.00095465 | D67: 0
A68: Інші кредитори | B68: 3.68369e-05 | C68: 0.00095465 | D68: 0
A69: Зовнішній борг | B69: =B$70+B$76+B$78+B$86+B$87 -> 11.25521196 | C69: 291.6854472 | D69: 0.147979
A70: 1. Заборгованість за позиками, одержаними від міжнародних фінансових організацій | B70: =SUM(B$71:B$75) -> 8.315091617 | C70: 215.4904968 | D70: 0.109323
A71: Європейське співтоватиство з атомної енергії | B71: 0.0668269693 | C71: 1.73186027 | D71: 0.000879
A72: Європейський банк реконструкції та розвитку | B72: 0.2901040535 | C72: 7.518217417 | D72: 0.003814
A73: Європейський Інвестиційний Банк | B73: 0.04105149954 | C73: 1.06387379 | D73: 0.00054
A74: Міжнародний банк реконструкції та розвитку | B74: 0.461615 | C74: 11.96302462 | D74: 0.006069
A75: Міжнародний Валютний Фонд | B75: 7.455494095 | C75: 193.2135207 | D75: 0.098021
A76: 2. Заборгованість за позиками, одержаними від органів управління іноземних держав | B76: =SUM(B$77:B$77) -> 0.09747785328 | C76: 2.526195982 | D76: 0.001282
A77: Канада | B77: 0.09747785328 | C77: 2.526195982 | D77: 0.001282
A78: 3. Заборгованість за позиками, одержаними від іноземних комерційних банків, інших іноземних фінансових установ | B78: =SUM(B$79:B$85) -> 2.727990627 | C78: 70.69748388 | D78: 0.035867
A79: Citibank, N.A., Deutsche Bank AG | B79: 0.4967942336 | C79: 12.87471518 | D79: 0.006532
A80: Deutsche Bank AG London | B80: 0.01640601991 | C80: 0.4251716691 | D80: 0.000216
A81: UniCredit Bank Austria AG | B81: 0.03489377439 | C81: 0.9042927157 | D81: 0.000459
A82: ВАТ "Газпромбанк" | B82: 0.5 | C82: 12.9577945 | D82: 0.006574
A83: Державний банк розвитку КНР | B83: 0.0527 | C83: 1.36575154 | D83: 0.000693
A84: Експортно-імпортний банк Китаю | B84: 1.513030974 | C84: 39.21108886 | D84: 0.019892
A85: Експортно-імпортний банк Кореї | B85: 0.114165625 | C85: 2.958669415 | D85: 0.001501
A86: 4. Заборгованість за випущеними цінними паперами на зовнішньому ринку
A87: 5. Заборгованість, не віднесена до інших категорій | B87: =SUM(B$88:B$88) -> 0.1146518606 | C87: 2.971270498 | D87: 0.001507
A88: Міжнародний Валютний Фонд | B88: 0.1146518606 | C88: 2.971270498 | D88: 0.001507

Sheet MKT2_UAH
A2: Державний та гарантований державою борг України за поточний рік
I4: =VALUAH -> млрд. грн
B5: 2016-12-31 | C5: 2017-01-31 | D5: 2017-02-28 | E5: 2017-03-31 | F5: 2017-04-30 | G5: 2017-05-31 | H5: 2017-06-30 | I5: 2017-07-31
A6: Загальна сума державного та гарантованого державою боргу | B6: =B$7+B$54 -> 1929.808832 | C6: 1931.105498 | D6: 1941.480573 | E6: 1951.851114 | F6: 1979.370176 | G6: 1968.039959 | H6: 1957.820677 | I6: 1971.153294
A7: Державний борг | B7: =B$8+B$31 -> 1650.833285 | C7: 1651.690045 | D7: 1665.935561 | E7: 1676.127493 | F7: 1672.922377 | G7: 1665.01564 | H7: 1651.059438 | I7: 1659.690304
A8: Внутрішній борг | B8: =B$9+B$29 -> 670.6455305 | C8: 670.6400111 | D8: 688.2966866 | E8: 699.6002593 | F8: 691.9842079 | G8: 687.5201143 | H8: 678.8832874 | I8: 689.4242723
A9: 1. Заборгованість за випущеними цінними паперами на внутрішньому ринку | B9: =SUM(B$10:B$28) -> 668.1327326 | C9: 668.1272131 | D9: 685.7838887 | E9: 697.1205245 | F9: 689.5044731 | G9: 685.0403795 | H9: 676.4366157 | I9: 686.9776006
A10: ОВДП (10 - річні) | B10: 74.832983 | C10: 74.832983 | D10: 81.319904 | E10: 81.319904 | F10: 81.319904 | G10: 81.319904 | H10: 81.319904 | I10: 81.319904
A11: ОВДП (11 - річні) | B11: 17.382981 | C11: 17.382981 | D11: 17.382981 | E11: 17.382981 | F11: 17.382981 | G11: 17.382981 | H11: 17.382981 | I11: 17.382981
A12: ОВДП (12 - місячні) | B12: 3.47757 | C12: 3.45757 | D12: 3.99197 | E12: 3.93636 | F12: 4.71486 | G12: 3.70886 | H12: 3.36279 | I12: 3.39429
A13: ОВДП (12 - річні) | B13: 28.5 | C13: 28.5 | D13: 28.5 | E13: 28.5 | F13: 28.5 | G13: 28.5 | H13: 28.5 | I13: 28.5
A14: ОВДП (13 - річні) | B14: 37.11763 | C14: 37.11763 | D14: 37.11763 | E14: 41.817631 | F14: 41.817631 | G14: 41.817631 | H14: 41.817631 | I14: 41.817631
A15: ОВДП (14 - річні) | B15: 51.25 | C15: 51.25 | D15: 56.15 | E15: 56.15 | F15: 56.15 | G15: 56.15 | H15: 56.15 | I15: 56.15
A16: ОВДП (15 - річні) | B16: 42.789838 | C16: 42.789838 | D16: 47.689838 | E16: 53.090798 | F16: 53.090798 | G16: 53.090798 | H16: 53.090798 | I16: 75.590793
A17: ОВДП (18 - місячні) | B17: 29.25796141 | C17: 29.18067935 | D17: 29.11034625 | E17: 29.02683188 | F17: 28.56994756 | G17: 28.35616889 | H17: 28.08309172 | I17: 15.32930413
A18: ОВДП (2 - річні) | B18: 64.35343953 | C18: 64.33258522 | D18: 64.48816773 | E18: 67.4175248 | F18: 66.60081855 | G18: 67.22255769 | H18: 66.78310088 | I18: 66.22423565
A19: ОВДП (3 - місячні) | B19: 0.01 | C19: 0.01 | D19: 0.01 | E19: 0 | F19: 0 | G19: 0 | H19: 0 | I19: 0
A20: ОВДП (3 - річні) | B20: 18.462385 | C20: 19.409305 | D20: 20.768255 | E20: 20.622125 | F20: 16.956588 | G20: 17.86015449 | H20: 19.29364489 | I20: 24.07202433
A21: ОВДП (4 - річні) | B21: 15.58553728 | C21: 15.57404576 | D21: 15.56358752 | E21: 15.55116928 | F21: 15.48323248 | G21: 11.235 | H21: 11.235 | I21: 11.235
A22: ОВДП (5 - річні) | B22: 151.5696514 | C22: 150.9532078 | D22: 150.8198212 | E22: 149.6248115 | F22: 147.4373245 | G22: 147.3142695 | H22: 139.9439212 | I22: 139.2994345
A23: ОВДП (6 - місячні) | B23: 0.215801 | C23: 0.01 | D23: 0.01 | E23: 0.01 | F23: 0.01 | G23: 0.645 | H23: 0.635 | I23: 0.635
A24: ОВДП (6 - річні) | B24: 24.1 | C24: 24.1 | D24: 22.85 | E24: 22.85 | F24: 22.85 | G24: 22.85 | H24: 22.85 | I24: 22.85
A25: ОВДП (7 - річні) | B25: 44.739791 | C25: 44.739791 | D25: 44.739791 | E25: 44.739791 | F25: 43.539791 | G25: 43.539791 | H25: 44.066091 | I25: 44.639341
A26: ОВДП (8 - річні) | B26: 27.416198 | C26: 27.416198 | D26: 27.416198 | E26: 27.416198 | F26: 27.416198 | G26: 26.382865 | H26: 24.258263 | I26: 21.158263
A27: ОВДП (9 - місячні) | B27: 0.196567 | C27: 0.196 | D27: 0.981 | E27: 0.79 | F27: 0.79 | G27: 0.79 | H27: 0.79 | I27: 0.505
A28: ОВДП (9 - річні) | B28: 36.874399 | C28: 36.874399 | D28: 36.874399 | E28: 36.874399 | F28: 36.874399 | G28: 36.874399 | H28: 36.874399 | I28: 36.874399
A29: 2. Заборгованість перед банківськими та іншими фінансовими установами | B29: =SUM(B$30:B$30) -> 2.512797928 | C29: 2.512797928 | D29: 2.512797928 | E29: 2.479734797 | F29: 2.479734797 | G29: 2.479734797 | H29: 2.446671666 | I29: 2.446671666
A30: Національний банк України | B30: 2.512797928 | C30: 2.512797928 | D30: 2.512797928 | E30: 2.479734797 | F30: 2.479734797 | G30: 2.479734797 | H30: 2.446671666 | I30: 2.446671666
A31: Зовнішній борг | B31: =B$32+B$39+B$45+B$47+B$52 -> 980.1877545 | C31: 981.0500337 | D31: 977.6388742 | E31: 976.5272341 | F31: 980.9381688 | G31: 977.4955253 | H31: 972.1761511 | I31: 970.2660315
A32: 1. Заборгованість за позиками, одержаними від міжнародних фінансових організацій | B32: =SUM(B$33:B$38) -> 371.8465755 | C32: 373.209225 | D32: 371.1236043 | E32: 371.6659696 | F32: 385.2357053 | G32: 385.5228595 | H32: 385.3954594 | I32: 386.4058193
A33: Європейське Співтовариство | B33: 62.81395484 | C33: 63.70885235 | D33: 63.29820783 | E33: 64.01086653 | F33: 81.18268716 | G33: 82.73752479 | H33: 83.70085742 | I33: 85.41386714
A34: Європейський банк реконструкції та розвитку | B34: 16.0723087 | C34: 16.53241549 | D34: 16.22666393 | E34: 16.3992311 | F34: 16.31678422 | G34: 15.92408972 | H34: 16.31471496 | I34: 16.65096404
A35: Європейський Інвестиційний Банк | B35: 14.52237776 | C35: 14.72927509 | D35: 15.0436734 | E35: 15.21304636 | F35: 15.17441155 | G35: 15.46503689 | H35: 15.64509998 | I35: 15.96529035
A36: Міжнародний банк реконструкції та розвитку | B36: 137.4605065 | C36: 136.1181227 | D36: 135.2918085 | E36: 134.8754237 | F36: 132.1655261 | G36: 130.6943497 | H36: 129.6743161 | I36: 127.6583971
A37: Міжнародний Валютний Фонд | B37: 140.9098527 | C37: 142.0531629 | D37: 141.1960166 | E37: 141.0983105 | F37: 140.3282924 | G37: 140.6290625 | H37: 139.9857662 | I37: 140.6365641
A38: Фонд чистих технологій (МБРР) | B38: 0.06757499901 | C38: 0.06739650623 | D38: 0.06723406295 | E38: 0.06909135625 | F38: 0.06800385358 | G38: 0.07279597184 | H38: 0.07470482739 | I38: 0.08073649949
A39: 2. Заборгованість за позиками, одержаними від органів управління іноземних держав | B39: =SUM(B$40:B$44) -> 45.64750416 | C39: 46.15063435 | D39: 46.34290275 | E39: 46.19803483 | F39: 45.37042495 | G39: 45.32822021 | H39: 45.17404719 | I39: 45.5388627
A40: Канада | B40: 8.0323876 | C40: 8.246452 | D40: 8.24875 | E40: 8.0905568 | F40: 7.8172592 | G40: 7.8266768 | H40: 8.0142012 | I40: 8.2643812
A41: Німеччина | B41: 5.983279353 | C41: 6.068521905 | D41: 6.029406379 | E41: 6.097289958 | F41: 6.081805378 | G41: 6.198286123 | H41: 6.386205674 | I41: 6.516904841
A42: Росія | B42: 16.47374066 | C42: 16.43022688 | D42: 16.39062572 | E42: 16.34360282 | F42: 16.08635339 | G42: 15.96598498 | H42: 15.81222845 | I42: 15.70111146
A43: США | B43: 0.2065714027 | C43: 0.2060257645 | D43: 0.2055291883 | E43: 0.2049395478 | F43: 0.2017137852 | G43: 0.2002044333 | H43: 0.1982764134 | I43: 0.196883069
A44: Японія | B44: 14.95152515 | C44: 15.1994078 | D44: 15.46859147 | E44: 15.46164571 | F44: 15.18329319 | G44: 15.13706787 | H44: 14.76313545 | I44: 14.85958212
A45: 3. Заборгованість за позиками, одержаними від іноземних комерційних банків, інших іноземних фінансових установ | B45: =SUM(B$46:B$46) -> 0.001453225 | C45: 0.0014739288 | D45: 0.00146442838 | E45: 0.00148091602 | F45: 0.00147715511 | G45: 0.00150544607 | H45: 0.00152297433 | I45: 0.00155414331
A46: Chase Manhattan Bank Luxembourg S.A. | B46: 0.001453225 | C46: 0.0014739288 | D46: 0.00146442838 | E46: 0.00148091602 | F46: 0.00147715511 | G46: 0.00150544607 | H46: 0.00152297433 | I46: 0.00155414331
A47: 4. Заборгованість за випущеними цінними паперами на зовнішньому ринку | B47: =SUM(B$48:B$51) -> 517.8044819 | C47: 516.4367518 | D47: 515.1920036 | E47: 513.7139746 | F47: 505.6280815 | G47: 501.8446479 | H47: 497.0117554 | I47: 493.5191135
A48: ОЗДП 2013 року | B48: 81.572574 | C48: 81.357108 | D48: 81.161016 | E48: 80.928174 | F48: 79.654359 | G48: 79.058334 | H48: 78.296982 | I48: 77.746767
A49: ОЗДП 2014 року | B49: 27.190858 | C49: 27.119036 | D49: 27.053672 | E49: 26.976058 | F49: 26.551453 | G49: 26.352778 | H49: 26.098994 | I49: 25.915589
A50: ОЗДП 2015 року | B50: 381.8501919 | C50: 380.8415718 | D50: 379.9236436 | E50: 378.8336846 | F50: 372.8708165 | G50: 370.0807579 | H50: 366.5167854 | I50: 363.9411685
A51: ОЗДП 2016 року | B51: 27.190858 | C51: 27.119036 | D51: 27.053672 | E51: 26.976058 | F51: 26.551453 | G51: 26.352778 | H51: 26.098994 | I51: 25.915589
A52: 5. Заборгованість, не віднесена до інших категорій | B52: =SUM(B$53:B$53) -> 44.88773975 | C52: 45.25194859 | D52: 44.9788991 | E52: 44.94777422 | F52: 44.70247999 | G52: 44.79829223 | H52: 44.59336605 | I52: 44.80068192
A53: Міжнародний Валютний Фонд | B53: 44.88773975 | C53: 45.25194859 | D53: 44.9788991 | E53: 44.94777422 | F53: 44.70247999 | G53: 44.79829223 | H53: 44.59336605 | I53: 44.80068192
A54: Гарантований державою борг | B54: =B$55+B$69 -> 278.9755473 | C54: 279.4154527 | D54: 275.5450119 | E54: 275.7236211 | F54: 306.447799 | G54: 303.0243192 | H54: 306.7612385 | I54: 311.4629906
A55: Внутрішній борг | B55: =B$56+B$63+B$67 -> 19.08447525 | C55: 19.05165624 | D55: 19.10706476 | E55: 19.31743004 | F55: 19.47617331 | G55: 19.57440491 | H55: 19.72136754 | I55: 19.77754341
A56: 1. Заборгованість за випущеними цінними паперами на внутрішньому ринку | B56: =SUM(B$57:B$62) -> 15.9500116 | C56: 15.9500116 | D56: 15.9500116 | E56: 15.9500116 | F56: 15.9500116 | G56: 15.9500116 | H56: 15.9500116 | I56: 15.9500116
A57: Державні цінні папери | B57: 1.16e-05 | C57: 1.16e-05 | D57: 1.16e-05 | E57: 1.16e-05 | F57: 1.16e-05 | G57: 1.16e-05 | H57: 1.16e-05 | I57: 1.16e-05
A58: Облігації ДІУ (10 - річні) | B58: 1 | C58: 1 | D58: 1 | E58: 1 | F58: 1 | G58: 1 | H58: 1 | I58: 1
A59: Облігації ДІУ (5 - річні) | B59: 3 | C59: 3 | D59: 3 | E59: 3 | F59: 3 | G59: 3 | H59: 3 | I59: 3
A60: Облігації ДІУ (7 - річні) | B60: 3 | C60: 3 | D60: 3 | E60: 3 | F60: 3 | G60: 3 | H60: 3 | I60: 3
A61: Облігації НАК "Нафтогаз України" (3 - річні) | B61: 4.8 | C61: 4.8 | D61: 4.8 | E61: 4.8 | F61: 4.8 | G61: 4.8 | H61: 4.8 | I61: 4.8
A62: Облігації Укравтодору (5 - річні) | B62: 4.15 | C62: 4.15 | D62: 4.15 | E62: 4.15 | F62: 4.15 | G62: 4.15 | H62: 4.15 | I62: 4.15
A63: 2. Заборгованість перед банківськими та іншими фінансовими установами | B63: =SUM(B$64:B$66) -> 3.133508998 | C63: 3.100689992 | D63: 3.156098505 | E63: 3.366463788 | F63: 3.52520706 | G63: 3.623438659 | H63: 3.770401292 | I63: 3.826577161
A64: ВАТ "Державний експортно-імпортний банк України" | B64: 0 | C64: 0 | D64: 0.03707292115 | E64: 0.1134704461 | F64: 0.1917701267 | G64: 0.2475387402 | H64: 0.2781835844 | I64: 0.314037666
A65: ВАТ "Державний ощадний банк України" | B65: 3.021712318 | C65: 2.998100726 | D65: 3.016436318 | E65: 3.150404076 | F65: 3.236327973 | G65: 3.278790958 | H65: 3.395108747 | I65: 3.419263799
A66: ПАТ АБ "Укргазбанк" | B66: 0.1117966802 | C66: 0.1025892659 | D66: 0.1025892659 | E66: 0.1025892659 | F66: 0.09710896056 | G66: 0.09710896056 | H66: 0.09710896056 | I66: 0.09327569528
A67: 3. Заборгованість, не віднесена до інших категорій | B67: =SUM(B$68:B$68) -> 0.00095465 | C67: 0.00095465 | D67: 0.00095465 | E67: 0.00095465 | F67: 0.00095465 | G67: 0.00095465 | H67: 0.00095465 | I67: 0.00095465
A68: Інші кредитори | B68: 0.00095465 | C68: 0.00095465 | D68: 0.00095465 | E68: 0.00095465 | F68: 0.00095465 | G68: 0.00095465 | H68: 0.00095465 | I68: 0.00095465
A69: Зовнішній борг | B69: =B$70+B$76+B$78+B$86+B$87 -> 259.8910721 | C69: 260.3637965 | D69: 256.4379471 | E69: 256.406191 | F69: 286.9716257 | G69: 283.4499143 | H69: 287.0398709 | I69: 291.6854472
A70: 1. Заборгованість за позиками, одержаними від міжнародних фінансових організацій | B70: =SUM(B$71:B$75) -> 190.9827472 | C70: 192.5914912 | D70: 188.8454318 | E70: 189.1048365 | F70: 214.4627368 | G70: 211.0944886 | H70: 209.9813671 | I70: 215.4904968
A71: Європейське співтоватиство з атомної енергії | B71: 0.2958517627 | C71: 0.2978783374 | D71: 0.2964798414 | E71: 0.2415162408 | F71: 0.2084620953 | G71: 1.682101253 | H71: 1.699663846 | I71: 1.73186027
A72: Європейський банк реконструкції та розвитку | B72: 10.56222871 | C72: 10.78154354 | D72: 7.973583883 | E72: 8.297228754 | F72: 8.196551775 | G72: 3.013796512 | H72: 2.872056711 | I72: 7.518217417
A73: Європейський Інвестиційний Банк | B73: 0.99479114 | C73: 1.008963725 | D73: 1.002460305 | E73: 1.013746755 | F73: 1.01117226 | G73: 1.030538565 | H73: 1.04253737 | I73: 1.06387379
A74: Міжнародний банк реконструкції та розвитку | B74: 12.37301899 | C74: 12.39322211 | D74: 12.47739647 | E74: 12.57246159 | F74: 12.25654898 | G74: 12.16483762 | H74: 12.04768712 | I74: 11.96302462
A75: Міжнародний Валютний Фонд | B75: 166.7568566 | C75: 168.1098835 | D75: 167.0955113 | E75: 166.9798831 | F75: 192.7900017 | G75: 193.2032147 | H75: 192.3194221 | I75: 193.2135207
A76: 2. Заборгованість за позиками, одержаними від органів управління іноземних держав | B76: =SUM(B$77:B$77) -> 3.975759701 | C76: 3.304381766 | D76: 3.296417338 | E76: 3.28696028 | F76: 3.2352233 | G76: 3.211015285 | H76: 3.180092385 | I76: 2.526195982
A77: Канада | B77: 3.975759701 | C77: 3.304381766 | D77: 3.296417338 | E77: 3.28696028 | F77: 3.2352233 | G77: 3.211015285 | H77: 3.180092385 | I77: 2.526195982
A78: 3. Заборгованість за позиками, одержаними від іноземних комерційних банків, інших іноземних фінансових установ | B78: =SUM(B$79:B$85) -> 61.95552088 | C78: 61.46672412 | D78: 61.31300774 | E78: 61.03336834 | F78: 66.30890802 | G78: 66.17329837 | H78: 70.92089052 | I78: 70.69748388
A79: Citibank, N.A., Deutsche Bank AG | B79: 0 | C79: 0 | D79: 0 | E79: 0 | F79: 6.390260578 | G79: 7.099232725 | H79: 12.38488553 | I79: 12.87471518
A80: Deutsche Bank AG London | B80: 0.3881279224 | C80: 0.3990226513 | D80: 0.3964506938 | E80: 0.400914233 | F80: 0.4007000463 | G80: 0.4083743859 | H80: 0.4166446789 | I80: 0.4251716691
A81: UniCredit Bank Austria AG | B81: 0.96636853 | C81: 0.980136184 | D81: 0.973818576 | E81: 0.8616847362 | F81: 0.8594964155 | G81: 0.8759577747 | H81: 0.8861567588 | I81: 0.9042927157
A82: ВАТ "Газпромбанк" | B82: 13.595429 | C82: 13.559518 | D82: 13.526836 | E82: 13.488029 | F82: 13.2757265 | G82: 13.176389 | H82: 13.049497 | I82: 12.9577945
A83: Державний банк розвитку КНР | B83: 1.608611159 | C83: 1.60436217 | D83: 1.600495236 | E83: 1.595903591 | F83: 1.399261573 | G83: 1.388791401 | H83: 1.375416984 | I83: 1.36575154
A84: Експортно-імпортний банк Китаю | B84: 41.84925707 | C84: 41.38532889 | D84: 41.28557938 | E84: 41.16713561 | F84: 40.51916207 | G84: 40.21597172 | H84: 39.82868161 | I84: 39.21108886
A85: Експортно-імпортний банк Кореї | B85: 3.547727198 | C85: 3.538356222 | D85: 3.529827854 | E85: 3.519701168 | F85: 3.46430083 | G85: 3.008581371 | H85: 2.979607962 | I85: 2.958669415
A86: 4. Заборгованість за випущеними цінними паперами на зовнішньому ринку
A87: 5. Заборгованість, не віднесена до інших категорій | B87: =SUM(B$88:B$88) -> 2.977044347 | C87: 3.001199403 | D87: 2.983090217 | E87: 2.981025952 | F87: 2.96475755 | G87: 2.971112009 | H87: 2.957520896 | I87: 2.971270498
A88: Міжнародний Валютний Фонд | B88: 2.977044347 | C88: 3.001199403 | D88: 2.983090217 | E88: 2.981025952 | F88: 2.96475755 | G88: 2.971112009 | H88: 2.957520896 | I88: 2.971270498

Sheet MKT2_USD
A2: Державний та гарантований державою борг України за поточний рік
I4: =VALUSD -> млрд. дол. США
B5: 2016-12-31 | C5: 2017-01-31 | D5: 2017-02-28 | E5: 2017-03-31 | F5: 2017-04-30 | G5: 2017-05-31 | H5: 2017-06-30 | I5: 2017-07-31
A6: Загальна сума державного та гарантованого державою боргу | B6: =B$7+B$54 -> 70.97270827 | C6: 71.20848608 | D6: 71.76403161 | E6: 72.35494209 | F6: 74.54846918 | G6: 74.68055014 | H6: 75.01517786 | I6: 76.06052459
A7: Державний борг | B7: =B$8+B$31 -> 60.71280594 | C7: 60.90519017 | D7: 61.57890732 | E7: 62.13389271 | F7: 63.00681084 | G7: 63.18178826 | H7: 63.26142067 | I7: 64.04216025
A8: Внутрішній борг | B8: =B$9+B$29 -> 24.66437545 | C8: 24.729493 | D8: 25.44189516 | E8: 25.93411755 | F8: 26.06200903 | G8: 26.08909445 | H8: 26.01185653 | I8: 26.60268583
A9: 1. Заборгованість за випущеними цінними паперами на внутрішньому ринку | B9: =SUM(B$10:B$28) -> 24.57196211 | C9: 24.63683492 | D9: 25.3490132 | E9: 25.84219401 | F9: 25.96861547 | G9: 25.99499679 | H9: 25.9181107 | I9: 26.50827657
A10: ОВДП (10 - річні) | B10: 2.752137612 | C10: 2.759426368 | D10: 3.005873066 | E10: 3.014521395 | F10: 3.062728959 | G10: 3.085819036 | H10: 3.115825231 | I10: 3.137875971
A11: ОВДП (11 - річні) | B11: 0.6392950528 | C11: 0.6409881605 | D11: 0.6425368431 | E11: 0.644385514 | F11: 0.6546903855 | G11: 0.6596261313 | H11: 0.6660402696 | I11: 0.6707538463
A12: ОВДП (12 - місячні) | B12: 0.1278948241 | C12: 0.1274960511 | D12: 0.1475574185 | E12: 0.1459205048 | F12: 0.1775744627 | G12: 0.1407388625 | H12: 0.128847495 | I12: 0.1309748353
A13: ОВДП (12 - річні) | B13: 1.048146403 | C13: 1.050922312 | D13: 1.05346143 | E13: 1.05649239 | F13: 1.073387584 | G13: 1.081479911 | H13: 1.091996113 | I13: 1.099724185
A14: ОВДП (13 - річні) | B14: 1.365077557 | C14: 1.368692825 | D14: 1.371999705 | E14: 1.550175752 | F14: 1.574965822 | G14: 1.586839573 | H14: 1.602269842 | I14: 1.613609129
A15: ОВДП (14 - річні) | B15: 1.884824672 | C15: 1.889816437 | D15: 2.075503835 | E15: 2.081475359 | F15: 2.114761855 | G15: 2.130705158 | H15: 2.151423921 | I15: 2.166649579
A16: ОВДП (15 - річні) | B16: 1.573684729 | C16: 1.577852472 | D16: 1.762786139 | E16: 1.968071021 | F16: 1.99954398 | G16: 2.014618649 | H16: 2.034208598 | I16: 2.916807833
A17: ОВДП (18 - місячні) | B17: 1.076022 | C17: 1.076022 | D17: 1.076022 | E17: 1.076022 | F17: 1.076022 | G17: 1.076022 | H17: 1.076022 | I17: 0.591509
A18: ОВДП (2 - річні) | B18: 2.366730742 | C18: 2.372229795 | D18: 2.38371219 | E18: 2.499161471 | F18: 2.508368131 | G18: 2.550871779 | H18: 2.558838125 | I18: 2.555382231
A19: ОВДП (3 - місячні) | B19: 0.00036777067 | C19: 0.00036874467 | D19: 0.00036963559 | E19: 0 | F19: 0 | G19: 0 | H19: 0 | I19: 0
A20: ОВДП (3 - річні) | B20: 0.6789923657 | C20: 0.7157077781 | D20: 0.7676686181 | E20: 0.7644602855 | F20: 0.6386312643 | G20: 0.6777332732 | H20: 0.7392486044 | I20: 0.9288627137
A21: ОВДП (4 - річні) | B21: 0.5731903451 | C21: 0.5742846376 | D21: 0.5752855849 | E21: 0.5764804213 | F21: 0.5831406846 | G21: 0.4263307648 | H21: 0.4304763624 | I21: 0.4335228499
A22: ОВДП (5 - річні) | B22: 5.574287189 | C22: 5.56631909 | D22: 5.574837353 | E22: 5.546578063 | F22: 5.552891003 | G22: 5.590085017 | H22: 5.362042737 | I22: 5.375121303
A23: ОВДП (6 - місячні) | B23: 0.00793652779 | C23: 0.00036874467 | D23: 0.00036963559 | E23: 0.00037069908 | F23: 0.00037662722 | G23: 0.02447559799 | H23: 0.02433043971 | I23: 0.02450262658
A24: ОВДП (6 - річні) | B24: 0.886327309 | C24: 0.8886746564 | D24: 0.8446173222 | E24: 0.8470474077 | F24: 0.8605932037 | G24: 0.8670812618 | H24: 0.875512673 | I24: 0.8817086889
A25: ОВДП (7 - річні) | B25: 1.645398281 | C25: 1.64975595 | D25: 1.653741902 | E25: 1.658499956 | F25: 1.639827056 | G25: 1.6521898 | H25: 1.688421056 | I25: 1.722489927
A26: ОВДП (8 - річні) | B26: 1.008287344 | C26: 1.01095769 | D26: 1.013400251 | E26: 1.01631595 | F26: 1.032568651 | G26: 1.001141701 | H26: 0.9294711896 | I26: 0.8164299488
A27: ОВДП (9 - місячні) | B27: 0.00722915769 | C27: 0.00722739555 | D27: 0.03626125134 | E27: 0.02928522766 | F27: 0.02975355058 | G27: 0.0299778642 | H27: 0.03026936594 | I27: 0.01948634083
A28: ОВДП (9 - річні) | B28: 1.356132234 | C28: 1.359723812 | D28: 1.363009021 | E28: 1.366930595 | F28: 1.388790248 | G28: 1.399260412 | H28: 1.41286668 | I28: 1.422865558
A29: 2. Заборгованість перед банківськими та іншими фінансовими установами | B29: =SUM(B$30:B$30) -> 0.09241333715 | C29: 0.09265808444 | D29: 0.09288195435 | E29: 0.09192354187 | F29: 0.09339356294 | G29: 0.094097662 | H29: 0.09374582278 | I29: 0.09440926333
A30: Національний банк України | B30: 0.09241333715 | C30: 0.09265808444 | D30: 0.09288195435 | E30: 0.09192354187 | F30: 0.09339356294 | G30: 0.094097662 | H30: 0.09374582278 | I30: 0.09440926333
A31: Зовнішній борг | B31: =B$32+B$39+B$45+B$47+B$52 -> 36.04843049 | C31: 36.17569716 | D31: 36.13701216 | E31: 36.19977515 | F31: 36.94480181 | G31: 37.09269381 | H31: 37.24956414 | I31: 37.43947442
A32: 1. Заборгованість за позиками, одержаними від міжнародних фінансових організацій | B32: =SUM(B$33:B$38) -> 13.67542633 | C32: 13.76189128 | D32: 13.71804923 | E32: 13.77762346 | F32: 14.50902537 | G32: 14.62930624 | H32: 14.76667873 | I32: 14.91016929
A33: Європейське Співтовариство | B33: 2.310113011 | C33: 2.349229978 | D33: 2.339727037 | E33: 2.372876961 | F33: 3.057560999 | G33: 3.139613015 | H33: 3.207053016 | I33: 3.295848963
A34: Європейський банк реконструкції та розвитку | B34: 0.59109237 | C34: 0.6096240107 | D34: 0.5997952489 | E34: 0.6079179954 | F34: 0.6145345121 | G34: 0.6042660746 | H34: 0.6251089587 | I34: 0.6425076445
A35: Європейський Інвестиційний Банк | B35: 0.5340904563 | C35: 0.5431341693 | D35: 0.5560677086 | E35: 0.5639462355 | F35: 0.5715096476 | G35: 0.5868465514 | H35: 0.5994522234 | I35: 0.6160496815
A36: Міжнародний банк реконструкції та розвитку | B36: 5.055394225 | C36: 5.019283232 | D36: 5.000866739 | E36: 4.999819605 | F36: 4.977713502 | G36: 4.959414512 | H36: 4.96855611 | I36: 4.925930764
A37: Міжнародний Валютний Фонд | B37: 5.18225106 | C37: 5.238134679 | D37: 5.219107284 | E37: 5.230501452 | F37: 5.285145503 | G37: 5.336403718 | H37: 5.363646053 | I37: 5.426716873
A38: Фонд чистих технологій (МБРР) | B38: 0.00248521025 | C38: 0.00248521025 | D38: 0.00248521025 | E38: 0.00256121025 | F38: 0.00256121025 | G38: 0.00276236425 | H38: 0.00286236425 | I38: 0.00311536425
A39: 2. Заборгованість за позиками, одержаними від органів управління іноземних держав | B39: =SUM(B$40:B$44) -> 1.678781308 | C39: 1.701780047 | D39: 1.712998618 | E39: 1.712556921 | F39: 1.708773714 | G39: 1.720054721 | H39: 1.730873121 | I39: 1.757199603
A40: Канада | B40: 0.295407655 | C40: 0.3040835227 | D40: 0.304903157 | E40: 0.2999161998 | F40: 0.2944192621 | G40: 0.2969962711 | H40: 0.3070693529 | I40: 0.3188961362
A41: Німеччина | B41: 0.2200474642 | C41: 0.2237735111 | D41: 0.2228683182 | E41: 0.2260259804 | F41: 0.2290573468 | G41: 0.235204278 | H41: 0.2446916411 | I41: 0.2514665918
A42: Росія | B42: 0.60585586 | C42: 0.60585586 | D42: 0.60585586 | E42: 0.60585586 | F42: 0.60585586 | G42: 0.60585586 | H42: 0.60585586 | I42: 0.60585586
A43: США | B43: 0.00759709027 | C43: 0.00759709027 | D43: 0.00759709027 | E43: 0.00759709027 | F43: 0.00759709027 | G43: 0.00759709027 | H43: 0.00759709027 | I43: 0.00759709027
A44: Японія | B44: 0.5498732387 | C44: 0.5604700626 | D44: 0.5717741927 | E44: 0.5731617906 | F44: 0.5718441546 | G44: 0.5744012215 | H44: 0.5656591763 | I44: 0.5733839244
A45: 3. Заборгованість за позиками, одержаними від іноземних комерційних банків, інших іноземних фінансових установ | B45: =SUM(B$46:B$46) -> 5.344535e-05 | C45: 5.435034e-05 | D45: 5.413048e-05 | E45: 5.489742e-05 | F45: 5.563368e-05 | G45: 5.712666e-05 | H45: 5.835376e-05 | I45: 5.996944e-05
A46: Chase Manhattan Bank Luxembourg S.A. | B46: 5.344535e-05 | C46: 5.435034e-05 | D46: 5.413048e-05 | E46: 5.489742e-05 | F46: 5.563368e-05 | G46: 5.712666e-05 | H46: 5.835376e-05 | I46: 5.996944e-05
A47: 4. Заборгованість за випущеними цінними паперами на зовнішньому ринку | B47: =SUM(B$48:B$51) -> 19.04333 | C47: 19.04333 | D47: 19.04333 | E47: 19.04333 | F47: 19.04333 | G47: 19.04333 | H47: 19.04333 | I47: 19.04333
A48: ОЗДП 2013 року | B48: 3 | C48: 3 | D48: 3 | E48: 3 | F48: 3 | G48: 3 | H48: 3 | I48: 3
A49: ОЗДП 2014 року | B49: 1 | C49: 1 | D49: 1 | E49: 1 | F49: 1 | G49: 1 | H49: 1 | I49: 1
A50: ОЗДП 2015 року | B50: 14.04333 | C50: 14.04333 | D50: 14.04333 | E50: 14.04333 | F50: 14.04333 | G50: 14.04333 | H50: 14.04333 | I50: 14.04333
A51: ОЗДП 2016 року | B51: 1 | C51: 1 | D51: 1 | E51: 1 | F51: 1 | G51: 1 | H51: 1 | I51: 1
A52: 5. Заборгованість, не віднесена до інших категорій | B52: =SUM(B$53:B$53) -> 1.650839402 | C52: 1.668641488 | D52: 1.662580189 | E52: 1.666209875 | F52: 1.683617088 | G52: 1.699945722 | H52: 1.708623943 | I52: 1.728715559
A53: Міжнародний Валютний Фонд | B53: 1.650839402 | C53: 1.668641488 | D53: 1.662580189 | E53: 1.666209875 | F53: 1.683617088 | G53: 1.699945722 | H53: 1.708623943 | I53: 1.728715559
A54: Гарантований державою борг | B54: =B$55+B$69 -> 10.25990233 | C54: 10.30329591 | D54: 10.18512429 | E54: 10.22104939 | F54: 11.54165834 | G54: 11.49876188 | H54: 11.75375719 | I54: 12.01836434
A55: Внутрішній борг | B55: =B$56+B$63+B$67 -> 0.7018710203 | C55: 0.7025196707 | D55: 0.7062651146 | E55: 0.7160953627 | F55: 0.7335257061 | G55: 0.742783357 | H55: 0.7556370771 | I55: 0.7631523795
A56: 1. Заборгованість за випущеними цінними паперами на внутрішньому ринку | B56: =SUM(B$57:B$62) -> 0.5865946415 | C56: 0.5881481775 | D56: 0.5895691942 | E56: 0.5912654696 | F56: 0.6007208569 | G56: 0.6052497236 | H56: 0.6111351112 | I56: 0.6154601232
A57: Державні цінні папери | B57: 4.2661e-07 | C57: 4.2774e-07 | D57: 4.2878e-07 | E57: 4.3001e-07 | F57: 4.3689e-07 | G57: 4.4018e-07 | H57: 4.4446e-07 | I57: 4.4761e-07
A58: Облігації ДІУ (10 - річні) | B58: 0.03677706676 | C58: 0.03687446707 | D58: 0.03696355896 | E58: 0.03706990844 | F58: 0.03766272226 | G58: 0.03794666354 | H58: 0.03831565309 | I58: 0.03858681352
A59: Облігації ДІУ (5 - річні) | B59: 0.1103312003 | C59: 0.1106234012 | D59: 0.1108906769 | E59: 0.1112097253 | F59: 0.1129881668 | G59: 0.1138399906 | H59: 0.1149469593 | I59: 0.1157604406
A60: Облігації ДІУ (7 - річні) | B60: 0.1103312003 | C60: 0.1106234012 | D60: 0.1108906769 | E60: 0.1112097253 | F60: 0.1129881668 | G60: 0.1138399906 | H60: 0.1149469593 | I60: 0.1157604406
A61: Облігації НАК "Нафтогаз України" (3 - річні) | B61: 0.1765299205 | C61: 0.1769974419 | D61: 0.177425083 | E61: 0.1779355605 | F61: 0.1807810669 | G61: 0.182143985 | H61: 0.1839151348 | I61: 0.1852167049
A62: Облігації Укравтодору (5 - річні) | B62: 0.1526248271 | C62: 0.1530290384 | D62: 0.1533987697 | E62: 0.15384012 | F62: 0.1563002974 | G62: 0.1574786537 | H62: 0.1590099603 | I62: 0.1601352761
A63: 2. Заборгованість перед банківськими та іншими фінансовими установами | B63: =SUM(B$64:B$66) -> 0.1152412696 | C63: 0.114336291 | D63: 0.1166606332 | E63: 0.1247945044 | F63: 0.1327688944 | G63: 0.1374974076 | H63: 0.1444653879 | I63: 0.1476554193
A64: ВАТ "Державний експортно-імпортний банк України" | B64: 0 | C64: 0 | D64: 0.0013703471 | E64: 0.00420633904 | F64: 0.00722258502 | G64: 0.00939326928 | H64: 0.01065878571 | I64: 0.01211771285
A65: ВАТ "Державний ощадний банк України" | B65: 0.1111297157 | C65: 0.1105533665 | D65: 0.1114982217 | E65: 0.1167851906 | F65: 0.1218889216 | G65: 0.1244191773 | H65: 0.1300858089 | I65: 0.1319384946
A66: ПАТ АБ "Укргазбанк" | B66: 0.00411155398 | C66: 0.0037829245 | D66: 0.00379206438 | E66: 0.00380297469 | F66: 0.00365738781 | G66: 0.00368496105 | H66: 0.00372079324 | I66: 0.00359921186
A67: 3. Заборгованість, не віднесена до інших категорій | B67: =SUM(B$68:B$68) -> 3.510923e-05 | C67: 3.520221e-05 | D67: 3.528726e-05 | E67: 3.538879e-05 | F67: 3.595472e-05 | G67: 3.622578e-05 | H67: 3.657804e-05 | I67: 3.68369e-05
A68: Інші кредитори | B68: 3.510923e-05 | C68: 3.520221e-05 | D68: 3.528726e-05 | E68: 3.538879e-05 | F68: 3.595472e-05 | G68: 3.622578e-05 | H68: 3.657804e-05 | I68: 3.68369e-05
A69: Зовнішній борг | B69: =B$70+B$76+B$78+B$86+B$87 -> 9.55803131 | C69: 9.600776241 | D69: 9.478859178 | E69: 9.504954024 | F69: 10.80813264 | G69: 10.75597853 | H69: 10.99812012 | I69: 11.25521196
A70: 1. Заборгованість за позиками, одержаними від міжнародних фінансових організацій | B70: =SUM(B$71:B$75) -> 7.023785243 | C70: 7.101708601 | D70: 6.980399254 | E70: 7.010098973 | F70: 8.077250493 | G70: 8.010331533 | H70: 8.045573218 | I70: 8.315091617
A71: Європейське співтоватиство з атомної енергії | B71: 0.01088056003 | C71: 0.01098410494 | D71: 0.0109589501 | E71: 0.00895298493 | F71: 0.00785125 | G71: 0.06383013029 | H71: 0.0651237303 | I71: 0.0668269693
A72: Європейський банк реконструкції та розвитку | B72: 0.3884477904 | C72: 0.3975636722 | D72: 0.294732038 | E72: 0.3075775102 | F72: 0.308704453 | G72: 0.1143635222 | H72: 0.1100447286 | I72: 0.2901040535
A73: Європейський Інвестиційний Банк | B73: 0.03658550017 | C73: 0.03720499965 | D73: 0.03705450059 | E73: 0.03757949938 | F73: 0.03808349999 | G73: 0.03910550019 | H73: 0.0399455002 | I73: 0.04105149954
A74: Міжнародний банк реконструкції та розвитку | B74: 0.4550433454 | C74: 0.4569934608 | D74: 0.4612089801 | E74: 0.46606 | F74: 0.461615 | G74: 0.461615 | H74: 0.461615 | I74: 0.461615
A75: Міжнародний Валютний Фонд | B75: 6.132828047 | C75: 6.198962364 | D75: 6.176444785 | E75: 6.189928979 | F75: 7.26099629 | G75: 7.33141738 | H75: 7.368844258 | I75: 7.455494095
A76: 2. Заборгованість за позиками, одержаними від органів управління іноземних держав | B76: =SUM(B$77:B$77) -> 0.14621678 | C76: 0.1218473166 | D76: 0.1218473166 | E76: 0.1218473166 | F76: 0.1218473166 | G76: 0.1218473166 | H76: 0.1218473166 | I76: 0.09747785328
A77: Канада | B77: 0.14621678 | C77: 0.1218473166 | D77: 0.1218473166 | E77: 0.1218473166 | F77: 0.1218473166 | G77: 0.1218473166 | H77: 0.1218473166 | I77: 0.09747785328
A78: 3. Заборгованість за позиками, одержаними від іноземних комерційних банків, інших іноземних фінансових установ | B78: =SUM(B$79:B$85) -> 2.278542328 | C78: 2.266552695 | D78: 2.266346976 | E78: 2.262501376 | F78: 2.497373986 | G78: 2.511055888 | H78: 2.717380238 | I78: 2.727990627
A79: Citibank, N.A., Deutsche Bank AG | B79: 0 | C79: 0 | D79: 0 | E79: 0 | F79: 0.2406746093 | G79: 0.2693921956 | H79: 0.4745349774 | I79: 0.4967942336
A80: Deutsche Bank AG London | B80: 0.01427420651 | C80: 0.01471374762 | D80: 0.01465422859 | E80: 0.01486185391 | F80: 0.01509145455 | G80: 0.01549644542 | H80: 0.01596401298 | I80: 0.01640601991
A81: UniCredit Bank Austria AG | B81: 0.03554019995 | C81: 0.03614199944 | D81: 0.03599580035 | E81: 0.03194257427 | F81: 0.03237097478 | G81: 0.03323967495 | H81: 0.03395367495 | I81: 0.03489377439
A82: ВАТ "Газпромбанк" | B82: 0.5 | C82: 0.5 | D82: 0.5 | E82: 0.5 | F82: 0.5 | G82: 0.5 | H82: 0.5 | I82: 0.5
A83: Державний банк розвитку КНР | B83: 0.05916 | C83: 0.05916 | D83: 0.05916 | E83: 0.05916 | F83: 0.0527 | G83: 0.0527 | H83: 0.0527 | I83: 0.0527
A84: Експортно-імпортний банк Китаю | B84: 1.539092921 | C84: 1.526061947 | D84: 1.526061947 | E84: 1.526061947 | F84: 1.526061947 | G84: 1.526061947 | H84: 1.526061947 | I84: 1.513030974
A85: Експортно-імпортний банк Кореї | B85: 0.130475 | C85: 0.130475 | D85: 0.130475 | E85: 0.130475 | F85: 0.130475 | G85: 0.114165625 | H85: 0.114165625 | I85: 0.114165625
A86: 4. Заборгованість за випущеними цінними паперами на зовнішньому ринку
A87: 5. Заборгованість, не віднесена до інших категорій | B87: =SUM(B$88:B$88) -> 0.1094869587 | C87: 0.1106676285 | D87: 0.1102656311 | E87: 0.1105063591 | F87: 0.1116608402 | G87: 0.1127437877 | H87: 0.1133193447 | I87: 0.1146518606
A88: Міжнародний Валютний Фонд | B88: 0.1094869587 | C88: 0.1106676285 | D88: 0.1102656311 | E88: 0.1105063591 | F88: 0.1116608402 | G88: 0.1127437877 | H88: 0.1133193447 | I88: 0.1146518606

Sheet MT_ALL (hidden)
A2: Державний та гарантований державою борг України за поточний рік
A4: =$A$2 & " (" &I4 & ")" -> Державний та гарантований державою борг України за поточний рік (млрд. грн) | I4: =VALUAH -> млрд. грн
B5: 2016-12-31 | C5: 2017-01-31 | D5: 2017-02-28 | E5: 2017-03-31 | F5: 2017-04-30 | G5: 2017-05-31 | H5: 2017-06-30 | I5: 2017-07-31
A6: Загальна сума державного та гарантованого державою боргу | B6: =SUM(B7:B8) -> 1929.808832 | C6: 1931.105498 | D6: 1941.480573 | E6: 1951.851114 | F6: 1979.370176 | G6: 1968.039959 | H6: 1957.820677 | I6: 1971.153294
A7: Внутрішній борг | B7: 689.7300058 | C7: 689.6916673 | D7: 707.4037514 | E7: 718.9176893 | F7: 711.4603812 | G7: 707.0945192 | H7: 698.6046549 | I7: 709.2018157
A8: Зовнішній борг | B8: 1240.078827 | C8: 1241.41383 | D8: 1234.076821 | E8: 1232.933425 | F8: 1267.909795 | G8: 1260.94544 | H8: 1259.216022 | I8: 1261.951479
A10: =$A$2 & " (" &I10 & ")" -> Державний та гарантований державою борг України за поточний рік (млрд. дол. США) | I10: =VALUSD -> млрд. дол. США
B11: 2016-12-31 | C11: 2017-01-31 | D11: 2017-02-28 | E11: 2017-03-31 | F11: 2017-04-30 | G11: 2017-05-31 | H11: 2017-06-30 | I11: 2017-07-31
A12: Загальна сума державного та гарантованого державою боргу | B12: =SUM(B13:B14) -> 70.97270827 | C12: 71.20848608 | D12: 71.76403161 | E12: 72.35494209 | F12: 74.54846918 | G12: 74.68055014 | H12: 75.01517786 | I12: 76.06052459
A13: Внутрішній борг | B13: 25.36624647 | C13: 25.43201268 | D13: 26.14816027 | E13: 26.65021292 | F13: 26.79553474 | G13: 26.83187781 | H13: 26.7674936 | I13: 27.36583821
A14: Зовнішній борг | B14: 45.6064618 | C14: 45.77647341 | D14: 45.61587134 | E14: 45.70472918 | F14: 47.75293444 | G14: 47.84867233 | H14: 48.24768426 | I14: 48.69468638
I16: %%
B17: 2016-12-31 | C17: 2017-01-31 | D17: 2017-02-28 | E17: 2017-03-31 | F17: 2017-04-30 | G17: 2017-05-31 | H17: 2017-06-30 | I17: 2017-07-31
A18: Загальна сума державного та гарантованого державою боргу | B18: =SUM(B19:B20) -> 1 | C18: 1 | D18: 1 | E18: 1 | F18: 1 | G18: 1 | H18: 1 | I18: 1
A19: Внутрішній борг | B19: 0.357408 | C19: 0.357149 | D19: 0.364363 | E19: 0.368326 | F19: 0.359438 | G19: 0.359289 | H19: 0.356828 | I19: 0.35979
A20: Зовнішній борг | B20: 0.642592 | C20: 0.642851 | D20: 0.635637 | E20: 0.631674 | F20: 0.640562 | G20: 0.640711 | H20: 0.643172 | I20: 0.64021

Sheet MTM_ALL (hidden)
A2: Державний та гарантований державою борг України за поточний рік
I4: млрд. грн.
B5: =MT_ALL!B5 -> 2016-12-31 | C5: =MT_ALL!C5 -> 2017-01-31 | D5: =MT_ALL!D5 -> 2017-02-28 | E5: =MT_ALL!E5 -> 2017-03-31 | F5: =MT_ALL!F5 -> 2017-04-30 | G5: =MT_ALL!G5 -> 2017-05-31 | H5: =MT_ALL!H5 -> 2017-06-30 | I5: =MT_ALL!I5 -> 2017-07-31
A6: =MT_ALL!A6 -> Загальна сума державного та гарантованого державою боргу | B6: =SUM(B7:B8) -> 1929.808832 | C6: 1931.105498 | D6: 1941.480573 | E6: 1951.851114 | F6: 1979.370176 | G6: 1968.039959 | H6: 1957.820677 | I6: 1971.153294
A7: =MT_ALL!A7 -> Внутрішній борг | B7: =MT_ALL!B7/DMLMLR -> 689.7300058 | C7: =MT_ALL!C7/DMLMLR -> 689.6916673 | D7: =MT_ALL!D7/DMLMLR -> 707.4037514 | E7: =MT_ALL!E7/DMLMLR -> 718.9176893 | F7: =MT_ALL!F7/DMLMLR -> 711.4603812 | G7: =MT_ALL!G7/DMLMLR -> 707.0945192 | H7: =MT_ALL!H7/DMLMLR -> 698.6046549 | I7: =MT_ALL!I7/DMLMLR -> 709.2018157
A8: =MT_ALL!A8 -> Зовнішній борг | B8: =MT_ALL!B8/DMLMLR -> 1240.078827 | C8: =MT_ALL!C8/DMLMLR -> 1241.41383 | D8: =MT_ALL!D8/DMLMLR -> 1234.076821 | E8: =MT_ALL!E8/DMLMLR -> 1232.933425 | F8: =MT_ALL!F8/DMLMLR -> 1267.909795 | G8: =MT_ALL!G8/DMLMLR -> 1260.94544 | H8: =MT_ALL!H8/DMLMLR -> 1259.216022 | I8: =MT_ALL!I8/DMLMLR -> 1261.951479
I10: млрд. дол.США
B11: =MT_ALL!B11 -> 2016-12-31 | C11: =MT_ALL!C11 -> 2017-01-31 | D11: =MT_ALL!D11 -> 2017-02-28 | E11: =MT_ALL!E11 -> 2017-03-31 | F11: =MT_ALL!F11 -> 2017-04-30 | G11: =MT_ALL!G11 -> 2017-05-31 | H11: =MT_ALL!H11 -> 2017-06-30 | I11: =MT_ALL!I11 -> 2017-07-31
A12: =MT_ALL!A12 -> Загальна сума державного та гарантованого державою боргу | B12: =SUM(B13:B14) -> 70.97270827 | C12: 71.20848608 | D12: 71.76403161 | E12: 72.35494209 | F12: 74.54846918 | G12: 74.68055014 | H12: 75.01517786 | I12: 76.06052459
A13: =MT_ALL!A13 -> Внутрішній борг | B13: =MT_ALL!B13/DMLMLR -> 25.36624647 | C13: =MT_ALL!C13/DMLMLR -> 25.43201268 | D13: =MT_ALL!D13/DMLMLR -> 26.14816027 | E13: =MT_ALL!E13/DMLMLR -> 26.65021292 | F13: =MT_ALL!F13/DMLMLR -> 26.79553474 | G13: =MT_ALL!G13/DMLMLR -> 26.83187781 | H13: =MT_ALL!H13/DMLMLR -> 26.7674936 | I13: =MT_ALL!I13/DMLMLR -> 27.36583821
A14: =MT_ALL!A14 -> Зовнішній борг | B14: =MT_ALL!B14/DMLMLR -> 45.6064618 | C14: =MT_ALL!C14/DMLMLR -> 45.77647341 | D14: =MT_ALL!D14/DMLMLR -> 45.61587134 | E14: =MT_ALL!E14/DMLMLR -> 45.70472918 | F14: =MT_ALL!F14/DMLMLR -> 47.75293444 | G14: =MT_ALL!G14/DMLMLR -> 47.84867233 | H14: =MT_ALL!H14/DMLMLR -> 48.24768426 | I14: =MT_ALL!I14/DMLMLR -> 48.69468638
I16: %%
B17: =MT_ALL!B17 -> 2016-12-31 | C17: =MT_ALL!C17 -> 2017-01-31 | D17: =MT_ALL!D17 -> 2017-02-28 | E17: =MT_ALL!E17 -> 2017-03-31 | F17: =MT_ALL!F17 -> 2017-04-30 | G17: =MT_ALL!G17 -> 2017-05-31 | H17: =MT_ALL!H17 -> 2017-06-30 | I17: =MT_ALL!I17 -> 2017-07-31
A18: =MT_ALL!A18 -> Загальна сума державного та гарантованого державою боргу | B18: =SUM(B19:B20) -> 1 | C18: 1 | D18: 1 | E18: 1 | F18: 1 | G18: 1 | H18: 1 | I18: 1
A19: =MT_ALL!A19 -> Внутрішній борг | B19: =MT_ALL!B19 -> 0.357408 | C19: =MT_ALL!C19 -> 0.357149 | D19: =MT_ALL!D19 -> 0.364363 | E19: =MT_ALL!E19 -> 0.368326 | F19: =MT_ALL!F19 -> 0.359438 | G19: =MT_ALL!G19 -> 0.359289 | H19: =MT_ALL!H19 -> 0.356828 | I19: =MT_ALL!I19 -> 0.35979
A20: =MT_ALL!A20 -> Зовнішній борг | B20: =MT_ALL!B20 -> 0.642592 | C20: =MT_ALL!C20 -> 0.642851 | D20: =MT_ALL!D20 -> 0.635637 | E20: =MT_ALL!E20 -> 0.631674 | F20: =MT_ALL!F20 -> 0.640562 | G20: =MT_ALL!G20 -> 0.640711 | H20: =MT_ALL!H20 -> 0.643172 | I20: =MT_ALL!I20 -> 0.64021

Sheet MK_ALL (hidden)
A2: Державний та гарантований державою борг України за поточний рік
A4: =$A$2 & " (" &I4 & ")" -> Державний та гарантований державою борг України за поточний рік (млрд. грн) | I4: =VALUAH -> млрд. грн
B5: 2016-12-31 | C5: 2017-01-31 | D5: 2017-02-28 | E5: 2017-03-31 | F5: 2017-04-30 | G5: 2017-05-31 | H5: 2017-06-30 | I5: 2017-07-31
A6: Загальна сума державного та гарантованого державою боргу | B6: =SUM(B7:B8) -> 1929.808832 | C6: 1931.105498 | D6: 1941.480573 | E6: 1951.851114 | F6: 1979.370176 | G6: 1968.039959 | H6: 1957.820677 | I6: 1971.153294
A7: Державний борг | B7: 1650.833285 | C7: 1651.690045 | D7: 1665.935561 | E7: 1676.127493 | F7: 1672.922377 | G7: 1665.01564 | H7: 1651.059438 | I7: 1659.690304
A8: Гарантований державою борг | B8: 278.9755473 | C8: 279.4154527 | D8: 275.5450119 | E8: 275.7236211 | F8: 306.447799 | G8: 303.0243192 | H8: 306.7612385 | I8: 311.4629906
A10: =$A$2 & " (" &I10 & ")" -> Державний та гарантований державою борг України за поточний рік (млрд. дол. США) | I10: =VALUSD -> млрд. дол. США
B11: 2016-12-31 | C11: 2017-01-31 | D11: 2017-02-28 | E11: 2017-03-31 | F11: 2017-04-30 | G11: 2017-05-31 | H11: 2017-06-30 | I11: 2017-07-31
A12: Загальна сума державного та гарантованого державою боргу | B12: =SUM(B13:B14) -> 70.97270827 | C12: 71.20848608 | D12: 71.76403161 | E12: 72.35494209 | F12: 74.54846918 | G12: 74.68055014 | H12: 75.01517786 | I12: 76.06052459
A13: Державний борг | B13: 60.71280594 | C13: 60.90519017 | D13: 61.57890732 | E13: 62.13389271 | F13: 63.00681084 | G13: 63.18178826 | H13: 63.26142067 | I13: 64.04216025
A14: Гарантований державою борг | B14: 10.25990233 | C14: 10.30329591 | D14: 10.18512429 | E14: 10.22104939 | F14: 11.54165834 | G14: 11.49876188 | H14: 11.75375719 | I14: 12.01836434
I16: %%
B17: 2016-12-31 | C17: 2017-01-31 | D17: 2017-02-28 | E17: 2017-03-31 | F17: 2017-04-30 | G17: 2017-05-31 | H17: 2017-06-30 | I17: 2017-07-31
A18: Загальна сума державного та гарантованого державою боргу | B18: =SUM(B19:B20) -> 1 | C18: 1 | D18: 1 | E18: 1 | F18: 1 | G18: 1 | H18: 1 | I18: 1
A19: Державний борг | B19: 0.855439 | C19: 0.855308 | D19: 0.858075 | E19: 0.858737 | F19: 0.845179 | G19: 0.846027 | H19: 0.843315 | I19: 0.841989
A20: Гарантований державою борг | B20: 0.144561 | C20: 0.144692 | D20: 0.141925 | E20: 0.141263 | F20: 0.154821 | G20: 0.153973 | H20: 0.156685 | I20: 0.158011

Sheet SRATE_M (hidden)
A2: ="Державний та гарантований державою борг України за станом на " & TEXT(DREPORTDATE,"dd.MM.yyyy")&" (за видами відсоткових ставок)" -> Державний та гарантований державою борг України за станом на 31.07.2017 (за видами відсоткових ставок)
D4: =VALVAL -> млрд. одиниць
B5: дол.США | C5: грн. | D5: %
A6: Загальна сума державного та гарантованого державою боргу | B6: =SUM(B$7+ B$8) -> 76.06052459 | C6: 1971.153294 | D6: 1
A7: Борг, по якому сплата відсотків здійснюється за плаваючими процентними ставками | B7: 24.23857263 | C7: 628.1568861 | D7: 0.318675
A8: Борг, по якому сплата відсотків здійснюється за фіксованими процентними ставками | B8: 51.82195196 | C8: 1342.996408 | D8: 0.681325

Sheet SRATE (hidden)
A2: ="Державний та гарантований державою борг України за станом на " & TEXT(DREPORTDATE,"dd.MM.yyyy") -> Державний та гарантований державою борг України за станом на 31.07.2017
A3: (за видами відсоткових ставок)
D5: =VALVAL -> млрд. одиниць
B6: дол.США | C6: грн. | D6: %
A7: Загальна сума державного та гарантованого державою боргу | B7: =SUM(B$8+ B$9) -> 76.06052459 | C7: 1971.153294 | D7: 1
A8: =SRATE_M!A7 -> Борг, по якому сплата відсотків здійснюється за плаваючими процентними ставками | B8: =SRATE_M!B7 -> 24.23857263 | C8: =SRATE_M!C7 -> 628.1568861 | D8: =SRATE_M!D7 -> 0.318675
A9: =SRATE_M!A8 -> Борг, по якому сплата відсотків здійснюється за фіксованими процентними ставками | B9: =SRATE_M!B8 -> 51.82195196 | C9: =SRATE_M!C8 -> 1342.996408 | D9: =SRATE_M!D8 -> 0.681325
A11: В тому числі:
D12: =VALVAL -> млрд. одиниць
B13: дол.США | C13: грн. | D13: %
A14: Загальна сума державного та гарантованого державою боргу | B14: =B$18+B$15 -> 76.06052459 | C14: 1971.153294 | D14: 1
A15: Державний борг | B15: =SUM(B$16:B$17) -> 64.04216025 | C15: 1659.690304 | D15: 1.021865
A16: Борг, по якому сплата відсотків здійснюється за плаваючими процентними ставками | B16: 13.68146327 | C16: 354.563179 | D16: 0.179876
A17: Борг, по якому сплата відсотків здійснюється за фіксованими процентними ставками | B17: 50.36069698 | C17: 1305.127125 | D17: 0.662113
A18: Гарантований державою борг | B18: =SUM(B$19:B$20) -> 12.01836434 | C18: 311.4629906 | D18: 0.29681
A19: Борг, по якому сплата відсотків здійснюється за плаваючими процентними ставками | B19: 10.55710936 | C19: 273.5937071 | D19: 0.138799
A20: Борг, по якому сплата відсотків здійснюється за фіксованими процентними ставками | B20: 1.461254981 | C20: 37.86928351 | D20: 0.019212

Sheet RATE_M
A2: ="Державний та гарантований державою борг України за станом на " & TEXT(DREPORTDATE,"dd.MM.yyyy") -> Державний та гарантований державою борг України за станом на 31.07.2017
A3: (за видами відсоткових ставок)
D5: =VALVAL -> млрд. одиниць
B6: дол.США | C6: грн. | D6: %
A7: Загальна сума державного та гарантованого державою боргу | B7: =SUM(B8:B19) -> 76.06052459 | C7: 1971.153294 | D7: 1
A8: LIBOR | B8: 9.508302638 | C8: 246.4132633 | D8: 0.12501
A9: Ставка МВФ | B9: 14.72557839 | C9: 381.6220373 | D9: 0.193603
A10: Ставки банків ФРН | B10: 0.00469159995 | C10: 0.121585576 | D10: 6.2e-05
A11: Фіксована | B11: 51.82195196 | C11: 1342.996408 | D11: 0.681325

Sheet RATE (hidden)
A2: ="Державний та гарантований державою борг України за станом на " & TEXT(DREPORTDATE,"dd.MM.yyyy") -> Державний та гарантований державою борг України за станом на 31.07.2017
A3: (за видами відсоткових ставок)
D5: =VALVAL -> млрд. одиниць
B6: дол.США | C6: грн. | D6: %
A7: Загальна сума державного та гарантованого державою боргу | B7: =SUM(B8:B18) -> 76.06052459 | C7: 1971.153294 | D7: 1
A8: LIBOR | B8: 9.508302638 | C8: 246.4132633 | D8: 0.12501
A9: Ставка МВФ | B9: 14.72557839 | C9: 381.6220373 | D9: 0.193603
A10: Ставки банків ФРН | B10: 0.00469159995 | C10: 0.121585576 | D10: 6.2e-05
A11: Фіксована | B11: 51.82195196 | C11: 1342.996408 | D11: 0.681325
A19: В тому числі:
B20: ="Державний борг України за станом на " & TEXT(DREPORTDATE,"dd.MM.yyyy") -> Державний борг України за станом на 31.07.2017 | D20: =VALVAL -> млрд. одиниць
B21: дол.США | C21: грн. | D21: %
A22: Загальна сума державного та гарантованого державою боргу | B22: =B$28+B$23 -> 76.06052459 | C22: 1971.153294 | D22: 1.000001
A23: Державний борг | B23: =SUM(B$24:B$27) -> 64.04216025 | C23: 1659.690304 | D23: 0.84199
A24: LIBOR | B24: 6.521339237 | C24: 169.0043474 | D24: 0.085739
A25: Ставка МВФ | B25: 7.155432432 | C25: 185.437246 | D25: 0.094076
A26: Ставки банків ФРН | B26: 0.00469159995 | C26: 0.121585576 | D26: 6.2e-05
A27: Фіксована | B27: 50.36069698 | C27: 1305.127125 | D27: 0.662113
A28: Гарантований державою борг | B28: =SUM(B$29:B$31) -> 12.01836434 | C28: 311.4629906 | D28: 0.158011
A29: LIBOR | B29: 2.986963401 | C29: 77.40891585 | D29: 0.039271
A30: Ставка МВФ | B30: 7.570145955 | C30: 196.1847912 | D30: 0.099528
A31: Фіксована | B31: 1.461254981 | C31: 37.86928351 | D31: 0.019212

Sheet RATE_CMP (hidden)
A2: Структура боргу за типом ставки на кінець попереднього року та звітну дату
H4: =VALVAL -> млрд. одиниць
B5: 2016-12-31 | E5: 2017-07-31
B6: дол.США | C6: грн. | D6: % | E6: дол.США | F6: грн. | G6: % | H6: Зміна структури
A7: Загальна сума державного та гарантованого державою боргу | B7: =SUM(B8:B15) -> 70.97270827 | C7: 1929.808832 | D7: 1 | E7: 76.06052459 | F7: 1971.153294 | G7: 1 | H7: 8.67361738e-19
A8: LIBOR | B8: 9.036720762 | C8: 245.716191 | D8: 0.127327 | E8: 9.508302638 | F8: 246.4132633 | G8: 0.12501 | H8: -0.002317
A9: Ставка МВФ | B9: 13.07540547 | C9: 355.5314934 | D9: 0.184231 | E9: 14.72557839 | F9: 381.6220373 | G9: 0.193603 | H9: 0.009372
A10: Ставки банків ФРН | B10: 0 | C10: 0 | D10: 0 | E10: 0.00469159995 | F10: 0.121585576 | G10: 6.2e-05 | H10: 6.2e-05
A11: Фіксована | B11: 48.86058204 | C11: 1328.561148 | D11: 0.688442 | E11: 51.82195196 | F11: 1342.996408 | G11: 0.681325 | H11: -0.007117
H12: =G12-D12 -> 0
H13: 0
H17: =VALVAL -> млрд. одиниць
B18: 2016-12-31 | E18: 2017-07-31
B19: дол.США | C19: грн. | D19: % | E19: дол.США | F19: грн. | G19: % | H19: Зміна структури
A20: Загальна сума державного та гарантованого державою боргу | B20: =B$26+B$21 -> 70.97270827 | C20: 1929.808832 | D20: 1.000001 | E20: 76.06052459 | F20: 1971.153294 | G20: 1.000001 | H20: 0
A21: Державний борг | B21: =SUM(B$22:B$25) -> 60.71280594 | C21: 1650.833285 | D21: 0.855439 | E21: 64.04216025 | F21: 1659.690304 | G21: 0.84199 | H21: -0.013449
A22: LIBOR | B22: 6.501014359 | C22: 176.7681583 | D22: 0.091599 | E22: 6.521339237 | F22: 169.0043474 | G22: 0.085739 | H22: -0.00586
A23: Ставка МВФ | B23: 6.833090461 | C23: 185.7975924 | D23: 0.096278 | E23: 7.155432432 | F23: 185.437246 | G23: 0.094076 | H23: -0.002202
A24: Ставки банків ФРН | B24: 0 | C24: 0 | D24: 0 | E24: 0.00469159995 | F24: 0.121585576 | G24: 6.2e-05 | H24: 6.2e-05
A25: Фіксована | B25: 47.37870112 | C25: 1288.267534 | D25: 0.667562 | E25: 50.36069698 | F25: 1305.127125 | G25: 0.662113 | H25: -0.005449
A26: Гарантований державою борг | B26: =SUM(B$27:B$29) -> 10.25990233 | C26: 278.9755473 | D26: 0.144562 | E26: 12.01836434 | F26: 311.4629906 | G26: 0.158011 | H26: 0.013449
A27: LIBOR | B27: 2.535706403 | C27: 68.94803272 | D27: 0.035728 | E27: 2.986963401 | F27: 77.40891585 | G27: 0.039271 | H27: 0.003543
A28: Ставка МВФ | B28: 6.242315006 | C28: 169.7339009 | D28: 0.087954 | E28: 7.570145955 | F28: 196.1847912 | G28: 0.099528 | H28: 0.011574
A29: Фіксована | B29: 1.481880921 | C29: 40.29361371 | D29: 0.02088 | E29: 1.461254981 | F29: 37.86928351 | G29: 0.019212 | H29: -0.001668

Sheet CUR_M
A2: ="Державний та гарантований державою борг України за станом на " & TEXT(DREPORTDATE,"dd.MM.yyyy") -> Державний та гарантований державою борг України за станом на 31.07.2017
A3: (в розрізі валют погашеня)
D5: =VALVAL -> млрд. одиниць
B6: дол.США | C6: грн. | D6: %
A7: Загальна сума державного та гарантованого державою боргу | B7: =SUM(B8:B26) -> 76.06052459 | C7: 1971.153294 | D7: 1.000001
A8: Долар США | B8: 30.63790245 | C8: 793.9992876 | D8: 0.40281
A9: ЄВРО | B9: 5.694353711 | C9: 147.5725304 | D9: 0.074866
A10: Канадський долар | B10: 0.3188961362 | C10: 8.2643812 | D10: 0.004193
A11: СПЗ | B11: 14.72557839 | C11: 381.6220373 | D11: 0.193603
A12: Українська гривня | B12: 24.11040998 | C12: 624.8354758 | D12: 0.31699
A13: Японська єна | B13: 0.5733839244 | C13: 14.85958212 | D13: 0.007539

Sheet CUR (hidden)
A2: ="Державний та гарантований державою борг України за станом на " & TEXT(DREPORTDATE,"dd.MM.yyyy") -> Державний та гарантований державою борг України за станом на 31.07.2017
A3: (в розрізі валют погашеня)
D5: =VALVAL -> млрд. одиниць
B6: дол.США | C6: грн. | D6: %
A7: Загальна сума державного та гарантованого державою боргу | B7: =SUM(B8:B18) -> 76.06052459 | C7: 1971.153294 | D7: 1.000001
A8: Долар США | B8: 30.63790245 | C8: 793.9992876 | D8: 0.40281
A9: ЄВРО | B9: 5.694353711 | C9: 147.5725304 | D9: 0.074866
A10: Канадський долар | B10: 0.3188961362 | C10: 8.2643812 | D10: 0.004193
A11: СПЗ | B11: 14.72557839 | C11: 381.6220373 | D11: 0.193603
A12: Українська гривня | B12: 24.11040998 | C12: 624.8354758 | D12: 0.31699
A13: Японська єна | B13: 0.5733839244 | C13: 14.85958212 | D13: 0.007539
A20: В тому числі:
B21: ="Державний борг України за станом на " & TEXT(DREPORTDATE,"dd.MM.yyyy") -> Державний борг України за станом на 31.07.2017 | D21: =VALVAL -> млрд. одиниць
B22: дол.США | C22: грн. | D22: %
A23: Загальна сума державного та гарантованого державою боргу | B23: =B$31+B$24 -> 76.06052459 | C23: 1971.153294 | D23: 1.000001
A24: Державний борг | B24: =SUM(B$25:B$30) -> 64.04216025 | C24: 1659.690304 | D24: 0.841991
A25: Долар США | B25: 27.67550308 | C25: 717.2269632 | D25: 0.363862
A26: ЄВРО | B26: 4.971687077 | C26: 128.8441989 | D26: 0.065365
A27: Канадський долар | B27: 0.3188961362 | C27: 8.2643812 | D27: 0.004193
A28: СПЗ | B28: 7.155432432 | C28: 185.437246 | D28: 0.094076
A29: Українська гривня | B29: 23.3472576 | C29: 605.0579324 | D29: 0.306956
A30: Японська єна | B30: 0.5733839244 | C30: 14.85958212 | D30: 0.007539
A31: Гарантований державою борг | B31: =SUM(B$32:B$35) -> 12.01836434 | C31: 311.4629906 | D31: 0.15801
A32: Долар США | B32: 2.962399368 | C32: 76.77232447 | D32: 0.038948
A33: ЄВРО | B33: 0.7226666345 | C33: 18.72833148 | D33: 0.009501
A34: СПЗ | B34: 7.570145955 | C34: 196.1847912 | D34: 0.099528
A35: Українська гривня | B35: 0.7631523795 | C35: 19.77754341 | D35: 0.010033

Sheet CUR_CMP (hidden)
A2: Валютна структура державного боргу на кінець попереднього року та звітну дату
H5: =VALVAL -> млрд. одиниць
B6: 2016-12-31 | E6: 2017-07-31
B7: дол.США | C7: грн. | D7: % | E7: дол.США | F7: грн. | G7: % | H7: Зміна структури
A8: Загальна сума державного та гарантованого державою боргу | B8: =SUM(B9:B18) -> 70.97270827 | C8: 1929.808832 | D8: 0.999999 | E8: 76.06052459 | F8: 1971.153294 | G8: 1.000001 | H8: -1e-06
A9: Долар США | B9: 31.63775002 | C9: 860.2575682 | D9: 0.445773 | E9: 30.63790245 | F9: 793.9992876 | G9: 0.40281 | H9: -0.042964
A10: ЄВРО | B10: 3.934205215 | C10: 106.9744153 | D10: 0.055433 | E10: 5.694353711 | F10: 147.5725304 | G10: 0.074866 | H10: 0.019433
A11: Канадський долар | B11: 0.295407655 | C11: 8.0323876 | D11: 0.004162 | E11: 0.3188961362 | F11: 8.2643812 | G11: 0.004193 | H11: 3e-05
A12: СПЗ | B12: 13.07540547 | C12: 355.5314934 | D12: 0.184231 | E12: 14.72557839 | F12: 381.6220373 | G12: 0.193603 | H12: 0.009372
A13: Українська гривня | B13: 21.48006667 | C13: 584.0614428 | D13: 0.302652 | E13: 24.11040998 | F13: 624.8354758 | G13: 0.31699 | H13: 0.014337
A14: Японська єна | B14: 0.5498732387 | C14: 14.95152515 | D14: 0.007748 | E14: 0.5733839244 | F14: 14.85958212 | G14: 0.007539 | H14: -0.000209
H21: =VALVAL -> млрд. одиниць
B22: 2016-12-31 | E22: 2017-07-31
B23: дол.США | C23: грн. | D23: % | E23: дол.США | F23: грн. | G23: % | H23: Зміна структури
A24: Загальна сума державного та гарантованого державою боргу | B24: =B$32+B$25 -> 70.97270827 | C24: 1929.808832 | D24: 1 | E24: 76.06052459 | F24: 1971.153294 | G24: 1.000001 | H24: -1e-06
A25: Державний борг | B25: =SUM(B$26:B$31) -> 60.71280594 | C25: 1650.833285 | D25: 0.855439 | E25: 64.04216025 | F25: 1659.690304 | G25: 0.841991 | H25: -0.01345
A26: Долар США | B26: 28.45312039 | C26: 773.6647561 | D26: 0.400902 | E26: 27.67550308 | F26: 717.2269632 | G26: 0.363862 | H26: -0.037041
A27: ЄВРО | B27: 3.803118543 | C27: 103.4100563 | D27: 0.053586 | E27: 4.971687077 | F27: 128.8441989 | G27: 0.065365 | H27: 0.011779
A28: Канадський долар | B28: 0.295407655 | C28: 8.0323876 | D28: 0.004162 | E28: 0.3188961362 | F28: 8.2643812 | G28: 0.004193 | H28: 3e-05
A29: СПЗ | B29: 6.833090461 | C29: 185.7975924 | D29: 0.096278 | E29: 7.155432432 | F29: 185.437246 | G29: 0.094076 | H29: -0.002202
A30: Українська гривня | B30: 20.77819565 | C30: 564.9769675 | D30: 0.292763 | E30: 23.3472576 | F30: 605.0579324 | G30: 0.306956 | H30: 0.014193
A31: Японська єна | B31: 0.5498732387 | C31: 14.95152515 | D31: 0.007748 | E31: 0.5733839244 | F31: 14.85958212 | G31: 0.007539 | H31: -0.000209
A32: Гарантований державою борг | B32: =SUM(B$33:B$36) -> 10.25990233 | C32: 278.9755473 | D32: 0.144561 | E32: 12.01836434 | F32: 311.4629906 | G32: 0.15801 | H32: 0.013449
A33: Долар США | B33: 3.184629632 | C33: 86.5928121 | D33: 0.044871 | E33: 2.962399368 | F33: 76.77232447 | G33: 0.038948 | H33: -0.005923
A34: ЄВРО | B34: 0.1310866718 | C34: 3.564359079 | D34: 0.001847 | E34: 0.7226666345 | F34: 18.72833148 | G34: 0.009501 | H34: 0.007654
A35: СПЗ | B35: 6.242315006 | C35: 169.7339009 | D35: 0.087954 | E35: 7.570145955 | F35: 196.1847912 | G35: 0.099528 | H35: 0.011574
A36: Українська гривня | B36: 0.7018710203 | C36: 19.08447525 | D36: 0.009889 | E36: 0.7631523795 | F36: 19.77754341 | G36: 0.010033 | H36: 0.000144

Sheet CUR_M_EXT (hidden)
A2: Валютна структура боргу на кінець попереднього року та на звітну дату
N4: =VALVAL -> млрд. одиниць
B5: 2016-12-31 | H5: 2017-07-31
B6: оріг. | C6: курс до USD | D6: курс до UAH | E6: дол.США | F6: грн. | G6: % | H6: оріг. | I6: курс до USD | J6: курс до UAH | K6: дол.США | L6: грн. | M6: % | N6: Зміна структури
A7: Загальна сума державного та гарантованого державою боргу | E7: =SUM(E8:E23) -> 70.97270827 | F7: 1929.808832 | G7: 0.999999 | K7: =SUM(K8:K23) -> 76.06052459 | L7: 1971.153294 | M7: 1.000001 | N7: -1e-06
A8: Долар США | B8: 31.63775002 | C8: 1 | D8: 27.190858 | E8: 31.63775002 | F8: 860.2575682 | G8: 0.445773 | H8: 30.63790245 | I8: 1 | J8: 25.915589 | K8: 30.63790245 | L8: 793.9992876 | M8: 0.40281 | N8: -0.042964
A9: ЄВРО | B9: 3.763709171 | C9: 1.0453 | D9: 28.422604 | E9: 3.934205215 | F9: 106.9744153 | G9: 0.055433 | H9: 4.854935438 | I9: 1.1729 | J9: 30.396394 | K9: 5.694353711 | L9: 147.5725304 | M9: 0.074866 | N9: 0.019433
A10: Канадський долар | B10: 0.4 | C10: 0.738519 | D10: 20.080969 | E10: 0.295407655 | F10: 8.0323876 | G10: 0.004162 | H10: 0.4 | I10: 0.79724 | J10: 20.660953 | K10: 0.3188961362 | L10: 8.2643812 | M10: 0.004193 | N10: 3e-05
A11: СПЗ | B11: 9.726323407 | C11: 1.344332 | D11: 36.553534 | E11: 13.07540547 | F11: 355.5314934 | G11: 0.184231 | H11: 10.46037341 | I11: 1.407749 | J11: 36.48264 | K11: 14.72557839 | L11: 381.6220373 | M11: 0.193603 | N11: 0.009372
A12: Українська гривня | B12: 584.0614428 | C12: 0.036777 | D12: 1 | E12: 21.48006667 | F12: 584.0614428 | G12: 0.302652 | H12: 624.8354758 | I12: 0.038587 | J12: 1 | K12: 24.11040998 | L12: 624.8354758 | M12: 0.31699 | N12: 0.014337
A13: Японська єна | B13: 64.198346 | C13: 0.008565 | D13: 0.232896 | E13: 0.5498732387 | F13: 14.95152515 | G13: 0.007748 | H13: 63.732688 | I13: 0.008997 | J13: 0.233155 | K13: 0.5733839244 | L13: 14.85958212 | M13: 0.007539 | N13: -0.000209

Sheet CUR_CMP_EXT (hidden)
A2: Валютна структура боргу на кінець попереднього року та на звітну дату (розширений)
N4: =VALVAL -> млрд. одиниць
B5: 2016-12-31 | H5: 2017-07-31
B6: оріг. | C6: курс до USD | D6: курс до UAH | E6: дол.США | F6: грн. | G6: % | H6: оріг. | I6: курс до USD | J6: курс до UAH | K6: дол.США | L6: грн. | M6: % | N6: Зміна структури
A7: Загальна сума державного та гарантованого державою боргу | E7: =SUM(E8:E24) -> 70.97270827 | F7: 1929.808832 | G7: 0.999999 | K7: =SUM(K8:K24) -> 76.06052459 | L7: 1971.153294 | M7: 1.000001 | N7: -1e-06
A8: Долар США | B8: 31.63775002 | C8: 1 | D8: 27.190858 | E8: 31.63775002 | F8: 860.2575682 | G8: 0.445773 | H8: 30.63790245 | I8: 1 | J8: 25.915589 | K8: 30.63790245 | L8: 793.9992876 | M8: 0.40281 | N8: -0.042964
A9: ЄВРО | B9: 3.763709171 | C9: 1.0453 | D9: 28.422604 | E9: 3.934205215 | F9: 106.9744153 | G9: 0.055433 | H9: 4.854935438 | I9: 1.1729 | J9: 30.396394 | K9: 5.694353711 | L9: 147.5725304 | M9: 0.074866 | N9: 0.019433
A10: Канадський долар | B10: 0.4 | C10: 0.738519 | D10: 20.080969 | E10: 0.295407655 | F10: 8.0323876 | G10: 0.004162 | H10: 0.4 | I10: 0.79724 | J10: 20.660953 | K10: 0.3188961362 | L10: 8.2643812 | M10: 0.004193 | N10: 3e-05
A11: СПЗ | B11: 9.726323407 | C11: 1.344332 | D11: 36.553534 | E11: 13.07540547 | F11: 355.5314934 | G11: 0.184231 | H11: 10.46037341 | I11: 1.407749 | J11: 36.48264 | K11: 14.72557839 | L11: 381.6220373 | M11: 0.193603 | N11: 0.009372
A12: Українська гривня | B12: 584.0614428 | C12: 0.036777 | D12: 1 | E12: 21.48006667 | F12: 584.0614428 | G12: 0.302652 | H12: 624.8354758 | I12: 0.038587 | J12: 1 | K12: 24.11040998 | L12: 624.8354758 | M12: 0.31699 | N12: 0.014337
A13: Японська єна | B13: 64.198346 | C13: 0.008565 | D13: 0.232896 | E13: 0.5498732387 | F13: 14.95152515 | G13: 0.007748 | H13: 63.732688 | I13: 0.008997 | J13: 0.233155 | K13: 0.5733839244 | L13: 14.85958212 | M13: 0.007539 | N13: -0.000209
N23: =VALVAL -> млрд. одиниць
B24: 2016-12-31 | H24: 2017-07-31
B25: оріг. | C25: курс до USD | D25: курс до UAH | E25: дол.США | F25: грн. | G25: % | H25: оріг. | I25: курс до USD | J25: курс до UAH | K25: дол.США | L25: грн. | M25: % | N25: Зміна структури
A26: Загальна сума державного та гарантованого державою боргу | B26: =B$34+B$27 -> 693.7875714 | C26: 7.599902 | D26: 206.647857 | E26: 70.97270827 | F26: 1929.808832 | G26: 1 | H26: 734.9213751 | I26: 8.044709 | J26: 208.483354 | K26: 76.06052459 | L26: 1971.153294 | M26: 1.000001 | N26: -1e-06
A27: Державний борг | B27: =SUM(B$28:B$33) -> 666.7496273 | C27: 4.173493 | D27: 113.480861 | E27: 60.71280594 | F27: 1650.833285 | G27: 0.855439 | H27: 706.1878123 | I27: 4.425473 | J27: 114.688731 | K27: 64.04216025 | L27: 1659.690304 | M27: 0.841991 | N27: -0.01345
A28: Долар США | B28: 28.45312039 | C28: 1 | D28: 27.190858 | E28: 28.45312039 | F28: 773.6647561 | G28: 0.400902 | H28: 27.67550308 | I28: 1 | J28: 25.915589 | K28: 27.67550308 | L28: 717.2269632 | M28: 0.363862 | N28: -0.037041
A29: ЄВРО | B29: 3.638303382 | C29: 1.0453 | D29: 28.422604 | E29: 3.803118543 | F29: 103.4100563 | G29: 0.053586 | H29: 4.238798817 | I29: 1.1729 | J29: 30.396394 | K29: 4.971687077 | L29: 128.8441989 | M29: 0.065365 | N29: 0.011779
A30: Канадський долар | B30: 0.4 | C30: 0.738519 | D30: 20.080969 | E30: 0.295407655 | F30: 8.0323876 | G30: 0.004162 | H30: 0.4 | I30: 0.79724 | J30: 20.660953 | K30: 0.3188961362 | L30: 8.2643812 | M30: 0.004193 | N30: 3e-05
A31: СПЗ | B31: 5.08289 | C31: 1.344332 | D31: 36.553534 | E31: 6.833090461 | F31: 185.7975924 | G31: 0.096278 | H31: 5.08289 | I31: 1.407749 | J31: 36.48264 | K31: 7.155432432 | L31: 185.437246 | M31: 0.094076 | N31: -0.002202
A32: Українська гривня | B32: 564.9769675 | C32: 0.036777 | D32: 1 | E32: 20.77819565 | F32: 564.9769675 | G32: 0.292763 | H32: 605.0579324 | I32: 0.038587 | J32: 1 | K32: 23.3472576 | L32: 605.0579324 | M32: 0.306956 | N32: 0.014193
A33: Японська єна | B33: 64.198346 | C33: 0.008565 | D33: 0.232896 | E33: 0.5498732387 | F33: 14.95152515 | G33: 0.007748 | H33: 63.732688 | I33: 0.008997 | J33: 0.233155 | K33: 0.5733839244 | L33: 14.85958212 | M33: 0.007539 | N33: -0.000209
A34: Гарантований державою борг | B34: =SUM(B$35:B$38) -> 27.03794408 | C34: 3.426409 | D34: 93.166996 | E34: 10.25990233 | F34: 278.9755473 | G34: 0.144561 | H34: 28.73356281 | I34: 3.619236 | J34: 93.794623 | K34: 12.01836434 | L34: 311.4629906 | M34: 0.15801 | N34: 0.013449
A35: Долар США | B35: 3.184629632 | C35: 1 | D35: 27.190858 | E35: 3.184629632 | F35: 86.5928121 | G35: 0.044871 | H35: 2.962399368 | I35: 1 | J35: 25.915589 | K35: 2.962399368 | L35: 76.77232447 | M35: 0.038948 | N35: -0.005923
A36: ЄВРО | B36: 0.125405789 | C36: 1.0453 | D36: 28.422604 | E36: 0.1310866718 | F36: 3.564359079 | G36: 0.001847 | H36: 0.6161366208 | I36: 1.1729 | J36: 30.396394 | K36: 0.7226666345 | L36: 18.72833148 | M36: 0.009501 | N36: 0.007654
A37: СПЗ | B37: 4.643433407 | C37: 1.344332 | D37: 36.553534 | E37: 6.242315006 | F37: 169.7339009 | G37: 0.087954 | H37: 5.377483407 | I37: 1.407749 | J37: 36.48264 | K37: 7.570145955 | L37: 196.1847912 | M37: 0.099528 | N37: 0.011574
A38: Українська гривня | B38: 19.08447525 | C38: 0.036777 | D38: 1 | E38: 0.7018710203 | F38: 19.08447525 | G38: 0.009889 | H38: 19.77754341 | I38: 0.038587 | J38: 1 | K38: 0.7631523795 | L38: 19.77754341 | M38: 0.010033 | N38: 0.000144

Sheet DKT1 (hidden)
A2: ="Державний та гарантований державою борг України за станом на " & TEXT(DREPORTDATE,"dd.MM.yyyy") -> Державний та гарантований державою борг України за станом на 31.07.2017
A3: (за типом кредитора)
D5: =VALVAL -> млрд. одиниць
B6: дол.США | C6: грн. | D6: % | E6: FORMAT
A7: Загальна сума державного та гарантованого державою боргу | B7: =B$18+B$8 -> 76.06052459 | C7: 1971.153294 | D7: 1 | E7: 3
A8: Державний борг | B8: =B$9+B$12 -> 64.04216025 | C8: 1659.690304 | D8: 0.84199 | E8: 3
A9: Внутрішній борг | B9: =SUM(B$10:B$11) -> 26.60268583 | C9: 689.4242723 | D9: 0.349757 | E9: 2
A10: 1. Заборгованість за випущеними цінними паперами на внутрішньому ринку | B10: 26.50827657 | C10: 686.9776006 | D10: 0.348516 | E10: 1
A11: 2. Заборгованість перед банківськими та іншими фінансовими установами | B11: 0.09440926333 | C11: 2.446671666 | D11: 0.001241
A12: Зовнішній борг | B12: =SUM(B$13:B$17) -> 37.43947442 | C12: 970.2660315 | D12: 0.492233
A13: 1. Заборгованість за позиками, одержаними від міжнародних фінансових організацій | B13: 14.91016929 | C13: 386.4058193 | D13: 0.19603
A14: 2. Заборгованість за позиками, одержаними від органів управління іноземних держав | B14: 1.757199603 | C14: 45.5388627 | D14: 0.023103
A15: 3. Заборгованість за позиками, одержаними від іноземних комерційних банків, інших іноземних фінансових установ | B15: 5.996944e-05 | C15: 0.00155414331 | D15: 1e-06
A16: 4. Заборгованість за випущеними цінними паперами на зовнішньому ринку | B16: 19.04333 | C16: 493.5191135 | D16: 0.250371
A17: 5. Заборгованість, не віднесена до інших категорій | B17: 1.728715559 | C17: 44.80068192 | D17: 0.022728
A18: Гарантований державою борг | B18: =B$19+B$23 -> 12.01836434 | C18: 311.4629906 | D18: 0.15801
A19: Внутрішній борг | B19: =SUM(B$20:B$22) -> 0.7631523795 | C19: 19.77754341 | D19: 0.010033
A20: 1. Заборгованість за випущеними цінними паперами на внутрішньому ринку | B20: 0.6154601232 | C20: 15.9500116 | D20: 0.008092
A21: 2. Заборгованість перед банківськими та іншими фінансовими установами | B21: 0.1476554193 | C21: 3.826577161 | D21: 0.001941
A22: 3. Заборгованість, не віднесена до інших категорій | B22: 3.68369e-05 | C22: 0.00095465 | D22: 0
A23: Зовнішній борг | B23: =SUM(B$24:B$27) -> 11.25521196 | C23: 291.6854472 | D23: 0.147977
A24: 1. Заборгованість за позиками, одержаними від міжнародних фінансових організацій | B24: 8.315091617 | C24: 215.4904968 | D24: 0.109322
A25: 2. Заборгованість за позиками, одержаними від органів управління іноземних держав | B25: 0.09747785328 | C25: 2.526195982 | D25: 0.001282
A26: 3. Заборгованість за позиками, одержаними від іноземних комерційних банків, інших іноземних фінансових установ | B26: 2.727990627 | C26: 70.69748388 | D26: 0.035866
A27: 5. Заборгованість, не віднесена до інших категорій | B27: 0.1146518606 | C27: 2.971270498 | D27: 0.001507

Sheet DKR (hidden)
A2: ="Державний та гарантований державою борг України за станом на " & TEXT(DREPORTDATE,"dd.MM.yyyy") -> Державний та гарантований державою борг України за станом на 31.07.2017
A3: (за типом кредитора)
D5: =VALVAL -> млрд. одиниць
B6: дол.США | C6: грн. | D6: %
A7: Загальна сума державного та гарантованого державою боргу | B7: =SUM(B8:B46) -> 76.06052459 | C7: 1971.153294 | D7: 1
A8: Внутрішній борг за випущеними цінними паперами | B8: 27.12373669 | C8: 702.9276122 | D8: 0.356607
A9: Внутрішній борг перед банківськими та іншими фінансовими установами | B9: 0.2420646826 | C9: 6.273248827 | D9: 0.003183
A10: Внутрішня заборгованість, не віднесена до інших категорій | B10: 3.68369e-05 | C10: 0.00095465 | D10: 0
A11: Зовнішній борг за випущеними цінними паперами | B11: 19.04333 | C11: 493.5191135 | D11: 0.250371
A12: Зовнішній борг за позиками, одержаними від іноземних комерційних банків, інших іноземних фінансових установ | B12: 2.728050596 | C12: 70.69903802 | D12: 0.035867
A13: Зовнішній борг за позиками, одержаними від міжнародних фінансових організацій | B13: 23.22526091 | C13: 601.8963161 | D13: 0.305352
A14: Зовнішній борг за позиками, одержаними від органів управління іноземних держав | B14: 1.854677456 | C14: 48.06505868 | D14: 0.024384
A15: Зовнішній борг, не віднесений до інших категорій | B15: 1.843367419 | C15: 47.77195242 | D15: 0.024236

Sheet DKR2 (hidden)
A1: ="Державний борг України за станом на " & TEXT(DREPORTDATE,"dd.MM.yyyy") -> Державний борг України за станом на 31.07.2017
A2: ="Гарантований державою борг України за станом на " & TEXT(DREPORTDATE,"dd.MM.yyyy") -> Гарантований державою борг України за станом на 31.07.2017
A3: ="Державний та гарантований державою борг України за станом на " & TEXT(DREPORTDATE,"dd.MM.yyyy") -> Державний та гарантований державою борг України за станом на 31.07.2017
A4: (за типом кредитора)
D6: =VALVAL -> млрд. одиниць
B7: дол.США | C7: грн. | D7: %
A8: Загальна сума державного та гарантованого державою боргу | B8: =B$17+B$9 -> 76.06052459 | C8: 1971.153294 | D8: 2.097032
A9: Державний борг | B9: =SUM(B$10:B$16) -> 64.04216025 | C9: 1659.690304 | D9: 1.24199
A10: Внутрішній борг за випущеними цінними паперами | B10: 26.50827657 | C10: 686.9776006 | D10: 0.348516
A11: Внутрішній борг перед банківськими та іншими фінансовими установами | B11: 0.09440926333 | C11: 2.446671666 | D11: 0.001241
A12: Зовнішній борг за випущеними цінними паперами | B12: 19.04333 | C12: 493.5191135 | D12: 0.250371
A13: Зовнішній борг за позиками, одержаними від іноземних комерційних банків, інших іноземних фінансових установ | B13: 5.996944e-05 | C13: 0.00155414331 | D13: 1e-06
A14: Зовнішній борг за позиками, одержаними від міжнародних фінансових організацій | B14: 14.91016929 | C14: 386.4058193 | D14: 0.19603
A15: Зовнішній борг за позиками, одержаними від органів управління іноземних держав | B15: 1.757199603 | C15: 45.5388627 | D15: 0.023103
A16: Зовнішній борг, не віднесений до інших категорій | B16: 1.728715559 | C16: 44.80068192 | D16: 0.022728
A17: Гарантований державою борг | B17: =SUM(B$18:B$24) -> 12.01836434 | C17: 311.4629906 | D17: 0.15801
A18: Внутрішній борг за випущеними цінними паперами | B18: 0.6154601232 | C18: 15.9500116 | D18: 0.008092
A19: Внутрішній борг перед банківськими та іншими фінансовими установами | B19: 0.1476554193 | C19: 3.826577161 | D19: 0.001941
A20: Внутрішня заборгованість, не віднесена до інших категорій | B20: 3.68369e-05 | C20: 0.00095465 | D20: 0
A21: Зовнішній борг за позиками, одержаними від іноземних комерційних банків, інших іноземних фінансових установ | B21: 2.727990627 | C21: 70.69748388 | D21: 0.035866
A22: Зовнішній борг за позиками, одержаними від міжнародних фінансових організацій | B22: 8.315091617 | C22: 215.4904968 | D22: 0.109322
A23: Зовнішній борг за позиками, одержаними від органів управління іноземних держав | B23: 0.09747785328 | C23: 2.526195982 | D23: 0.001282
A24: Зовнішній борг, не віднесений до інших категорій | B24: 0.1146518606 | C24: 2.971270498 | D24: 0.001507

Sheet YT_ALL (hidden)
A2: Державний та гарантований державою борг України за останні 5 років
A4: =$A$2 & " (" &G4 & ")" -> Державний та гарантований державою борг України за останні 5 років (млрд. грн) | G4: =VALUAH -> млрд. грн
B5: 2012-12-31 | C5: 2013-12-31 | D5: 2014-12-31 | E5: 2015-12-31 | F5: 2016-12-31 | G5: 2017-07-31
A6: Загальна сума державного та гарантованого державою боргу | B6: =SUM(B$7+ B$8) -> 515.5108331 | C6: 584.7865709 | D6: 1100.833217 | E6: 1572.180159 | F6: 1929.808832 | G6: 1971.153294
A7: Внутрішній борг | B7: 206.5107136 | C7: 284.0887255 | D7: 488.8669074 | E7: 529.460578 | F7: 689.7300058 | G7: 709.2018157
A8: Зовнішній борг | B8: 309.0001195 | C8: 300.6978455 | D8: 611.9663093 | E8: 1042.719581 | F8: 1240.078827 | G8: 1261.951479
A10: =$A$2 & " (" &G10 & ")" -> Державний та гарантований державою борг України за останні 5 років (млрд. дол. США) | G10: =VALUSD -> млрд. дол. США
B11: 2012-12-31 | C11: 2013-12-31 | D11: 2014-12-31 | E11: 2015-12-31 | F11: 2016-12-31 | G11: 2017-07-31
A12: Загальна сума державного та гарантованого державою боргу | B12: =SUM(B$13+ B$14) -> 64.49528751 | C12: 73.16233841 | D12: 69.81192296 | E12: 65.50568611 | F12: 70.97270827 | G12: 76.06052459
A13: Внутрішній борг | B13: 25.83644609 | C13: 35.5421901 | D13: 31.00264269 | E13: 22.06024433 | F13: 25.36624647 | G13: 27.36583821
A14: Зовнішній борг | B14: 38.65884142 | C14: 37.62014831 | D14: 38.80928028 | E14: 43.44544179 | F14: 45.6064618 | G14: 48.69468638
G16: %
B17: 2012-12-31 | C17: 2013-12-31 | D17: 2014-12-31 | E17: 2015-12-31 | F17: 2016-12-31 | G17: 2017-07-31
A18: Загальна сума державного та гарантованого державою боргу | B18: =SUM(B$19+ B$20) -> 1 | C18: 1 | D18: 1 | E18: 1 | F18: 1 | G18: 1
A19: Внутрішній борг | B19: 0.400594 | C19: 0.485799 | D19: 0.444088 | E19: 0.336768 | F19: 0.357408 | G19: 0.35979
A20: Зовнішній борг | B20: 0.599406 | C20: 0.514201 | D20: 0.555912 | E20: 0.663232 | F20: 0.642592 | G20: 0.64021

Sheet YTM_ALL (hidden)
A2: Державний та гарантований державою борг України за останні 5 років
G4: млрд. грн.
B5: =YT_ALL!B5 -> 2012-12-31 | C5: =YT_ALL!C5 -> 2013-12-31 | D5: =YT_ALL!D5 -> 2014-12-31 | E5: =YT_ALL!E5 -> 2015-12-31 | F5: =YT_ALL!F5 -> 2016-12-31 | G5: =YT_ALL!G5 -> 2017-07-31
A6: Загальна сума державного та гарантованого державою боргу | B6: =SUM(B$7+ B$8) -> 515.5108331 | C6: 584.7865709 | D6: 1100.833217 | E6: 1572.180159 | F6: 1929.808832 | G6: 1971.153294
A7: =YT_ALL!A7 -> Внутрішній борг | B7: =YT_ALL!B7/DMLMLR -> 206.5107136 | C7: =YT_ALL!C7/DMLMLR -> 284.0887255 | D7: =YT_ALL!D7/DMLMLR -> 488.8669074 | E7: =YT_ALL!E7/DMLMLR -> 529.460578 | F7: =YT_ALL!F7/DMLMLR -> 689.7300058 | G7: =YT_ALL!G7/DMLMLR -> 709.2018157
A8: =YT_ALL!A8 -> Зовнішній борг | B8: =YT_ALL!B8/DMLMLR -> 309.0001195 | C8: =YT_ALL!C8/DMLMLR -> 300.6978455 | D8: =YT_ALL!D8/DMLMLR -> 611.9663093 | E8: =YT_ALL!E8/DMLMLR -> 1042.719581 | F8: =YT_ALL!F8/DMLMLR -> 1240.078827 | G8: =YT_ALL!G8/DMLMLR -> 1261.951479
G10: млрд. дол.США
B11: =YT_ALL!B11 -> 2012-12-31 | C11: =YT_ALL!C11 -> 2013-12-31 | D11: =YT_ALL!D11 -> 2014-12-31 | E11: =YT_ALL!E11 -> 2015-12-31 | F11: =YT_ALL!F11 -> 2016-12-31 | G11: =YT_ALL!G11 -> 2017-07-31
A12: Загальна сума державного та гарантованого державою боргу | B12: =SUM(B$13+ B$14) -> 64.49528751 | C12: 73.16233841 | D12: 69.81192296 | E12: 65.50568611 | F12: 70.97270827 | G12: 76.06052459
A13: =YT_ALL!A13 -> Внутрішній борг | B13: =YT_ALL!B13/DMLMLR -> 25.83644609 | C13: =YT_ALL!C13/DMLMLR -> 35.5421901 | D13: =YT_ALL!D13/DMLMLR -> 31.00264269 | E13: =YT_ALL!E13/DMLMLR -> 22.06024433 | F13: =YT_ALL!F13/DMLMLR -> 25.36624647 | G13: =YT_ALL!G13/DMLMLR -> 27.36583821
A14: =YT_ALL!A14 -> Зовнішній борг | B14: =YT_ALL!B14/DMLMLR -> 38.65884142 | C14: =YT_ALL!C14/DMLMLR -> 37.62014831 | D14: =YT_ALL!D14/DMLMLR -> 38.80928028 | E14: =YT_ALL!E14/DMLMLR -> 43.44544179 | F14: =YT_ALL!F14/DMLMLR -> 45.6064618 | G14: =YT_ALL!G14/DMLMLR -> 48.69468638
G16: %
B17: =YT_ALL!B17 -> 2012-12-31 | C17: =YT_ALL!C17 -> 2013-12-31 | D17: =YT_ALL!D17 -> 2014-12-31 | E17: =YT_ALL!E17 -> 2015-12-31 | F17: =YT_ALL!F17 -> 2016-12-31 | G17: =YT_ALL!G17 -> 2017-07-31
A18: Загальна сума державного та гарантованого державою боргу | B18: =SUM(B$19+ B$20) -> 1 | C18: 1 | D18: 1 | E18: 1 | F18: 1 | G18: 1
A19: =YT_ALL!A19 -> Внутрішній борг | B19: =YT_ALL!B19 -> 0.400594 | C19: =YT_ALL!C19 -> 0.485799 | D19: =YT_ALL!D19 -> 0.444088 | E19: =YT_ALL!E19 -> 0.336768 | F19: =YT_ALL!F19 -> 0.357408 | G19: =YT_ALL!G19 -> 0.35979
A20: =YT_ALL!A20 -> Зовнішній борг | B20: =YT_ALL!B20 -> 0.599406 | C20: =YT_ALL!C20 -> 0.514201 | D20: =YT_ALL!D20 -> 0.555912 | E20: =YT_ALL!E20 -> 0.663232 | F20: =YT_ALL!F20 -> 0.642592 | G20: =YT_ALL!G20 -> 0.64021

Sheet YKM_ALL (hidden)
A2: Державний та гарантований державою борг України за останні 5 років
G4: млрд. грн.
B5: =YT_ALL!B5 -> 2012-12-31 | C5: =YT_ALL!C5 -> 2013-12-31 | D5: =YT_ALL!D5 -> 2014-12-31 | E5: =YT_ALL!E5 -> 2015-12-31 | F5: =YT_ALL!F5 -> 2016-12-31 | G5: =YT_ALL!G5 -> 2017-07-31
A6: Загальна сума державного та гарантованого державою боргу | B6: =SUM(B$7+ B$8) -> 515.5108331 | C6: 584.7865709 | D6: 1100.833217 | E6: 1572.180159 | F6: 1929.808832 | G6: 1971.153294
A7: =YK_ALL!A7 -> Державний борг | B7: =YK_ALL!B7/DMLMLR -> 399.2182341 | C7: =YK_ALL!C7/DMLMLR -> 480.2186294 | D7: =YK_ALL!D7/DMLMLR -> 947.0304691 | E7: =YK_ALL!E7/DMLMLR -> 1334.271601 | F7: =YK_ALL!F7/DMLMLR -> 1650.833285 | G7: =YK_ALL!G7/DMLMLR -> 1659.690304
A8: =YK_ALL!A8 -> Гарантований державою борг | B8: =YK_ALL!B8/DMLMLR -> 116.292599 | C8: =YK_ALL!C8/DMLMLR -> 104.5679415 | D8: =YK_ALL!D8/DMLMLR -> 153.8027476 | E8: =YK_ALL!E8/DMLMLR -> 237.9085577 | F8: =YK_ALL!F8/DMLMLR -> 278.9755473 | G8: =YK_ALL!G8/DMLMLR -> 311.4629906
G10: млрд. дол.США
B11: =YT_ALL!B11 -> 2012-12-31 | C11: =YT_ALL!C11 -> 2013-12-31 | D11: =YT_ALL!D11 -> 2014-12-31 | E11: =YT_ALL!E11 -> 2015-12-31 | F11: =YT_ALL!F11 -> 2016-12-31 | G11: =YT_ALL!G11 -> 2017-07-31
A12: Загальна сума державного та гарантованого державою боргу | B12: =SUM(B$13+ B$14) -> 64.49528751 | C12: 73.16233841 | D12: 69.81192296 | E12: 65.50568611 | F12: 70.97270827 | G12: 76.06052459
A13: =YK_ALL!A13 -> Державний борг | B13: =YK_ALL!B13/DMLMLR -> 49.945982 | C13: =YK_ALL!C13/DMLMLR -> 60.07989859 | D13: =YK_ALL!D13/DMLMLR -> 60.05816063 | E13: =YK_ALL!E13/DMLMLR -> 55.59310503 | F13: =YK_ALL!F13/DMLMLR -> 60.71280594 | G13: =YK_ALL!G13/DMLMLR -> 64.04216025
A14: =YK_ALL!A14 -> Гарантований державою борг | B14: =YK_ALL!B14/DMLMLR -> 14.54930551 | C14: =YK_ALL!C14/DMLMLR -> 13.08243982 | D14: =YK_ALL!D14/DMLMLR -> 9.753762333 | E14: =YK_ALL!E14/DMLMLR -> 9.912581084 | F14: =YK_ALL!F14/DMLMLR -> 10.25990233 | G14: =YK_ALL!G14/DMLMLR -> 12.01836434
G16: %
B17: =YT_ALL!B17 -> 2012-12-31 | C17: =YT_ALL!C17 -> 2013-12-31 | D17: =YT_ALL!D17 -> 2014-12-31 | E17: =YT_ALL!E17 -> 2015-12-31 | F17: =YT_ALL!F17 -> 2016-12-31 | G17: =YT_ALL!G17 -> 2017-07-31
A18: Загальна сума державного та гарантованого державою боргу | B18: =SUM(B$19+ B$20) -> 1 | C18: 1 | D18: 1 | E18: 1 | F18: 1 | G18: 1
A19: =YK_ALL!A19 -> Державний борг | B19: =YK_ALL!B19 -> 0.774413 | C19: =YK_ALL!C19 -> 0.821186 | D19: =YK_ALL!D19 -> 0.860285 | E19: =YK_ALL!E19 -> 0.848676 | F19: =YK_ALL!F19 -> 0.855439 | G19: =YK_ALL!G19 -> 0.841989
A20: =YK_ALL!A20 -> Гарантований державою борг | B20: =YK_ALL!B20 -> 0.225587 | C20: =YK_ALL!C20 -> 0.178814 | D20: =YK_ALL!D20 -> 0.139715 | E20: =YK_ALL!E20 -> 0.151324 | F20: =YK_ALL!F20 -> 0.144561 | G20: =YK_ALL!G20 -> 0.158011

Sheet YK_ALL (hidden)
A2: Державний та гарантований державою борг України за останні 5 років
G4: =VALUAH -> млрд. грн
B5: 2012-12-31 | C5: 2013-12-31 | D5: 2014-12-31 | E5: 2015-12-31 | F5: 2016-12-31 | G5: 2017-07-31
A6: Загальна сума державного та гарантованого державою боргу | B6: =SUM(B$7+ B$8) -> 515.5108331 | C6: 584.7865709 | D6: 1100.833217 | E6: 1572.180159 | F6: 1929.808832 | G6: 1971.153294
A7: Державний борг | B7: 399.2182341 | C7: 480.2186294 | D7: 947.0304691 | E7: 1334.271601 | F7: 1650.833285 | G7: 1659.690304
A8: Гарантований державою борг | B8: 116.292599 | C8: 104.5679415 | D8: 153.8027476 | E8: 237.9085577 | F8: 278.9755473 | G8: 311.4629906
G10: =VALUSD -> млрд. дол. США
B11: 2012-12-31 | C11: 2013-12-31 | D11: 2014-12-31 | E11: 2015-12-31 | F11: 2016-12-31 | G11: 2017-07-31
A12: Загальна сума державного та гарантованого державою боргу | B12: =SUM(B$13+ B$14) -> 64.49528751 | C12: 73.16233841 | D12: 69.81192296 | E12: 65.50568611 | F12: 70.97270827 | G12: 76.06052459
A13: Державний борг | B13: 49.945982 | C13: 60.07989859 | D13: 60.05816063 | E13: 55.59310503 | F13: 60.71280594 | G13: 64.04216025
A14: Гарантований державою борг | B14: 14.54930551 | C14: 13.08243982 | D14: 9.753762333 | E14: 9.912581084 | F14: 10.25990233 | G14: 12.01836434
G16: %
B17: 2012-12-31 | C17: 2013-12-31 | D17: 2014-12-31 | E17: 2015-12-31 | F17: 2016-12-31 | G17: 2017-07-31
A18: Загальна сума державного та гарантованого державою боргу | B18: =SUM(B$19+ B$20) -> 1 | C18: 1 | D18: 1 | E18: 1 | F18: 1 | G18: 1
A19: Державний борг | B19: 0.774413 | C19: 0.821186 | D19: 0.860285 | E19: 0.848676 | F19: 0.855439 | G19: 0.841989
A20: Гарантований державою борг | B20: 0.225587 | C20: 0.178814 | D20: 0.139715 | E20: 0.151324 | F20: 0.144561 | G20: 0.158011

Sheet YKT2_UAH
A2: Державний та гарантований державою борг України за останні 5 років
G4: =VALUAH -> млрд. грн
B5: 2012-12-31 | C5: 2013-12-31 | D5: 2014-12-31 | E5: 2015-12-31 | F5: 2016-12-31 | G5: 2017-07-31
A6: Загальна сума державного та гарантованого державою боргу | B6: =B$7+B$65 -> 515.5108331 | C6: 584.7865709 | D6: 1100.833217 | E6: 1572.180159 | F6: 1929.808832 | G6: 1971.153294
A7: Державний борг | B7: =B$8+B$33 -> 399.2182341 | C7: 480.2186294 | D7: 947.0304691 | E7: 1334.271601 | F7: 1650.833285 | G7: 1659.690304
A8: Внутрішній борг | B8: =B$9+B$31 -> 190.2992977 | C8: 256.9595757 | D8: 461.0036228 | E8: 508.0011231 | F8: 670.6455305 | G8: 689.4242723
A9: 1. Заборгованість за випущеними цінними паперами на внутрішньому ринку | B9: =SUM(B$10:B$30) -> 187.2574897 | C9: 254.0500202 | D9: 458.2263198 | E9: 505.3560727 | F9: 668.1327326 | G9: 686.9776006
A10: Казначейські зобов'язання | B10: 0.8262324135 | C10: 1.5986 | D10: 0.088426 | E10: 0.098638 | F10: 0 | G10: 0
A11: ОВДП (1 - місячні) | B11: 0 | C11: 2.360977795 | D11: 0 | E11: 0 | F11: 0 | G11: 0
A12: ОВДП (10 - річні) | B12: 15.412189 | C12: 15.742189 | D12: 50.254465 | E12: 60.558463 | F12: 74.832983 | G12: 81.319904
A13: ОВДП (11 - річні) | B13: 3.849981 | C13: 3.849981 | D13: 3.849981 | E13: 17.382981 | F13: 17.382981 | G13: 17.382981
A14: ОВДП (12 - місячні) | B14: 14.39281113 | C14: 2.9587168 | D14: 7.33788948 | E14: 8.283710212 | F14: 3.47757 | G14: 3.39429
A15: ОВДП (12 - річні) | B15: 1.5 | C15: 1.5 | D15: 1.5 | E15: 12.5 | F15: 28.5 | G15: 28.5
A16: ОВДП (13 - річні) | B16: 0 | C16: 0 | D16: 2.61763 | E16: 13.11763 | F16: 37.11763 | G16: 41.817631
A17: ОВДП (14 - річні) | B17: 0 | C17: 0 | D17: 3.25 | E17: 3.25 | F17: 51.25 | G17: 56.15
A18: ОВДП (15 - річні) | B18: 0 | C18: 0 | D18: 15.84884 | E18: 15.84884 | F18: 42.789838 | G18: 75.590793
A19: ОВДП (18 - місячні) | B19: 5.709035823 | C19: 2.803424855 | D19: 0.76931632 | E19: 1.04892516 | F19: 29.25796141 | G19: 15.32930413
A20: ОВДП (2 - річні) | B20: 11.0783616 | C20: 20.37080624 | D20: 40.90737357 | E20: 21.91034234 | F20: 64.35343953 | G20: 66.22423565
A21: ОВДП (3 - місячні) | B21: 0 | C21: 0 | D21: 0 | E21: 0 | F21: 0.01 | G21: 0
A22: ОВДП (3 - річні) | B22: 28.45427742 | C22: 34.65649649 | D22: 46.58505481 | E22: 43.37723613 | F22: 18.462385 | G22: 24.07202433
A23: ОВДП (4 - річні) | B23: 1.598269 | C23: 6.5181647 | D23: 2.92218286 | E23: 15.04510672 | F23: 15.58553728 | G23: 11.235
A24: ОВДП (5 - річні) | B24: 32.6656933 | C24: 75.31738528 | D24: 131.3797728 | E24: 149.0338121 | F24: 151.5696514 | G24: 139.2994345
A25: ОВДП (6 - місячні) | B25: 0 | C25: 0.55379 | D25: 0.17 | E25: 0 | F25: 0.215801 | G25: 0.635
A26: ОВДП (6 - річні) | B26: 9.5 | C26: 9.5 | D26: 27.1 | E26: 27.1 | F26: 24.1 | G26: 22.85
A27: ОВДП (7 - річні) | B27: 33.095042 | C27: 47.143891 | D27: 54.624791 | E27: 48.624791 | F27: 44.739791 | G27: 44.639341
A28: ОВДП (8 - річні) | B28: 14.301198 | C28: 14.301198 | D28: 31.301198 | E28: 31.301198 | F28: 27.416198 | G28: 21.158263
A29: ОВДП (9 - місячні) | B29: 0 | C29: 0 | D29: 0.845 | E29: 0 | F29: 0.196567 | G29: 0.505
A30: ОВДП (9 - річні) | B30: 14.874399 | C30: 14.874399 | D30: 36.874399 | E30: 36.874399 | F30: 36.874399 | G30: 36.874399
A31: 2. Заборгованість перед банківськими та іншими фінансовими установами | B31: =SUM(B$32:B$32) -> 3.041808018 | C31: 2.909555495 | D31: 2.777302973 | E31: 2.64505045 | F31: 2.512797928 | G31: 2.446671666
A32: Національний банк України | B32: 3.041808018 | C32: 2.909555495 | D32: 2.777302973 | E32: 2.64505045 | F32: 2.512797928 | G32: 2.446671666
A33: Зовнішній борг | B33: =B$34+B$41+B$49+B$51+B$63 -> 208.9189364 | C33: 223.2590538 | D33: 486.0268463 | E33: 826.2704782 | F33: 980.1877545 | G33: 970.2660315
A34: 1. Заборгованість за позиками, одержаними від міжнародних фінансових організацій | B34: =SUM(B$35:B$40) -> 80.09720305 | C34: 61.90365009 | D34: 169.0899033 | E34: 337.4492911 | F34: 371.8465755 | G34: 386.4058193
A35: Європейське Співтовариство | B35: 0 | C35: 0 | D35: 26.15675488 | E35: 57.95311509 | F35: 62.81395484 | G35: 85.41386714
A36: Європейський банк реконструкції та розвитку | B36: 4.266735656 | C36: 4.766645754 | D36: 9.368981111 | E36: 13.99069907 | F36: 16.0723087 | G36: 16.65096404
A37: Європейський Інвестиційний Банк | B37: 3.203300288 | C37: 4.283134554 | D37: 7.652991944 | E37: 12.53014512 | F37: 14.52237776 | G37: 15.96529035
A38: Міжнародний банк реконструкції та розвитку | B38: 24.23351704 | C38: 24.53954845 | D38: 68.31898228 | E38: 124.7471258 | F38: 137.4605065 | G38: 127.6583971
A39: Міжнародний Валютний Фонд | B39: 48.39365006 | C39: 28.31432133 | D39: 57.58509724 | E39: 128.2076972 | F39: 140.9098527 | G39: 140.6365641
A40: Фонд чистих технологій (МБРР) | B40: 0 | C40: 0 | D40: 0.0070958502 | E40: 0.02050886997 | F40: 0.06757499901 | G40: 0.08073649949
A41: 2. Заборгованість за позиками, одержаними від органів управління іноземних держав | B41: =SUM(B$42:B$48) -> 9.099501375 | C41: 7.278928575 | D41: 16.37226171 | E41: 32.70852715 | F41: 45.64750416 | G41: 45.5388627
A42: Італія | B42: 0.08464974598 | C42: 0 | D42: 0 | E42: 0 | F42: 0 | G42: 0
A43: Канада | B43: 0 | C43: 0 | D43: 2.7121072 | E43: 6.9140144 | F43: 8.0323876 | G43: 8.2643812
A44: Німеччина | B44: 0.4819254518 | C44: 0.1064888486 | D44: 0.134630356 | E44: 5.428187703 | F44: 5.983279353 | G44: 6.516904841
A45: Росія | B45: 6.405237389 | C45: 5.623921639 | D45: 9.553472056 | E45: 14.54094475 | F45: 16.47374066 | G45: 15.70111146
A46: США | B46: 0.2648623985 | C46: 0.09489139132 | D46: 0.1647326001 | E46: 0.216533956 | F46: 0.2065714027 | G46: 0.196883069
A47: Франція | B47: 0.02220053566 | C47: 0 | D47: 0 | E47: 0 | F47: 0 | G47: 0
A48: Японія | B48: 1.840625854 | C48: 1.453626696 | D48: 3.807319496 | E48: 5.608846349 | F48: 14.95152515 | G48: 14.85958212
A49: 3. Заборгованість за позиками, одержаними від іноземних комерційних банків, інших іноземних фінансових установ | B49: =SUM(B$50:B$50) -> 0.00053875717 | C49: 0.0005645446 | D49: 0.0009833632 | E49: 0.00134076761 | F49: 0.001453225 | G49: 0.00155414331
A50: Chase Manhattan Bank Luxembourg S.A. | B50: 0.00053875717 | C50: 0.0005645446 | D50: 0.0009833632 | E50: 0.00134076761 | F50: 0.001453225 | G50: 0.00155414331
A51: 4. Заборгованість за випущеними цінними паперами на зовнішньому ринку | B51: =SUM(B$52:B$62) -> 104.6362032 | C51: 138.909068 | D51: 272.5093466 | E51: 415.2699327 | F51: 517.8044819 | G51: 493.5191135
A52: ОЗДП 2003 року | B52: 7.993 | C52: 0 | D52: 0 | E52: 0 | F52: 0 | G52: 0
A53: ОЗДП 2005 року | B53: 6.3223032 | C53: 6.624918 | D53: 11.5397448 | E53: 0 | F53: 0 | G53: 0
A54: ОЗДП 2006 року | B54: 7.993 | C54: 7.993 | D54: 15.768556 | E54: 0 | F54: 0 | G54: 0
A55: ОЗДП 2007 року | B55: 5.5951 | C55: 5.5951 | D55: 11.0379892 | E55: 0 | F55: 0 | G55: 0
A56: ОЗДП 2010 року | B56: 15.986 | C56: 15.986 | D56: 31.537112 | E56: 0 | F56: 0 | G56: 0
A57: ОЗДП 2011 року | B57: 21.98075 | C57: 21.98075 | D57: 43.363529 | E57: 0 | F57: 0 | G57: 0
A58: ОЗДП 2012 року | B58: 38.76605 | C58: 46.75905 | D58: 76.4774966 | E58: 0 | F58: 0 | G58: 0
A59: ОЗДП 2013 року | B59: 0 | C59: 33.97025 | D59: 67.016363 | E59: 72.002001 | F59: 81.572574 | G59: 77.746767
A60: ОЗДП 2014 року | B60: 0 | C60: 0 | D60: 15.768556 | E60: 24.000667 | F60: 27.190858 | G60: 25.915589
A61: ОЗДП 2015 року | B61: 0 | C61: 0 | D61: 0 | E61: 319.2672647 | F61: 381.8501919 | G61: 363.9411685
A62: ОЗДП 2016 року | B62: 0 | C62: 0 | D62: 0 | E62: 0 | F62: 27.190858 | G62: 25.915589
A63: 5. Заборгованість, не віднесена до інших категорій | B63: =SUM(B$64:B$64) -> 15.08549003 | C63: 15.16684257 | D63: 28.05435136 | E63: 40.84138642 | F63: 44.88773975 | G63: 44.80068192
A64: Міжнародний Валютний Фонд | B64: 15.08549003 | C64: 15.16684257 | D64: 28.05435136 | E64: 40.84138642 | F64: 44.88773975 | G64: 44.80068192
A65: Гарантований державою борг | B65: =B$66+B$86 -> 116.292599 | C65: 104.5679415 | D65: 153.8027476 | E65: 237.9085577 | F65: 278.9755473 | G65: 311.4629906
A66: Внутрішній борг | B66: =B$67+B$80+B$84 -> 16.2114159 | C66: 27.12914981 | D66: 27.86328456 | E66: 21.45945491 | F66: 19.08447525 | G66: 19.77754341
A67: 1. Заборгованість за випущеними цінними паперами на внутрішньому ринку | B67: =SUM(B$68:B$79) -> 9.971204724 | C67: 21.13576798 | D67: 21.5670116 | E67: 16.4000116 | F67: 15.9500116 | G67: 15.9500116
A68: Векселі Укравтодору | B68: 1.567787124 | C68: 0.9998503833 | D68: 0 | E68: 0 | F68: 0 | G68: 0
A69: Державні цінні папери | B69: 1.16e-05 | C69: 1.16e-05 | D69: 1.16e-05 | E69: 1.16e-05 | F69: 1.16e-05 | G69: 1.16e-05
A70: Облігації ДІУ (10 - річні) | B70: 0 | C70: 0 | D70: 1 | E70: 1 | F70: 1 | G70: 1
A71: Облігації ДІУ (5 - річні) | B71: 1.8175 | C71: 1.8 | D71: 3 | E71: 3 | F71: 3 | G71: 3
A72: Облігації ДІУ (7 - річні) | B72: 0.4 | C72: 1.4 | D72: 3.2 | E72: 3.2 | F72: 3 | G72: 3
A73: Облігації ДП КАЗ "Авіант" (5 - річні) | B73: 0.578906 | C73: 0.578906 | D73: 0 | E73: 0 | F73: 0 | G73: 0
A74: Облігації НАК "Нафтогаз України" (3 - річні) | B74: 0 | C74: 4.8 | D74: 4.8 | E74: 4.8 | F74: 4.8 | G74: 4.8
A75: Облігації Укравтодору (12 - місячні) | B75: 0 | C75: 1.55 | D75: 0 | E75: 0 | F75: 0 | G75: 0
A76: Облігації Укравтодору (3 - річні) | B76: 4 | C76: 4.25 | D76: 4.25 | E76: 0.25 | F76: 0 | G76: 0
A77: Облігації Укравтодору (5 - річні) | B77: 0 | C77: 4.15 | D77: 4.15 | E77: 4.15 | F77: 4.15 | G77: 4.15
A78: Облігації ХДАВП (5 - річні) | B78: 0.88 | C78: 0.88 | D78: 0.44 | E78: 0 | F78: 0 | G78: 0
A79: Облігації ХДАВП (6 - річні) | B79: 0.727 | C79: 0.727 | D79: 0.727 | E79: 0 | F79: 0 | G79: 0
A80: 2. Заборгованість перед банківськими та іншими фінансовими установами | B80: =SUM(B$81:B$83) -> 6.23925653 | C80: 5.992427177 | D80: 6.295318313 | E80: 5.058488655 | F80: 3.133508998 | G80: 3.826577161
A81: ВАТ "Державний експортно-імпортний банк України" | B81: 2.1 | C81: 2.1 | D81: 2.1 | E81: 1.05 | F81: 0 | G81: 0.314037666
A82: ВАТ "Державний ощадний банк України" | B82: 4.13925653 | C82: 3.892427177 | D82: 4.009862318 | E82: 3.859862318 | F82: 3.021712318 | G82: 3.419263799
A83: ПАТ АБ "Укргазбанк" | B83: 0 | C83: 0 | D83: 0.1854559944 | E83: 0.1486263373 | F83: 0.1117966802 | G83: 0.09327569528
A84: 3. Заборгованість, не віднесена до інших категорій | B84: =SUM(B$85:B$85) -> 0.00095465 | C84: 0.00095465 | D84: 0.00095465 | E84: 0.00095465 | F84: 0.00095465 | G84: 0.00095465
A85: Інші кредитори | B85: 0.00095465 | C85: 0.00095465 | D85: 0.00095465 | E85: 0.00095465 | F85: 0.00095465 | G85: 0.00095465
A86: Зовнішній борг | B86: =B$87+B$93+B$95+B$109+B$113 -> 100.0811831 | C86: 77.4387917 | D86: 125.939463 | E86: 216.4491028 | F86: 259.8910721 | G86: 291.6854472
A87: 1. Заборгованість за позиками, одержаними від міжнародних фінансових організацій | B87: =SUM(B$88:B$92) -> 40.55783393 | C87: 16.22562155 | D87: 40.11055668 | E87: 140.8338031 | F87: 190.9827472 | G87: 215.4904968
A88: Європейське співтоватиство з атомної енергії | B88: 0.3794576859 | C88: 0.3183781317 | D88: 0.4514504503 | E88: 0.4566383727 | F88: 0.2958517627 | G88: 1.73186027
A89: Європейський банк реконструкції та розвитку | B89: 0.9042426181 | C89: 0.7821906616 | D89: 1.392507257 | E89: 3.050143293 | F89: 10.56222871 | G89: 7.518217417
A90: Європейський Інвестиційний Банк | B90: 0 | C90: 0 | D90: 0 | E90: 0 | F90: 0.99479114 | G90: 1.06387379
A91: Міжнародний банк реконструкції та розвитку | B91: 1.483629802 | C91: 1.948240733 | D91: 5.807737291 | E91: 9.418982998 | F91: 12.37301899 | G91: 11.96302462
A92: Міжнародний Валютний Фонд | B92: 37.79050383 | C92: 13.17681203 | D92: 32.45886168 | E92: 127.9080385 | F92: 166.7568566 | G92: 193.2135207
A93: 2. Заборгованість за позиками, одержаними від органів управління іноземних держав | B93: =SUM(B$94:B$94) -> 1.980933645 | C93: 1.980933645 | D93: 3.842712472 | E93: 4.679066995 | F93: 3.975759701 | G93: 2.526195982
A94: Канада | B94: 1.980933645 | C94: 1.980933645 | D94: 3.842712472 | E94: 4.679066995 | F94: 3.975759701 | G94: 2.526195982
A95: 3. Заборгованість за позиками, одержаними від іноземних комерційних банків, інших іноземних фінансових установ | B95: =SUM(B$96:B$108) -> 29.34160084 | C95: 31.0260264 | D95: 51.61602411 | E95: 68.22755055 | F95: 61.95552088 | G95: 70.69748388
A96: Aquasafety Invest plc | B96: 0.3512390631 | C96: 0.1840254926 | D96: 0 | E96: 0 | F96: 0 | G96: 0
A97: Citibank, N.A., Deutsche Bank AG | B97: 0 | C97: 0 | D97: 0 | E97: 0 | F97: 0 | G97: 12.87471518
A98: Citibank, N.A. London | B98: 1.572913927 | C98: 1.236150671 | D98: 1.435475707 | E98: 0.9786004447 | F98: 0 | G98: 0
A99: Credit Suisse First Boston International | B99: 1.19895 | C99: 1.19895 | D99: 0 | E99: 0 | F99: 0 | G99: 0
A100: Credit Suisse International | B100: 2.014236 | C100: 1.6113888 | D100: 2.384205667 | E100: 2.419267234 | F100: 0 | G100: 0
A101: Deutsche Bank AG London | B101: 0.342557152 | C101: 0.22837144 | D101: 0.2252651127 | E101: 0 | F101: 0.3881279224 | G101: 0.4251716691
A102: UniCredit Bank Austria AG | B102: 0.7165276921 | C102: 0.6569710314 | D102: 0.9808783024 | E102: 1.114482976 | F102: 0.96636853 | G102: 0.9042927157
A103: VTB Capital PLC | B103: 3.5233144 | C103: 2.348876277 | D103: 2.316926537 | E103: 0 | F103: 0 | G103: 0
A104: ВАТ "Газпромбанк" | B104: 0 | C104: 3.9965 | D104: 7.884278 | E104: 12.0003335 | F104: 13.595429 | G104: 12.9577945
A105: Державний банк розвитку КНР | B105: 0.4630412521 | C105: 0.679405 | D105: 1.34032726 | E105: 1.729968077 | F105: 1.608611159 | G105: 1.36575154
A106: Експортно-імпортний банк Китаю | B106: 11.9895 | C106: 12.40612629 | D106: 24.47475256 | E106: 37.25200875 | F106: 41.84925707 | G106: 39.21108886
A107: Експортно-імпортний банк Кореї | B107: 2.08577335 | C107: 1.825051681 | D107: 3.086103516 | E107: 3.914358784 | F107: 3.547727198 | G107: 2.958669415
A108: Сбербанк Росії | B108: 5.083548 | C108: 4.654209714 | D108: 7.487811449 | E108: 8.818530789 | F108: 0 | G108: 0
A109: 4. Заборгованість за випущеними цінними паперами на зовнішньому ринку | B109: =SUM(B$110:B$112) -> 27.20031488 | C109: 27.20031488 | D109: 28.50954925 | E109: 0 | F109: 0 | G109: 0
A110: Облігації ДП "ФІНІНПРО" (5 - річні) | B110: 4.39615 | C110: 4.39615 | D110: 8.6727058 | E110: 0 | F110: 0 | G110: 0
A111: Облігації ДП "ФІНІНПРО" (7 - річні) | B111: 10.055194 | C111: 10.055194 | D111: 19.83684345 | E111: 0 | F111: 0 | G111: 0
A112: Облігації НАК "Нафтогаз" (5 - річні) | B112: 12.74897088 | C112: 12.74897088 | D112: 0 | E112: 0 | F112: 0 | G112: 0
A113: 5. Заборгованість, не віднесена до інших категорій | B113: =SUM(B$114:B$114) -> 1.000499759 | C113: 1.005895222 | D113: 1.860620486 | E113: 2.708682131 | F113: 2.977044347 | G113: 2.971270498
A114: Міжнародний Валютний Фонд | B114: 1.000499759 | C114: 1.005895222 | D114: 1.860620486 | E114: 2.708682131 | F114: 2.977044347 | G114: 2.971270498

Sheet YKT2_USD
A2: Державний та гарантований державою борг України за останні 5 років
G4: =VALUSD -> млрд. дол. США
B5: 2012-12-31 | C5: 2013-12-31 | D5: 2014-12-31 | E5: 2015-12-31 | F5: 2016-12-31 | G5: 2017-07-31
A6: Загальна сума державного та гарантованого державою боргу | B6: =B$7+B$65 -> 64.49528751 | C6: 73.16233841 | D6: 69.81192296 | E6: 65.50568611 | F6: 70.97270827 | G6: 76.06052459
A7: Державний борг | B7: =B$8+B$33 -> 49.945982 | C7: 60.07989859 | D7: 60.05816063 | E7: 55.59310503 | F7: 60.71280594 | G7: 64.04216025
A8: Внутрішній борг | B8: =B$9+B$31 -> 23.80824443 | C8: 32.14807652 | D8: 29.23562708 | E8: 21.16612522 | F8: 24.66437545 | G8: 26.60268583
A9: 1. Заборгованість за випущеними цінними паперами на внутрішньому ринку | B9: =SUM(B$10:B$30) -> 23.42768544 | C9: 31.78406358 | D9: 29.05949789 | E9: 21.05591785 | F9: 24.57196211 | G9: 26.50827657
A10: Казначейські зобов'язання | B10: 0.1033695 | C10: 0.2 | D10: 0.0056077424 | E10: 0.00410980245 | F10: 0 | G10: 0
A11: ОВДП (1 - місячні) | B11: 0 | C11: 0.2953806825 | D11: 0 | E11: 0 | F11: 0 | G11: 0
A12: ОВДП (10 - річні) | B12: 1.928210809 | C12: 1.969496935 | D12: 3.187004885 | E12: 2.523199168 | F12: 2.752137612 | G12: 3.137875971
A13: ОВДП (11 - річні) | B13: 0.4816690854 | C13: 0.4816690854 | D13: 0.2441555841 | E13: 0.7242707463 | F13: 0.6392950528 | G13: 0.6707538463
A14: ОВДП (12 - місячні) | B14: 1.800676983 | C14: 0.3701634931 | D14: 0.4653494892 | E14: 0.345145 | F14: 0.1278948241 | G14: 0.1309748353
A15: ОВДП (12 - річні) | B15: 0.1876642062 | C15: 0.1876642062 | D15: 0.09512602169 | E15: 0.5208188589 | F15: 1.048146403 | G15: 1.099724185
A16: ОВДП (13 - річні) | B16: 0 | C16: 0 | D16: 0.1660031521 | E16: 0.5465527271 | F16: 1.365077557 | G16: 1.613609129
A17: ОВДП (14 - річні) | B17: 0 | C17: 0 | D17: 0.2061063803 | E17: 0.1354129033 | F17: 1.884824672 | G17: 2.166649579
A18: ОВДП (15 - річні) | B18: 0 | C18: 0 | D18: 1.005091398 | E18: 0.6603499811 | F18: 1.573684729 | G18: 2.916807833
A19: ОВДП (18 - місячні) | B19: 0.7142544505 | C19: 0.350735 | D19: 0.04878800063 | E19: 0.04370400039 | F19: 1.076022 | G19: 0.591509
A20: ОВДП (2 - річні) | B20: 1.386007957 | C20: 2.548580788 | D20: 2.594237137 | E20: 0.9129055595 | F20: 2.366730742 | G20: 2.555382231
A21: ОВДП (3 - місячні) | B21: 0 | C21: 0 | D21: 0 | E21: 0 | F21: 0.00036777067 | G21: 0
A22: ОВДП (3 - річні) | B22: 3.55989959 | C22: 4.335855935 | D22: 2.954300622 | E22: 1.80733461 | F22: 0.6789923657 | G22: 0.9288627137
A23: ОВДП (4 - річні) | B23: 0.1999585888 | C23: 0.8154841361 | D23: 0.1853170867 | E23: 0.6268620251 | F23: 0.5731903451 | G23: 0.4335228499
A24: ОВДП (5 - річні) | B24: 4.086787602 | C24: 9.422918214 | D24: 8.331756744 | E24: 6.209569597 | F24: 5.574287189 | G24: 5.375121303
A25: ОВДП (6 - місячні) | B25: 0 | C25: 0.06928437383 | D25: 0.01078094912 | E25: 0 | F25: 0.00793652779 | G25: 0.02450262658
A26: ОВДП (6 - річні) | B26: 1.188539972 | C26: 1.188539972 | D26: 1.718610125 | E26: 1.129135286 | F26: 0.886327309 | G26: 0.8817086889
A27: ОВДП (7 - річні) | B27: 4.14050319 | C27: 5.898147254 | D27: 3.464159369 | E27: 2.025976653 | F27: 1.645398281 | G27: 1.722489927
A28: ОВДП (8 - річні) | B28: 1.789215313 | C28: 1.789215313 | D28: 1.98503896 | E28: 1.304180338 | F28: 1.008287344 | G28: 0.8164299488
A29: ОВДП (9 - місячні) | B29: 0 | C29: 0 | D29: 0.05358765889 | E29: 0 | F29: 0.00722915769 | G29: 0.01948634083
A30: ОВДП (9 - річні) | B30: 1.860928187 | C30: 1.860928187 | D30: 2.338476586 | E30: 1.536390593 | F30: 1.356132234 | G30: 1.422865558
A31: 2. Заборгованість перед банківськими та іншими фінансовими установами | B31: =SUM(B$32:B$32) -> 0.3805589913 | C31: 0.3640129482 | D31: 0.1761291885 | E31: 0.1102073726 | F31: 0.09241333715 | G31: 0.09440926333
A32: Національний банк України | B32: 0.3805589913 | C32: 0.3640129482 | D32: 0.1761291885 | E32: 0.1102073726 | F32: 0.09241333715 | G32: 0.09440926333
A33: Зовнішній борг | B33: =B$34+B$41+B$49+B$51+B$63 -> 26.13773757 | C33: 27.93182207 | D33: 30.82253355 | E33: 34.42697981 | F33: 36.04843049 | G33: 37.43947442
A34: 1. Заборгованість за позиками, одержаними від міжнародних фінансових організацій | B34: =SUM(B$35:B$40) -> 10.02091869 | C34: 7.744732902 | D34: 10.72323321 | E34: 14.05999638 | F34: 13.67542633 | G34: 14.91016929
A35: Європейське Співтовариство | B35: 0 | C35: 0 | D35: 1.658792021 | E35: 2.414646022 | F35: 2.310113011 | G35: 3.295848963
A36: Європейський банк реконструкції та розвитку | B36: 0.53380904 | C36: 0.5963525277 | D36: 0.5941559335 | E36: 0.582929594 | F36: 0.59109237 | G36: 0.6425076445
A37: Європейський Інвестиційний Банк | B37: 0.4007632038 | C37: 0.5358606974 | D37: 0.4853324518 | E37: 0.5220748706 | F37: 0.5340904563 | G37: 0.6160496815
A38: Міжнародний банк реконструкції та розвитку | B38: 3.031842493 | C38: 3.070129919 | D38: 4.33260866 | E38: 5.197652457 | F38: 5.055394225 | G38: 4.925930764
A39: Міжнародний Валютний Фонд | B39: 6.054503949 | C39: 3.542389758 | D39: 3.651894139 | E39: 5.341838923 | F39: 5.18225106 | G39: 5.426716873
A40: Фонд чистих технологій (МБРР) | B40: 0 | C40: 0 | D40: 0.00045 | E40: 0.0008545125 | F40: 0.00248521025 | G40: 0.00311536425
A41: 2. Заборгованість за позиками, одержаними від органів управління іноземних держав | B41: =SUM(B$42:B$48) -> 1.138433801 | C41: 0.9106629019 | D41: 1.038285415 | E41: 1.362817423 | F41: 1.678781308 | G41: 1.757199603
A42: Італія | B42: 0.01059048492 | C42: 0 | D42: 0 | E42: 0 | F42: 0 | G42: 0
A43: Канада | B43: 0 | C43: 0 | D43: 0.1719946455 | E43: 0.2880759272 | F43: 0.295407655 | G43: 0.3188961362
A44: Німеччина | B44: 0.06029343823 | C44: 0.01332276348 | D44: 0.00853790011 | E44: 0.226168202 | F44: 0.2200474642 | G44: 0.2514665918
A45: Росія | B45: 0.80135586 | C45: 0.70360586 | D45: 0.60585586 | E45: 0.60585586 | F45: 0.60585586 | G45: 0.60585586
A46: США | B46: 0.03313679451 | C46: 0.01187181175 | D46: 0.01044690459 | E46: 0.00902199743 | F46: 0.00759709027 | G46: 0.00759709027
A47: Франція | B47: 0.00277749727 | C47: 0 | D47: 0 | E47: 0 | F47: 0 | G47: 0
A48: Японія | B48: 0.2302797265 | C48: 0.1818624667 | D48: 0.2414501046 | E48: 0.2336954364 | F48: 0.5498732387 | G48: 0.5733839244
A49: 3. Заборгованість за позиками, одержаними від іноземних комерційних банків, інших іноземних фінансових установ | B49: =SUM(B$50:B$50) -> 6.740362e-05 | C49: 7.062988e-05 | D49: 6.236229e-05 | E49: 5.586376e-05 | F49: 5.344535e-05 | G49: 5.996944e-05
A50: Chase Manhattan Bank Luxembourg S.A. | B50: 6.740362e-05 | C50: 7.062988e-05 | D50: 6.236229e-05 | E50: 5.586376e-05 | F50: 5.344535e-05 | G50: 5.996944e-05
A51: 4. Заборгованість за випущеними цінними паперами на зовнішньому ринку | B51: =SUM(B$52:B$62) -> 13.09098001 | C51: 17.37883998 | D51: 17.28182001 | E51: 17.302433 | F51: 19.04333 | G51: 19.04333
A52: ОЗДП 2003 року | B52: 1 | C52: 0 | D52: 0 | E52: 0 | F52: 0 | G52: 0
A53: ОЗДП 2005 року | B53: 0.7909800075 | C53: 0.828839985 | D53: 0.7318200094 | E53: 0 | F53: 0 | G53: 0
A54: ОЗДП 2006 року | B54: 1 | C54: 1 | D54: 1 | E54: 0 | F54: 0 | G54: 0
A55: ОЗДП 2007 року | B55: 0.7 | C55: 0.7 | D55: 0.7 | E55: 0 | F55: 0 | G55: 0
A56: ОЗДП 2010 року | B56: 2 | C56: 2 | D56: 2 | E56: 0 | F56: 0 | G56: 0
A57: ОЗДП 2011 року | B57: 2.75 | C57: 2.75 | D57: 2.75 | E57: 0 | F57: 0 | G57: 0
A58: ОЗДП 2012 року | B58: 4.85 | C58: 5.85 | D58: 4.85 | E58: 0 | F58: 0 | G58: 0
A59: ОЗДП 2013 року | B59: 0 | C59: 4.25 | D59: 4.25 | E59: 3 | F59: 3 | G59: 3
A60: ОЗДП 2014 року | B60: 0 | C60: 0 | D60: 1 | E60: 1 | F60: 1 | G60: 1
A61: ОЗДП 2015 року | B61: 0 | C61: 0 | D61: 0 | E61: 13.302433 | F61: 14.04333 | G61: 14.04333
A62: ОЗДП 2016 року | B62: 0 | C62: 0 | D62: 0 | E62: 0 | F62: 1 | G62: 1
A63: 5. Заборгованість, не віднесена до інших категорій | B63: =SUM(B$64:B$64) -> 1.887337674 | C63: 1.897515648 | D63: 1.779132557 | E63: 1.701677142 | F63: 1.650839402 | G63: 1.728715559
A64: Міжнародний Валютний Фонд | B64: 1.887337674 | C64: 1.897515648 | D64: 1.779132557 | E64: 1.701677142 | F64: 1.650839402 | G64: 1.728715559
A65: Гарантований державою борг | B65: =B$66+B$86 -> 14.54930551 | C65: 13.08243982 | D65: 9.753762333 | E65: 9.912581084 | F65: 10.25990233 | G65: 12.01836434
A66: Внутрішній борг | B66: =B$67+B$80+B$84 -> 2.028201665 | C66: 3.394113576 | D66: 1.767015608 | E66: 0.8941191053 | F66: 0.7018710203 | G66: 0.7631523795
A67: 1. Заборгованість за випущеними цінними паперами на внутрішньому ринку | B67: =SUM(B$68:B$79) -> 1.247492146 | C67: 2.644284747 | D67: 1.367722675 | E67: 0.6833148262 | F67: 0.5865946415 | G67: 0.6154601232
A68: Векселі Укравтодору | B68: 0.1961450174 | C68: 0.1250907523 | D68: 0 | E68: 0 | F68: 0 | G68: 0
A69: Державні цінні папери | B69: 1.45127e-06 | C69: 1.45127e-06 | D69: 7.3564e-07 | E69: 4.8332e-07 | F69: 4.2661e-07 | G69: 4.4761e-07
A70: Облігації ДІУ (10 - річні) | B70: 0 | C70: 0 | D70: 0.06341734779 | E70: 0.04166550871 | F70: 0.03677706676 | G70: 0.03858681352
A71: Облігації ДІУ (5 - річні) | B71: 0.2273864633 | C71: 0.2251970476 | D71: 0.1902520434 | E71: 0.1249965261 | F71: 0.1103312003 | G71: 0.1157604406
A72: Облігації ДІУ (7 - річні) | B72: 0.05004378836 | C72: 0.1751532591 | D72: 0.202935513 | E72: 0.1333296278 | F72: 0.1103312003 | G72: 0.1157604406
A73: Облігації ДП КАЗ "Авіант" (5 - річні) | B73: 0.0724266233 | C73: 0.0724266233 | D73: 0 | E73: 0 | F73: 0 | G73: 0
A74: Облігації НАК "Нафтогаз України" (3 - річні) | B74: 0 | C74: 0.6005254598 | D74: 0.3044032694 | E74: 0.1999944418 | F74: 0.1765299205 | G74: 0.1852167049
A75: Облігації Укравтодору (12 - місячні) | B75: 0 | C75: 0.1939196797 | D75: 0 | E75: 0 | F75: 0 | G75: 0
A76: Облігації Укравтодору (3 - річні) | B76: 0.5004378831 | C76: 0.5317152508 | D76: 0.2695237281 | E76: 0.01041637718 | F76: 0 | G76: 0
A77: Облігації Укравтодору (5 - річні) | B77: 0 | C77: 0.5192043038 | D77: 0.2631819933 | E77: 0.1729118612 | F77: 0.1526248271 | G77: 0.1601352761
A78: Облігації ХДАВП (5 - річні) | B78: 0.1100963343 | C78: 0.1100963343 | D78: 0.02790363302 | E78: 0 | F78: 0 | G78: 0
A79: Облігації ХДАВП (6 - річні) | B79: 0.09095458526 | C79: 0.09095458526 | D79: 0.04610441184 | E79: 0 | F79: 0 | G79: 0
A80: 2. Заборгованість перед банківськими та іншими фінансовими установами | B80: =SUM(B$81:B$83) -> 0.7805900826 | C80: 0.7497093929 | D80: 0.3992323909 | E80: 0.2107645031 | F80: 0.1152412696 | G80: 0.1476554193
A81: ВАТ "Державний експортно-імпортний банк України" | B81: 0.2627298887 | C81: 0.2627298887 | D81: 0.1331764304 | E81: 0.04374878415 | F81: 0 | G81: 0.01211771285
A82: ВАТ "Державний ощадний банк України" | B82: 0.5178601939 | C82: 0.4869795042 | D82: 0.2542948332 | E82: 0.160823127 | F82: 0.1111297157 | G82: 0.1319384946
A83: ПАТ АБ "Укргазбанк" | B83: 0 | C83: 0 | D83: 0.0117611273 | E83: 0.00619259195 | F83: 0.00411155398 | G83: 0.00359921186
A84: 3. Заборгованість, не віднесена до інших категорій | B84: =SUM(B$85:B$85) -> 0.00011943576 | C84: 0.00011943576 | D84: 6.054137e-05 | E84: 3.977598e-05 | F84: 3.510923e-05 | G84: 3.68369e-05
A85: Інші кредитори | B85: 0.00011943576 | C85: 0.00011943576 | D85: 6.054137e-05 | E85: 3.977598e-05 | F85: 3.510923e-05 | G85: 3.68369e-05
A86: Зовнішній борг | B86: =B$87+B$93+B$95+B$109+B$113 -> 12.52110385 | C86: 9.688326248 | D86: 7.986746725 | E86: 9.018461978 | F86: 9.55803131 | G86: 11.25521196
A87: 1. Заборгованість за позиками, одержаними від міжнародних фінансових організацій | B87: =SUM(B$88:B$92) -> 5.07416914 | C87: 2.029978926 | D87: 2.543705123 | E87: 5.867912051 | F87: 7.023785243 | G87: 8.315091617
A88: Європейське співтоватиство з атомної енергії | B88: 0.04747375027 | C88: 0.03983211956 | D88: 0.02862979021 | E88: 0.0190260701 | F88: 0.01088056003 | G88: 0.0668269693
A89: Європейський банк реконструкції та розвитку | B89: 0.1131293154 | C89: 0.09785945972 | D89: 0.08830911699 | E89: 0.127085772 | F89: 0.3884477904 | G89: 0.2901040535
A90: Європейський Інвестиційний Банк | B90: 0 | C90: 0 | D90: 0 | E90: 0 | F90: 0.03658550017 | G90: 0.04105149954
A91: Міжнародний банк реконструкції та розвитку | B91: 0.1856161394 | C91: 0.2437433671 | D91: 0.3683112957 | E91: 0.3924467181 | F91: 0.4550433454 | G91: 0.461615
A92: Міжнародний Валютний Фонд | B92: 4.727949934 | C92: 1.648543979 | D92: 2.05845492 | E92: 5.329353491 | F92: 6.132828047 | G92: 7.455494095
A93: 2. Заборгованість за позиками, одержаними від органів управління іноземних держав | B93: =SUM(B$94:B$94) -> 0.24783356 | C93: 0.24783356 | D93: 0.2436946333 | E93: 0.1949557066 | F93: 0.14621678 | G93: 0.09747785328
A94: Канада | B94: 0.24783356 | C94: 0.24783356 | D94: 0.2436946333 | E94: 0.1949557066 | F94: 0.14621678 | G94: 0.09747785328
A95: 3. Заборгованість за позиками, одержаними від іноземних комерційних банків, інших іноземних фінансових установ | B95: =SUM(B$96:B$108) -> 3.670912153 | C95: 3.881649744 | D95: 3.273351352 | E95: 2.842735602 | F95: 2.278542328 | G95: 2.727990627
A96: Aquasafety Invest plc | B96: 0.04394333331 | C96: 0.023023332 | D96: 0 | E96: 0 | F96: 0 | G96: 0
A97: Citibank, N.A., Deutsche Bank AG | B97: 0 | C97: 0 | D97: 0 | E97: 0 | F97: 0 | G97: 0.4967942336
A98: Citibank, N.A. London | B98: 0.196786429 | C98: 0.1546541562 | D98: 0.09103406216 | E98: 0.04077388535 | F98: 0 | G98: 0
A99: Credit Suisse First Boston International | B99: 0.15 | C99: 0.15 | D99: 0 | E99: 0 | F99: 0 | G99: 0
A100: Credit Suisse International | B100: 0.252 | C100: 0.2016 | D100: 0.1512 | E100: 0.1008 | F100: 0 | G100: 0
A101: Deutsche Bank AG London | B101: 0.042857144 | C101: 0.02857143 | D101: 0.014285716 | E101: 0 | F101: 0.01427420651 | G101: 0.01640601991
A102: UniCredit Bank Austria AG | B102: 0.08964440036 | C102: 0.08219329806 | D102: 0.06220470044 | E102: 0.04643550014 | F102: 0.03554019995 | G102: 0.03489377439
A103: VTB Capital PLC | B103: 0.4408 | C103: 0.293866668 | D103: 0.146933336 | E103: 0 | F103: 0 | G103: 0
A104: ВАТ "Газпромбанк" | B104: 0 | C104: 0.5 | D104: 0.5 | E104: 0.5 | F104: 0.5 | G104: 0.5
A105: Державний банк розвитку КНР | B105: 0.057930846 | C105: 0.085 | D105: 0.085 | E105: 0.07208 | F105: 0.05916 | G105: 0.0527
A106: Експортно-імпортний банк Китаю | B106: 1.5 | C106: 1.552123895 | D106: 1.552123895 | E106: 1.552123895 | F106: 1.539092921 | G106: 1.513030974
A107: Експортно-імпортний банк Кореї | B107: 0.26095 | C107: 0.22833125 | D107: 0.1957125 | E107: 0.16309375 | F107: 0.130475 | G107: 0.114165625
A108: Сбербанк Росії | B108: 0.636 | C108: 0.5822857143 | D108: 0.4748571429 | E108: 0.3674285714 | F108: 0 | G108: 0
A109: 4. Заборгованість за випущеними цінними паперами на зовнішньому ринку | B109: =SUM(B$110:B$112) -> 3.403017 | C109: 3.403017 | D109: 1.808 | E109: 0 | F109: 0 | G109: 0
A110: Облігації ДП "ФІНІНПРО" (5 - річні) | B110: 0.55 | C110: 0.55 | D110: 0.55 | E110: 0 | F110: 0 | G110: 0
A111: Облігації ДП "ФІНІНПРО" (7 - річні) | B111: 1.258 | C111: 1.258 | D111: 1.258 | E111: 0 | F111: 0 | G111: 0
A112: Облігації НАК "Нафтогаз" (5 - річні) | B112: 1.595017 | C112: 1.595017 | D112: 0 | E112: 0 | F112: 0 | G112: 0
A113: 5. Заборгованість, не віднесена до інших категорій | B113: =SUM(B$114:B$114) -> 0.1251719954 | C113: 0.1258470189 | D113: 0.1179956164 | E113: 0.1128586189 | F113: 0.1094869587 | G113: 0.1146518606
A114: Міжнародний Валютний Фонд | B114: 0.1251719954 | C114: 0.1258470189 | D114: 0.1179956164 | E114: 0.1128586189 | F114: 0.1094869587 | G114: 0.1146518606

Sheet KIND_CMP (hidden)
B1: ="Державний та гарантований державою борг України за станом на " & TEXT(DREPORTDATE,"dd.MM.yyyy") -> Державний та гарантований державою борг України за станом на 31.07.2017
A2: Структура боргу за ознакою умовності на кінець попереднього року та на звітну дату
H4: тис.одиниць | I4: =VALVAL -> млрд. одиниць
B5: 2016-12-31 | E5: 2017-07-31
B6: дол.США | C6: грн. | D6: % | E6: дол.США | F6: грн. | G6: % | H6: % | I6: Зміна структури
A7: Загальна сума державного та гарантованого державою боргу | B7: =SUM(B$8+ B$9) -> 70.97270827 | C7: 1929.808832 | D7: 1 | E7: 76.06052459 | F7: 1971.153294 | G7: 1 | I7: =SUM(I$8+ I$9) -> 0
A8: Державний борг | B8: 60.71280594 | C8: 1650.833285 | D8: 0.855439 | E8: 64.04216025 | F8: 1659.690304 | G8: 0.841989 | H8: -0.013449 | I8: -21.4
A9: Гарантований державою борг | B9: 10.25990233 | C9: 278.9755473 | D9: 0.144561 | E9: 12.01836434 | F9: 311.4629906 | G9: 0.158011 | H9: 0.013449 | I9: 21.4

Sheet DTR (hidden)
A2: Структура державного та гарантованого державою боргу в розрізі термінів погашення
D4: =VALVAL -> млрд. одиниць
B5: дол.США | C5: грн. | D5: % | E5: FORMAT
A6: Загальна сума державного та гарантованого державою боргу | B6: =SUM(B$7+ B$8+ B$9) -> 76.06052459 | C6: 1971.153294 | D6: 1 | E6: 3
A7: 2017.07.31-2017.12.31 | B7: 1.711052881 | C7: 44.34294323 | D7: 0.022496 | E7: 1
A8: 2018-2022 | B8: 32.73586211 | C8: 848.3691479 | D8: 0.430392 | E8: 1
A9: 2022-31.12.2060 | B9: 41.6136096 | C9: 1078.441203 | D9: 0.547112 | E9: 1

Sheet DEBT_TERM (hidden)
A3: Державний та гарантований державою борг України
A4: =" за станом на " & TEXT(DREPORTDATE,"dd.MM.yyyy") -> за станом на 31.07.2017
A5: (в розрізі середнього терміну обігу та середньої ставки)
B8: Середня ставка, % | C8: Середній термін обігу, років | D8: Середній термін до погашення, років | E8: ="Сума боргу " & VALVAL -> Сума боргу млрд. одиниць | F8: IS_CHART_DATA | G8: IS_OVDP | H8: FORMAT
A9: Державний та гарантований державою борг України | B9: 32.545 | C9: 11.07 | D9: 7.93 | E9: 1971153294 | F9: 0 | G9: 0 | H9: 3 | I9: =IF(A9="","",A9 & "; " &B9 & "%; "&C9 &"р.") -> Державний та гарантований державою борг України; 32,545%; 11,07р. | J9: =E9 -> 1971153294
A10: Державний борг | B10: 35.237 | C10: 10.83 | D10: 7.71 | E10: 1659690304 | F10: 0 | G10: 0 | H10: 2 | I10: Державний борг; 35,237%; 10,83р. | J10: 1659690304
A11: Державний внутрішній борг | B11: 75.143 | C11: 8.35 | D11: 5.94 | E11: 689424272.3 | F11: 1 | G11: 0 | H11: 0 | I11: Державний внутрішній борг; 75,143%; 8,35р. | J11: 689424272.3
A12: в т.ч. ОВДП | B12: 75.392 | C12: 8.25 | D12: 5.9 | E12: 686977600.6 | F12: 0 | G12: 0 | H12: 0 | I12: в т.ч. ОВДП; 75,392%; 8,25р. | J12: 686977600.6
A13: ОВДП (1 - місячні) | B13: 0 | C13: 0 | D13: 0 | E13: 0 | F13: 0 | G13: 1 | H13: 0 | I13: ОВДП (1 - місячні); 0%; 0р. | J13: 0
A14: ОВДП (10 - річні) | B14: 16.39 | C14: 9.93 | D14: 6.76 | E14: 78889904 | F14: 0 | G14: 1 | H14: 0 | I14: ОВДП (10 - річні); 16,39%; 9,93р. | J14: 78889904
A15: ОВДП (11 - річні) | B15: 11.221 | C15: 10.99 | D15: 7.69 | E15: 17382981 | F15: 0 | G15: 1 | H15: 0 | I15: ОВДП (11 - річні); 11,221%; 10,99р. | J15: 17382981
A16: ОВДП (12 - місячні) | B16: 245.243 | C16: 0.9 | D16: 0.51 | E16: 3394290 | F16: 0 | G16: 1 | H16: 0 | I16: ОВДП (12 - місячні); 245,243%; 0,9р. | J16: 3394290
A17: ОВДП (12 - річні) | B17: 8.182 | C17: 12.14 | D17: 10.74 | E17: 28500000 | F17: 0 | G17: 1 | H17: 0 | I17: ОВДП (12 - річні); 8,182%; 12,14р. | J17: 28500000
A18: ОВДП (13 - річні) | B18: 8.757 | C18: 13.13 | D18: 12.16 | E18: 41817631 | F18: 0 | G18: 1 | H18: 0 | I18: ОВДП (13 - річні); 8,757%; 13,13р. | J18: 41817631
A19: ОВДП (14 - річні) | B19: 8.018 | C19: 14.02 | D19: 13.33 | E19: 56150000 | F19: 0 | G19: 1 | H19: 0 | I19: ОВДП (14 - річні); 8,018%; 14,02р. | J19: 56150000
A20: ОВДП (15 - річні) | B20: 34.343 | C20: 14.12 | D20: 13.28 | E20: 75590793 | F20: 0 | G20: 1 | H20: 0 | I20: ОВДП (15 - річні); 34,343%; 14,12р. | J20: 75590793
A21: ОВДП (18 - місячні) | B21: 135.372 | C21: 1.5 | D21: 0.61 | E21: 15329304.13 | F21: 0 | G21: 1 | H21: 0 | I21: ОВДП (18 - місячні); 135,372%; 1,5р. | J21: 15329304.13
A22: ОВДП (2 - річні) | B22: 125.481 | C22: 1.96 | D22: 0.88 | E22: 66224235.65 | F22: 0 | G22: 1 | H22: 0 | I22: ОВДП (2 - річні); 125,481%; 1,96р. | J22: 66224235.65
A23: ОВДП (3 - місячні) | B23: 0 | C23: 0 | D23: 0 | E23: 0 | F23: 0 | G23: 1 | H23: 0 | I23: ОВДП (3 - місячні); 0%; 0р. | J23: 0
A24: ОВДП (3 - річні) | B24: 937.579 | C24: 2.76 | D24: 2.09 | E24: 24072024.33 | F24: 0 | G24: 1 | H24: 0 | I24: ОВДП (3 - річні); 937,579%; 2,76р. | J24: 24072024.33
A25: ОВДП (4 - річні) | B25: 14.504 | C25: 4.32 | D25: 1.92 | E25: 11230000 | F25: 0 | G25: 1 | H25: 0 | I25: ОВДП (4 - річні); 14,504%; 4,32р. | J25: 11230000
A26: ОВДП (5 - річні) | B26: 30.99 | C26: 4.96 | D26: 2.38 | E26: 84759254.7 | F26: 0 | G26: 1 | H26: 0 | I26: ОВДП (5 - річні); 30,99%; 4,96р. | J26: 84759254.7
A27: ОВДП (6 - місячні) | B27: 1403 | C27: 0.49 | D27: 0.29 | E27: 635000 | F27: 0 | G27: 1 | H27: 0 | I27: ОВДП (6 - місячні); 1403%; 0,49р. | J27: 635000
A28: ОВДП (6 - річні) | B28: 14.3 | C28: 6.42 | D28: 3.32 | E28: 17600000 | F28: 0 | G28: 1 | H28: 0 | I28: ОВДП (6 - річні); 14,3%; 6,42р. | J28: 17600000
A29: ОВДП (7 - річні) | B29: 11.803 | C29: 6.61 | D29: 4.12 | E29: 13480450 | F29: 0 | G29: 1 | H29: 0 | I29: ОВДП (7 - річні); 11,803%; 6,61р. | J29: 13480450
A30: ОВДП (8 - річні) | B30: 13.1 | C30: 8.2 | D30: 4.5 | E30: 20058263 | F30: 0 | G30: 1 | H30: 0 | I30: ОВДП (8 - річні); 13,1%; 8,2р. | J30: 20058263
A31: ОВДП (9 - місячні) | B31: 0 | C31: 0.73 | D31: 0.26 | E31: 505000 | F31: 0 | G31: 1 | H31: 0 | I31: ОВДП (9 - місячні); 0%; 0,73р. | J31: 505000
A32: ОВДП (9 - річні) | B32: 11.669 | C32: 9.06 | D32: 4.25 | E32: 35774399 | F32: 0 | G32: 1 | H32: 0 | I32: ОВДП (9 - річні); 11,669%; 9,06р. | J32: 35774399
A33: Казначейські зобов'язання | B33: 0 | C33: 0 | D33: 0 | E33: 0 | F33: 0 | G33: 1 | H33: 0 | I33: Казначейські зобов'язання; 0%; 0р. | J33: 0
A34: ОВДП (1 - місячні) | B34: 0 | C34: 0 | D34: 0 | E34: 0 | F34: 0 | G34: 1 | H34: 0 | I34: ОВДП (1 - місячні); 0%; 0р. | J34: 0
A35: ОВДП (10 - річні) | B35: 9.465 | C35: 10.03 | D35: 4.35 | E35: 2430000 | F35: 0 | G35: 1 | H35: 0 | I35: ОВДП (10 - річні); 9,465%; 10,03р. | J35: 2430000
A36: ОВДП (12 - місячні) | B36: 0 | C36: 0 | D36: 0 | E36: 0 | F36: 0 | G36: 1 | H36: 0 | I36: ОВДП (12 - місячні); 0%; 0р. | J36: 0
A37: ОВДП (18 - місячні) | B37: 0 | C37: 0 | D37: 0 | E37: 0 | F37: 0 | G37: 1 | H37: 0 | I37: ОВДП (18 - місячні); 0%; 0р. | J37: 0
A38: ОВДП (2 - річні) | B38: 0 | C38: 0 | D38: 0 | E38: 0 | F38: 0 | G38: 1 | H38: 0 | I38: ОВДП (2 - річні); 0%; 0р. | J38: 0
A39: ОВДП (3 - місячні) | B39: 0 | C39: 0 | D39: 0 | E39: 0 | F39: 0 | G39: 1 | H39: 0 | I39: ОВДП (3 - місячні); 0%; 0р. | J39: 0
A40: ОВДП (3 - річні) | B40: 0 | C40: 0 | D40: 0 | E40: 0 | F40: 0 | G40: 1 | H40: 0 | I40: ОВДП (3 - річні); 0%; 0р. | J40: 0
A41: ОВДП (4 - річні) | B41: 121 | C41: 3.95 | D41: 0.29 | E41: 5000 | F41: 0 | G41: 1 | H41: 0 | I41: ОВДП (4 - річні); 121%; 3,95р. | J41: 5000
A42: ОВДП (5 - річні) | B42: 79.531 | C42: 4.92 | D42: 0.64 | E42: 54540179.82 | F42: 0 | G42: 1 | H42: 0 | I42: ОВДП (5 - річні); 79,531%; 4,92р. | J42: 54540179.82
A43: ОВДП (6 - місячні) | B43: 0 | C43: 0 | D43: 0 | E43: 0 | F43: 0 | G43: 1 | H43: 0 | I43: ОВДП (6 - місячні); 0%; 0р. | J43: 0
A44: ОВДП (6 - річні) | B44: 9.5 | C44: 6.25 | D44: 0.36 | E44: 5250000 | F44: 0 | G44: 1 | H44: 0 | I44: ОВДП (6 - річні); 9,5%; 6,25р. | J44: 5250000
A45: ОВДП (7 - річні) | B45: 117.744 | C45: 6.98 | D45: 2.14 | E45: 31158891 | F45: 0 | G45: 1 | H45: 0 | I45: ОВДП (7 - річні); 117,744%; 6,98р. | J45: 31158891
A46: ОВДП (8 - річні) | B46: 9.5 | C46: 7.92 | D46: 1.79 | E46: 1100000 | F46: 0 | G46: 1 | H46: 0 | I46: ОВДП (8 - річні); 9,5%; 7,92р. | J46: 1100000
A47: ОВДП (9 - місячні) | B47: 0 | C47: 0 | D47: 0 | E47: 0 | F47: 0 | G47: 1 | H47: 0 | I47: ОВДП (9 - місячні); 0%; 0р. | J47: 0
A48: ОВДП (9 - річні) | B48: 9.5 | C48: 8.93 | D48: 2.81 | E48: 1100000 | F48: 0 | G48: 1 | H48: 0 | I48: ОВДП (9 - річні); 9,5%; 8,93р. | J48: 1100000
A49: Державний зовнішній борг | B49: 6.883 | C49: 12.59 | D49: 8.97 | E49: 970266031.5 | F49: 1 | G49: 0 | H49: 0 | I49: Державний зовнішній борг; 6,883%; 12,59р. | J49: 970266031.5
A50: в т.ч. ОЗДП | B50: 6.367 | C50: 7.21 | D50: 5.13 | E50: 493519113.5 | F50: 0 | G50: 0 | H50: 0 | I50: в т.ч. ОЗДП; 6,367%; 7,21р. | J50: 493519113.5
A51: Гарантований борг | B51: 18.196 | C51: 12.35 | D51: 9.07 | E51: 311462990.6 | F51: 0 | G51: 0 | H51: 2 | I51: Гарантований борг; 18,196%; 12,35р. | J51: 311462990.6
A52: Гарантований внутрішній борг | B52: 135.931 | C52: 6.28 | D52: 2.06 | E52: 19777543.41 | F52: 1 | G52: 0 | H52: 0 | I52: Гарантований внутрішній борг; 135,931%; 6,28р. | J52: 19777543.41
A53: Гарантований зовнішній борг | B53: 10.213 | C53: 12.76 | D53: 9.55 | E53: 291685447.2 | F53: 1 | G53: 0 | H53: 0 | I53: Гарантований зовнішній борг; 10,213%; 12,76р. | J53: 291685447.2
A54: в т.ч. ОЗДП | J54: 0
J55: 0
J56: 0
J57: 0
J58: 0
J59: 0
J60: 0
J61: 0

Sheet K_ALL (hidden)
A2: Державний та гарантований державою борг України за станом на ReportDate (за ознакою умовності)

Sheet T_ALL (hidden)
A2: Державний та гарантований державою борг України за станом на ReportDate (за типом боргу)

Sheet YKT2_PRC (hidden)
A2: Державний та гарантований державою борг України за останні 5 років
G4: %

Sheet TBL1 (hidden)

Sheet DTK2
A2: ="Державний та гарантований державою борг України за станом на " & TEXT(DREPORTDATE,"dd.MM.yyyy") -> Державний та гарантований державою борг України за станом на 31.07.2017
A3: (за типом кредитора)
D5: =VALVAL -> млрд. одиниць
B6: дол.США | C6: грн. | D6: %
A7: Загальна сума державного та гарантованого державою боргу | B7: =B$8+B$45 -> 76.06052459 | C7: 1971.153294 | D7: 1
A8: Внутрішній борг | B8: =B$9+B$31 -> 27.36583821 | C8: 709.2018157 | D8: 0.35979
A9: Державний борг | B9: =B$10+B$29 -> 26.60268583 | C9: 689.4242723 | D9: 0.349758
A10: 1. Заборгованість за випущеними цінними паперами на внутрішньому ринку | B10: =SUM(B$11:B$28) -> 26.50827657 | C10: 686.9776006 | D10: 0.348517
A11: ОВДП (10 - річні) | B11: 3.137875971 | C11: 81.319904 | D11: 0.041255
A12: ОВДП (11 - річні) | B12: 0.6707538463 | C12: 17.382981 | D12: 0.008819
A13: ОВДП (12 - місячні) | B13: 0.1309748353 | C13: 3.39429 | D13: 0.001722
A14: ОВДП (12 - річні) | B14: 1.099724185 | C14: 28.5 | D14: 0.014459
A15: ОВДП (13 - річні) | B15: 1.613609129 | C15: 41.817631 | D15: 0.021215
A16: ОВДП (14 - річні) | B16: 2.166649579 | C16: 56.15 | D16: 0.028486
A17: ОВДП (15 - річні) | B17: 2.916807833 | C17: 75.590793 | D17: 0.038349
A18: ОВДП (18 - місячні) | B18: 0.591509 | C18: 15.32930413 | D18: 0.007777
A19: ОВДП (2 - річні) | B19: 2.555382231 | C19: 66.22423565 | D19: 0.033597
A20: ОВДП (3 - річні) | B20: 0.9288627137 | C20: 24.07202433 | D20: 0.012212
A21: ОВДП (4 - річні) | B21: 0.4335228499 | C21: 11.235 | D21: 0.0057
A22: ОВДП (5 - річні) | B22: 5.375121303 | C22: 139.2994345 | D22: 0.070669
A23: ОВДП (6 - місячні) | B23: 0.02450262658 | C23: 0.635 | D23: 0.000322
A24: ОВДП (6 - річні) | B24: 0.8817086889 | C24: 22.85 | D24: 0.011592
A25: ОВДП (7 - річні) | B25: 1.722489927 | C25: 44.639341 | D25: 0.022646
A26: ОВДП (8 - річні) | B26: 0.8164299488 | C26: 21.158263 | D26: 0.010734
A27: ОВДП (9 - місячні) | B27: 0.01948634083 | C27: 0.505 | D27: 0.000256
A28: ОВДП (9 - річні) | B28: 1.422865558 | C28: 36.874399 | D28: 0.018707
A29: 2. Заборгованість перед банківськими та іншими фінансовими установами | B29: =SUM(B$30:B$30) -> 0.09440926333 | C29: 2.446671666 | D29: 0.001241
A30: Національний банк України | B30: 0.09440926333 | C30: 2.446671666 | D30: 0.001241
A31: Гарантований державою борг | B31: =B$32+B$39+B$43 -> 0.7631523795 | C31: 19.77754341 | D31: 0.010032
A32: 1. Заборгованість за випущеними цінними паперами на внутрішньому ринку | B32: =SUM(B$33:B$38) -> 0.6154601232 | C32: 15.9500116 | D32: 0.008091
A33: Державні цінні папери | B33: 4.4761e-07 | C33: 1.16e-05 | D33: 0
A34: Облігації ДІУ (10 - річні) | B34: 0.03858681352 | C34: 1 | D34: 0.000507
A35: Облігації ДІУ (5 - річні) | B35: 0.1157604406 | C35: 3 | D35: 0.001522
A36: Облігації ДІУ (7 - річні) | B36: 0.1157604406 | C36: 3 | D36: 0.001522
A37: Облігації НАК "Нафтогаз України" (3 - річні) | B37: 0.1852167049 | C37: 4.8 | D37: 0.002435
A38: Облігації Укравтодору (5 - річні) | B38: 0.1601352761 | C38: 4.15 | D38: 0.002105
A39: 2. Заборгованість перед банківськими та іншими фінансовими установами | B39: =SUM(B$40:B$42) -> 0.1476554193 | C39: 3.826577161 | D39: 0.001941
A40: ВАТ "Державний експортно-імпортний банк України" | B40: 0.01211771285 | C40: 0.314037666 | D40: 0.000159
A41: ВАТ "Державний ощадний банк України" | B41: 0.1319384946 | C41: 3.419263799 | D41: 0.001735
A42: ПАТ АБ "Укргазбанк" | B42: 0.00359921186 | C42: 0.09327569528 | D42: 4.7e-05
A43: 3. Заборгованість, не віднесена до інших категорій | B43: =SUM(B$44:B$44) -> 3.68369e-05 | C43: 0.00095465 | D43: 0
A44: Інші кредитори | B44: 3.68369e-05 | C44: 0.00095465 | D44: 0
A45: Зовнішній борг | B45: =B$46+B$69 -> 48.69468638 | C45: 1261.951479 | D45: 0.64021
A46: Державний борг | B46: =B$47+B$54+B$60+B$62+B$67 -> 37.43947442 | C46: 970.2660315 | D46: 0.492231
A47: 1. Заборгованість за позиками, одержаними від міжнародних фінансових організацій | B47: =SUM(B$48:B$53) -> 14.91016929 | C47: 386.4058193 | D47: 0.196029
A48: Європейське Співтовариство | B48: 3.295848963 | C48: 85.41386714 | D48: 0.043332
A49: Європейський банк реконструкції та розвитку | B49: 0.6425076445 | C49: 16.65096404 | D49: 0.008447
A50: Європейський Інвестиційний Банк | B50: 0.6160496815 | C50: 15.96529035 | D50: 0.008099
A51: Міжнародний банк реконструкції та розвитку | B51: 4.925930764 | C51: 127.6583971 | D51: 0.064763
A52: Міжнародний Валютний Фонд | B52: 5.426716873 | C52: 140.6365641 | D52: 0.071347
A53: Фонд чистих технологій (МБРР) | B53: 0.00311536425 | C53: 0.08073649949 | D53: 4.1e-05
A54: 2. Заборгованість за позиками, одержаними від органів управління іноземних держав | B54: =SUM(B$55:B$59) -> 1.757199603 | C54: 45.5388627 | D54: 0.023103
A55: Канада | B55: 0.3188961362 | C55: 8.2643812 | D55: 0.004193
A56: Німеччина | B56: 0.2514665918 | C56: 6.516904841 | D56: 0.003306
A57: Росія | B57: 0.60585586 | C57: 15.70111146 | D57: 0.007965
A58: США | B58: 0.00759709027 | C58: 0.196883069 | D58: 0.0001
A59: Японія | B59: 0.5733839244 | C59: 14.85958212 | D59: 0.007539
A60: 3. Заборгованість за позиками, одержаними від іноземних комерційних банків, інших іноземних фінансових установ | B60: =SUM(B$61:B$61) -> 5.996944e-05 | C60: 0.00155414331 | D60: 1e-06
A61: Chase Manhattan Bank Luxembourg S.A. | B61: 5.996944e-05 | C61: 0.00155414331 | D61: 1e-06
A62: 4. Заборгованість за випущеними цінними паперами на зовнішньому ринку | B62: =SUM(B$63:B$66) -> 19.04333 | C62: 493.5191135 | D62: 0.25037
A63: ОЗДП 2013 року | B63: 3 | C63: 77.746767 | D63: 0.039442
A64: ОЗДП 2014 року | B64: 1 | C64: 25.915589 | D64: 0.013147
A65: ОЗДП 2015 року | B65: 14.04333 | C65: 363.9411685 | D65: 0.184634
A66: ОЗДП 2016 року | B66: 1 | C66: 25.915589 | D66: 0.013147
A67: 5. Заборгованість, не віднесена до інших категорій | B67: =SUM(B$68:B$68) -> 1.728715559 | C67: 44.80068192 | D67: 0.022728
A68: Міжнародний Валютний Фонд | B68: 1.728715559 | C68: 44.80068192 | D68: 0.022728
A69: Гарантований державою борг | B69: =B$70+B$76+B$78+B$86+B$87 -> 11.25521196 | C69: 291.6854472 | D69: 0.147979
A70: 1. Заборгованість за позиками, одержаними від міжнародних фінансових організацій | B70: =SUM(B$71:B$75) -> 8.315091617 | C70: 215.4904968 | D70: 0.109323
A71: Європейське співтоватиство з атомної енергії | B71: 0.0668269693 | C71: 1.73186027 | D71: 0.000879
A72: Європейський банк реконструкції та розвитку | B72: 0.2901040535 | C72: 7.518217417 | D72: 0.003814
A73: Європейський Інвестиційний Банк | B73: 0.04105149954 | C73: 1.06387379 | D73: 0.00054
A74: Міжнародний банк реконструкції та розвитку | B74: 0.461615 | C74: 11.96302462 | D74: 0.006069
A75: Міжнародний Валютний Фонд | B75: 7.455494095 | C75: 193.2135207 | D75: 0.098021
A76: 2. Заборгованість за позиками, одержаними від органів управління іноземних держав | B76: =SUM(B$77:B$77) -> 0.09747785328 | C76: 2.526195982 | D76: 0.001282
A77: Канада | B77: 0.09747785328 | C77: 2.526195982 | D77: 0.001282
A78: 3. Заборгованість за позиками, одержаними від іноземних комерційних банків, інших іноземних фінансових установ | B78: =SUM(B$79:B$85) -> 2.727990627 | C78: 70.69748388 | D78: 0.035867
A79: Citibank, N.A., Deutsche Bank AG | B79: 0.4967942336 | C79: 12.87471518 | D79: 0.006532
A80: Deutsche Bank AG London | B80: 0.01640601991 | C80: 0.4251716691 | D80: 0.000216
A81: UniCredit Bank Austria AG | B81: 0.03489377439 | C81: 0.9042927157 | D81: 0.000459
A82: ВАТ "Газпромбанк" | B82: 0.5 | C82: 12.9577945 | D82: 0.006574
A83: Державний банк розвитку КНР | B83: 0.0527 | C83: 1.36575154 | D83: 0.000693
A84: Експортно-імпортний банк Китаю | B84: 1.513030974 | C84: 39.21108886 | D84: 0.019892
A85: Експортно-імпортний банк Кореї | B85: 0.114165625 | C85: 2.958669415 | D85: 0.001501
A86: 4. Заборгованість за випущеними цінними паперами на зовнішньому ринку
A87: 5. Заборгованість, не віднесена до інших категорій | B87: =SUM(B$88:B$88) -> 0.1146518606 | C87: 2.971270498 | D87: 0.001507
A88: Міжнародний Валютний Фонд | B88: 0.1146518606 | C88: 2.971270498 | D88: 0.001507

Sheet DATA
A1: STOP
A3: Дата отчета | B3: 2017-07-31 | C3: =DREPORTDATE -> 2017-07-31
A4: Единицы измерения | B4: 1000000000 | C4: =IF($B$4=1,"дол. США",IF($B$4=1000,"тис. дол. США",IF($B$4=1000000,"млн. дол. США",IF($B$4=1000000000,"млрд. дол. США")))) -> млрд. дол. США | D4: =IF($B$4=1,"грн",IF($B$4=1000,"тис. грн",IF($B$4=1000000,"млн. грн",IF($B$4=1000000000,"млрд. грн")))) -> млрд. грн | E4: =IF($B$4=1,"одиниць",IF($B$4=1000,"тис. одиниць",IF($B$4=1000000,"млн. одиниць",IF($B$4=1000000000,"млрд. одиниць")))) -> млрд. одиниць | F4: =1000000000/DDELIMER -> 1 | G4: =IF($B$4=1,1000000000,IF($B$4=1000,1000000,IF($B$4=1000000,1000,IF($B$4=1000000000,1)))) -> 1
A5: Сессия | B5: 6dddf51b-ed5d-4997-b726-07da62bb9d09
A8: SHORT
A12: 1000000000

Sheet AVGRATE_DETAIL (hidden)
